date,department/service,beneficiary,amount,summary of purpose,category,transaction number
01.06.2017,"BOROUGH, BANKSIDE & WALWORTH COMMUNITY COUNCIL",LATIN ELEPHANT,"4,266.00",MIGRANT & ETHNIC BUSINESSES: ENGAGEMENT ACTIVITIES,GRANT,CHEQUE PAYMENT
01.06.2017,CAMBERWELL COMMUNITY COUNCIL,CAMBERWELL FREE FILM FESTIVAL,"3,330.00",CAMBERWELL FREE FILM FESTIVAL,GRANT,CHEQUE PAYMENT
01.06.2017,CAMBERWELL COMMUNITY COUNCIL,STEPPING STONES,"3,240.00",COOK AND EAT,GRANT,CHEQUE PAYMENT
01.06.2017,CHILDREN'S SERVICES,PULSE HEALTHCARE LTD,299,HOME 2 SCHOOL TRANSPORT,AGENCY STAFF,5902252490
01.06.2017,CHILDREN'S SERVICES,ST CHARLES CATHOLIC SIXTH FORM COLLEGE,455,YPLA 16 - 18 PROVIDERS,"SCHOOLS CAPITATION, STANDARDS FUND",2102675134
01.06.2017,CUSTOMER EXPERIENCE HGF,SOS OFFICE SUPPLIES LTD,517,HOMELESS & HOUSING OPTIONS MGT,STATIONERY,5902252287
01.06.2017,ELECTORAL SVCES,ROYAL MAIL GROUP LTD,259.83,ELECTORAL REGISTRATION,PRINTING,5902252764
01.06.2017,ENVIRONMENT DIRECTORATE,GRADKO INTERNATIONAL LTD,262,POLLUTION CONTROL,EQUIPMENT PURCHASE & REPAIR,5902252206
01.06.2017,LEISURE DIRECTORATE,ASKEWS & HOLTS LIBRARY SERVICES LTD,701.75,STOCK SERVICES,BOOKS & PUBLICATIONS,5902252329
01.06.2017,LEISURE DIRECTORATE,ASKEWS & HOLTS LIBRARY SERVICES LTD,"9,965.99",STOCK SERVICES,BOOKS & PUBLICATIONS,5902252880
01.06.2017,MODERNISATION HGF,POSITIVE LEARNING LTD,750,CHILDREN'S MULTI-AGENCY SAFEGUARDING TRA,TRAINING,5902252597
02.06.2017,ADULT SOCIAL CARE,REDACTED PERSONAL DATA,264.8,APPOINTEESHIPS,OTHER PAYMENTS FOR CLIENTS,5902253131
02.06.2017,ADULT SOCIAL CARE,REDACTED PERSONAL DATA,"17,303.51",APPOINTEESHIPS,OTHER PAYMENTS FOR CLIENTS,2102677954
02.06.2017,ADULT SOCIAL CARE,AFFINITY SUTTON HOMES LTD,399.05,APPOINTEESHIPS,OTHER PAYMENTS FOR CLIENTS,2102677962
02.06.2017,ADULT SOCIAL CARE,DERWENT RESIDENTIAL CARE LTD,459,APPOINTEESHIPS,OTHER PAYMENTS FOR CLIENTS,2102677955
02.06.2017,ADULT SOCIAL CARE,EDF ENERGY PLC,"3,403.90",APPOINTEESHIPS,OTHER PAYMENTS FOR CLIENTS,2102677949
02.06.2017,ADULT SOCIAL CARE,HODGE JONES & ALLEN,"4,497.32",APPOINTEESHIPS,OTHER PAYMENTS FOR CLIENTS,2102677963
02.06.2017,ADULT SOCIAL CARE,INSIGHT SPECIALIST BEHAVIOURAL SERVICE LTD,500,APPOINTEESHIPS,OTHER PAYMENTS FOR CLIENTS,2102677952
02.06.2017,ADULT SOCIAL CARE,INSIGHT SPECIALIST BEHAVIOURAL SERVICE LTD,637.3,APPOINTEESHIPS,OTHER PAYMENTS FOR CLIENTS,2102677953
02.06.2017,ADULT SOCIAL CARE,THAMES WATER UTILITIES LTD,"1,725.27",APPOINTEESHIPS,OTHER PAYMENTS FOR CLIENTS,2102677958
02.06.2017,ADULT SOCIAL CARE,NESTOR PRIMECARE SERVICES LTD,"98,673.12",EXTRA CARE CONTRACT,HOMECARE - SPOT,5902253185
02.06.2017,ADULT SOCIAL CARE,NESTOR PRIMECARE SERVICES LTD,"98,673.12",EXTRA CARE CONTRACT,HOMECARE - SPOT,5902253186
02.06.2017,ADULT SOCIAL CARE,HEALTHCARE & TRANSPORT SERVICES,376,LD LTS 18-64,CLIENT TRANSPORT,2102677903
02.06.2017,ADULT SOCIAL CARE,HEALTHCARE & TRANSPORT SERVICES,408,LD LTS 18-64,CLIENT TRANSPORT,2102677892
02.06.2017,ADULT SOCIAL CARE,HEALTHCARE & TRANSPORT SERVICES,450,LD LTS 18-64,CLIENT TRANSPORT,2102677885
02.06.2017,ADULT SOCIAL CARE,HEALTHCARE & TRANSPORT SERVICES,650,LD LTS 18-64,CLIENT TRANSPORT,2102677863
02.06.2017,ADULT SOCIAL CARE,HEALTHCARE & TRANSPORT SERVICES,711,LD LTS 18-64,CLIENT TRANSPORT,2102677875
02.06.2017,ADULT SOCIAL CARE,TRUECARE HAVEN SUPPORT LTD,889,LD LTS 18-64,RESIDENTIAL CARE,2102677850
02.06.2017,ADULT SOCIAL CARE,TRUECARE HAVEN SUPPORT LTD,889,LD LTS 18-64,RESIDENTIAL CARE,2102677851
02.06.2017,ADULT SOCIAL CARE,LONDON CARE LTD,707.78,MEM LTS 18-64,HOMECARE - C&V,2102677269
02.06.2017,ADULT SOCIAL CARE,CARE DIRECT UK LTD,553.09,MEM LTS 65+,HOMECARE - SPOT,2102677746
02.06.2017,ADULT SOCIAL CARE,LONDON CARE LTD,419.73,MEM LTS 65+,HOMECARE - C&V,2102677265
02.06.2017,ADULT SOCIAL CARE,LONDON CARE LTD,485.57,MEM LTS 65+,HOMECARE - C&V,2102677438
02.06.2017,ADULT SOCIAL CARE,LONDON CARE LTD,740.7,MEM LTS 65+,HOMECARE - C&V,2102677285
02.06.2017,ADULT SOCIAL CARE,LONDON CARE LTD,794.31,MEM LTS 65+,HOMECARE - C&V,2102677386
02.06.2017,ADULT SOCIAL CARE,LONDON CARE LTD,"1,037.12",MEM LTS 65+,HOMECARE - C&V,2102677394
02.06.2017,ADULT SOCIAL CARE,LONDON CARE LTD,"1,127.51",MEM LTS 65+,HOMECARE - C&V,2102677452
02.06.2017,ADULT SOCIAL CARE,LONDON CARE LTD,"1,704.02",MEM LTS 65+,HOMECARE - C&V,2102677261
02.06.2017,ADULT SOCIAL CARE,YOUTH GRACES (UK) LTD,650.47,MEM LTS 65+,HOMECARE - C&V,2102677565
02.06.2017,ADULT SOCIAL CARE,LONDON CARE LTD,263.36,MH LTS 18-64,HOMECARE - C&V,2102677373
02.06.2017,ADULT SOCIAL CARE,CARE DIRECT UK LTD,259.68,MH LTS 65+,HOMECARE - SPOT,2102677755
02.06.2017,ADULT SOCIAL CARE,CARE DIRECT UK LTD,364.23,MH LTS 65+,HOMECARE - SPOT,2102677896
02.06.2017,ADULT SOCIAL CARE,LONDON CARE LTD,502.14,MH LTS 65+,HOMECARE - C&V,2102677498
02.06.2017,ADULT SOCIAL CARE,LONDON CARE LTD,576.24,MH LTS 65+,HOMECARE - C&V,2102677283
02.06.2017,ADULT SOCIAL CARE,LONDON CARE LTD,860.17,MH LTS 65+,HOMECARE - C&V,2102677515
02.06.2017,ADULT SOCIAL CARE,LONDON CARE LTD,921.76,MH LTS 65+,HOMECARE - C&V,2102677159
02.06.2017,ADULT SOCIAL CARE,LONDON CARE LTD,"1,185.12",MH LTS 65+,HOMECARE - C&V,2102677526
02.06.2017,ADULT SOCIAL CARE,METRO HOMECARE LTD,283.29,MH LTS 65+,HOMECARE - C&V,2102677764
02.06.2017,ADULT SOCIAL CARE,METRO HOMECARE LTD,472.15,MH LTS 65+,HOMECARE - SPOT,2102677807
02.06.2017,ADULT SOCIAL CARE,YOUTH GRACES (UK) LTD,263.16,MH LTS 65+,HOMECARE - SPOT,2102677608
02.06.2017,ADULT SOCIAL CARE,CARE DIRECT UK LTD,627.29,PHY LTS 18-64,HOMECARE - C&V,2102677671
02.06.2017,ADULT SOCIAL CARE,CARE DIRECT UK LTD,647.52,PHY LTS 18-64,HOMECARE - SPOT,2102677674
02.06.2017,ADULT SOCIAL CARE,CARE DIRECT UK LTD,661.01,PHY LTS 18-64,HOMECARE - SPOT,2102677697
02.06.2017,ADULT SOCIAL CARE,CARE DIRECT UK LTD,711.6,PHY LTS 18-64,HOMECARE - SPOT,2102677857
02.06.2017,ADULT SOCIAL CARE,LONDON CARE LTD,271.59,PHY LTS 18-64,HOMECARE - C&V,2102677508
02.06.2017,ADULT SOCIAL CARE,LONDON CARE LTD,296.28,PHY LTS 18-64,HOMECARE - C&V,2102677543
02.06.2017,ADULT SOCIAL CARE,LONDON CARE LTD,345.72,PHY LTS 18-64,HOMECARE - C&V,2102677225
02.06.2017,ADULT SOCIAL CARE,LONDON CARE LTD,345.8,PHY LTS 18-64,HOMECARE - C&V,2102677247
02.06.2017,ADULT SOCIAL CARE,LONDON CARE LTD,362.2,PHY LTS 18-64,HOMECARE - C&V,2102677473
02.06.2017,ADULT SOCIAL CARE,LONDON CARE LTD,378.58,PHY LTS 18-64,HOMECARE - C&V,2102677220
02.06.2017,ADULT SOCIAL CARE,LONDON CARE LTD,395.04,PHY LTS 18-64,HOMECARE - C&V,2102677441
02.06.2017,ADULT SOCIAL CARE,LONDON CARE LTD,411.5,PHY LTS 18-64,HOMECARE - C&V,2102677221
02.06.2017,ADULT SOCIAL CARE,LONDON CARE LTD,411.5,PHY LTS 18-64,HOMECARE - C&V,2102677458
02.06.2017,ADULT SOCIAL CARE,LONDON CARE LTD,415.67,PHY LTS 18-64,HOMECARE - C&V,2102677418
02.06.2017,ADULT SOCIAL CARE,LONDON CARE LTD,448.65,PHY LTS 18-64,HOMECARE - C&V,2102677422
02.06.2017,ADULT SOCIAL CARE,LONDON CARE LTD,460.98,PHY LTS 18-64,HOMECARE - C&V,2102677181
02.06.2017,ADULT SOCIAL CARE,LONDON CARE LTD,461,PHY LTS 18-64,HOMECARE - C&V,2102677494
02.06.2017,ADULT SOCIAL CARE,LONDON CARE LTD,498.05,PHY LTS 18-64,HOMECARE - C&V,2102677485
02.06.2017,ADULT SOCIAL CARE,LONDON CARE LTD,502.09,PHY LTS 18-64,HOMECARE - C&V,2102677303
02.06.2017,ADULT SOCIAL CARE,LONDON CARE LTD,526.72,PHY LTS 18-64,HOMECARE - C&V,2102677509
02.06.2017,ADULT SOCIAL CARE,LONDON CARE LTD,543.2,PHY LTS 18-64,HOMECARE - C&V,2102677397
02.06.2017,ADULT SOCIAL CARE,LONDON CARE LTD,551.41,PHY LTS 18-64,HOMECARE - C&V,2102677333
02.06.2017,ADULT SOCIAL CARE,LONDON CARE LTD,555.61,PHY LTS 18-64,HOMECARE - C&V,2102677415
02.06.2017,ADULT SOCIAL CARE,LONDON CARE LTD,576.24,PHY LTS 18-64,HOMECARE - C&V,2102677257
02.06.2017,ADULT SOCIAL CARE,LONDON CARE LTD,584.33,PHY LTS 18-64,HOMECARE - C&V,2102677465
02.06.2017,ADULT SOCIAL CARE,LONDON CARE LTD,592.56,PHY LTS 18-64,HOMECARE - C&V,2102677155
02.06.2017,ADULT SOCIAL CARE,LONDON CARE LTD,592.56,PHY LTS 18-64,HOMECARE - C&V,2102677178
02.06.2017,ADULT SOCIAL CARE,LONDON CARE LTD,592.56,PHY LTS 18-64,HOMECARE - C&V,2102677532
02.06.2017,ADULT SOCIAL CARE,LONDON CARE LTD,633.71,PHY LTS 18-64,HOMECARE - C&V,2102677395
02.06.2017,ADULT SOCIAL CARE,LONDON CARE LTD,633.85,PHY LTS 18-64,HOMECARE - C&V,2102677429
02.06.2017,ADULT SOCIAL CARE,LONDON CARE LTD,642.08,PHY LTS 18-64,HOMECARE - SPOT,2102677166
02.06.2017,ADULT SOCIAL CARE,LONDON CARE LTD,658.4,PHY LTS 18-64,HOMECARE - C&V,2102677149
02.06.2017,ADULT SOCIAL CARE,LONDON CARE LTD,691.6,PHY LTS 18-64,HOMECARE - C&V,2102677486
02.06.2017,ADULT SOCIAL CARE,LONDON CARE LTD,724.24,PHY LTS 18-64,HOMECARE - C&V,2102677377
02.06.2017,ADULT SOCIAL CARE,LONDON CARE LTD,736.71,PHY LTS 18-64,HOMECARE - C&V,2102677388
02.06.2017,ADULT SOCIAL CARE,LONDON CARE LTD,748.93,PHY LTS 18-64,HOMECARE - C&V,2102677539
02.06.2017,ADULT SOCIAL CARE,LONDON CARE LTD,757.16,PHY LTS 18-64,HOMECARE - C&V,2102677419
02.06.2017,ADULT SOCIAL CARE,LONDON CARE LTD,827.25,PHY LTS 18-64,HOMECARE - C&V,2102677389
02.06.2017,ADULT SOCIAL CARE,LONDON CARE LTD,831.23,PHY LTS 18-64,HOMECARE - C&V,2102677193
02.06.2017,ADULT SOCIAL CARE,LONDON CARE LTD,831.5,PHY LTS 18-64,HOMECARE - C&V,2102677253
02.06.2017,ADULT SOCIAL CARE,LONDON CARE LTD,921.76,PHY LTS 18-64,HOMECARE - C&V,2102677542
02.06.2017,ADULT SOCIAL CARE,LONDON CARE LTD,921.84,PHY LTS 18-64,HOMECARE - C&V,2102677227
02.06.2017,ADULT SOCIAL CARE,LONDON CARE LTD,922.04,PHY LTS 18-64,HOMECARE - C&V,2102677410
02.06.2017,ADULT SOCIAL CARE,LONDON CARE LTD,938.36,PHY LTS 18-64,HOMECARE - C&V,2102677451
02.06.2017,ADULT SOCIAL CARE,LONDON CARE LTD,"1,283.88",PHY LTS 18-64,HOMECARE - C&V,2102677522
02.06.2017,ADULT SOCIAL CARE,LONDON CARE LTD,"1,464.96",PHY LTS 18-64,HOMECARE - C&V,2102677337
02.06.2017,ADULT SOCIAL CARE,LONDON CARE LTD,"1,568.21",PHY LTS 18-64,HOMECARE - C&V,2102677381
02.06.2017,ADULT SOCIAL CARE,METRO HOMECARE LTD,337.25,PHY LTS 18-64,HOMECARE - C&V,2102677766
02.06.2017,ADULT SOCIAL CARE,METRO HOMECARE LTD,364.23,PHY LTS 18-64,HOMECARE - SPOT,2102677792
02.06.2017,ADULT SOCIAL CARE,METRO HOMECARE LTD,445.17,PHY LTS 18-64,HOMECARE - SPOT,2102677777
02.06.2017,ADULT SOCIAL CARE,METRO HOMECARE LTD,445.17,PHY LTS 18-64,HOMECARE - SPOT,2102677819
02.06.2017,ADULT SOCIAL CARE,METRO HOMECARE LTD,573.33,PHY LTS 18-64,HOMECARE - SPOT,2102677793
02.06.2017,ADULT SOCIAL CARE,METRO HOMECARE LTD,"1,065.71",PHY LTS 18-64,HOMECARE - SPOT,2102677800
02.06.2017,ADULT SOCIAL CARE,YOUTH GRACES (UK) LTD,256.35,PHY LTS 18-64,HOMECARE - SPOT,2102677579
02.06.2017,ADULT SOCIAL CARE,YOUTH GRACES (UK) LTD,343.57,PHY LTS 18-64,HOMECARE - C&V,2102677600
02.06.2017,ADULT SOCIAL CARE,YOUTH GRACES (UK) LTD,404.72,PHY LTS 18-64,HOMECARE - C&V,2102677631
02.06.2017,ADULT SOCIAL CARE,YOUTH GRACES (UK) LTD,418.43,PHY LTS 18-64,HOMECARE - SPOT,2102677609
02.06.2017,ADULT SOCIAL CARE,YOUTH GRACES (UK) LTD,969.57,PHY LTS 18-64,HOMECARE - SPOT,2102677618
02.06.2017,ADULT SOCIAL CARE,CARE DIRECT UK LTD,256.31,PHY LTS 65+,HOMECARE - SPOT,2102677664
02.06.2017,ADULT SOCIAL CARE,CARE DIRECT UK LTD,258.33,PHY LTS 65+,HOMECARE - SPOT,2102677649
02.06.2017,ADULT SOCIAL CARE,CARE DIRECT UK LTD,266.43,PHY LTS 65+,HOMECARE - SPOT,2102677877
02.06.2017,ADULT SOCIAL CARE,CARE DIRECT UK LTD,279.92,PHY LTS 65+,HOMECARE - C&V,2102677874
02.06.2017,ADULT SOCIAL CARE,CARE DIRECT UK LTD,283.29,PHY LTS 65+,HOMECARE - SPOT,2102677661
02.06.2017,ADULT SOCIAL CARE,CARE DIRECT UK LTD,300.15,PHY LTS 65+,HOMECARE - SPOT,2102677901
02.06.2017,ADULT SOCIAL CARE,CARE DIRECT UK LTD,330.51,PHY LTS 65+,HOMECARE - SPOT,2102677734
02.06.2017,ADULT SOCIAL CARE,CARE DIRECT UK LTD,377.72,PHY LTS 65+,HOMECARE - SPOT,2102677648
02.06.2017,ADULT SOCIAL CARE,CARE DIRECT UK LTD,391.21,PHY LTS 65+,HOMECARE - SPOT,2102677689
02.06.2017,ADULT SOCIAL CARE,CARE DIRECT UK LTD,397.96,PHY LTS 65+,HOMECARE - SPOT,2102677677
02.06.2017,ADULT SOCIAL CARE,CARE DIRECT UK LTD,418.19,PHY LTS 65+,HOMECARE - SPOT,2102677889
02.06.2017,ADULT SOCIAL CARE,CARE DIRECT UK LTD,421.56,PHY LTS 65+,HOMECARE - SPOT,2102677642
02.06.2017,ADULT SOCIAL CARE,CARE DIRECT UK LTD,424.94,PHY LTS 65+,HOMECARE - SPOT,2102677757
02.06.2017,ADULT SOCIAL CARE,CARE DIRECT UK LTD,462.03,PHY LTS 65+,HOMECARE - SPOT,2102677881
02.06.2017,ADULT SOCIAL CARE,CARE DIRECT UK LTD,465.41,PHY LTS 65+,HOMECARE - SPOT,2102677641
02.06.2017,ADULT SOCIAL CARE,CARE DIRECT UK LTD,472.15,PHY LTS 65+,HOMECARE - SPOT,2102677701
02.06.2017,ADULT SOCIAL CARE,CARE DIRECT UK LTD,485.64,PHY LTS 65+,HOMECARE - SPOT,2102677705
02.06.2017,ADULT SOCIAL CARE,CARE DIRECT UK LTD,492.39,PHY LTS 65+,HOMECARE - C&V,2102677646
02.06.2017,ADULT SOCIAL CARE,CARE DIRECT UK LTD,519.37,PHY LTS 65+,HOMECARE - SPOT,2102677659
02.06.2017,ADULT SOCIAL CARE,CARE DIRECT UK LTD,519.37,PHY LTS 65+,HOMECARE - SPOT,2102677756
02.06.2017,ADULT SOCIAL CARE,CARE DIRECT UK LTD,519.37,PHY LTS 65+,HOMECARE - SPOT,2102677854
02.06.2017,ADULT SOCIAL CARE,CARE DIRECT UK LTD,583.44,PHY LTS 65+,HOMECARE - C&V,2102677867
02.06.2017,ADULT SOCIAL CARE,CARE DIRECT UK LTD,607.05,PHY LTS 65+,HOMECARE - SPOT,2102677676
02.06.2017,ADULT SOCIAL CARE,CARE DIRECT UK LTD,640.78,PHY LTS 65+,HOMECARE - SPOT,2102677719
02.06.2017,ADULT SOCIAL CARE,CARE DIRECT UK LTD,708.23,PHY LTS 65+,HOMECARE - SPOT,2102677747
02.06.2017,ADULT SOCIAL CARE,CARE DIRECT UK LTD,708.23,PHY LTS 65+,HOMECARE - SPOT,2102677908
02.06.2017,ADULT SOCIAL CARE,LONDON CARE LTD,264.75,PHY LTS 65+,HOMECARE - C&V,2102677203
02.06.2017,ADULT SOCIAL CARE,LONDON CARE LTD,279.89,PHY LTS 65+,HOMECARE - C&V,2102677446
02.06.2017,ADULT SOCIAL CARE,LONDON CARE LTD,288.06,PHY LTS 65+,HOMECARE - C&V,2102677383
02.06.2017,ADULT SOCIAL CARE,LONDON CARE LTD,296.28,PHY LTS 65+,HOMECARE - C&V,2102677379
02.06.2017,ADULT SOCIAL CARE,LONDON CARE LTD,296.28,PHY LTS 65+,HOMECARE - C&V,2102677551
02.06.2017,ADULT SOCIAL CARE,LONDON CARE LTD,308.75,PHY LTS 65+,HOMECARE - C&V,2102677447
02.06.2017,ADULT SOCIAL CARE,LONDON CARE LTD,312.74,PHY LTS 65+,HOMECARE - C&V,2102677317
02.06.2017,ADULT SOCIAL CARE,LONDON CARE LTD,329.2,PHY LTS 65+,HOMECARE - C&V,2102677187
02.06.2017,ADULT SOCIAL CARE,LONDON CARE LTD,329.2,PHY LTS 65+,HOMECARE - C&V,2102677311
02.06.2017,ADULT SOCIAL CARE,LONDON CARE LTD,329.2,PHY LTS 65+,HOMECARE - C&V,2102677455
02.06.2017,ADULT SOCIAL CARE,LONDON CARE LTD,345.68,PHY LTS 65+,HOMECARE - C&V,2102677437
02.06.2017,ADULT SOCIAL CARE,LONDON CARE LTD,345.68,PHY LTS 65+,HOMECARE - C&V,2102677482
02.06.2017,ADULT SOCIAL CARE,LONDON CARE LTD,345.8,PHY LTS 65+,HOMECARE - C&V,2102677156
02.06.2017,ADULT SOCIAL CARE,LONDON CARE LTD,345.8,PHY LTS 65+,HOMECARE - C&V,2102677161
02.06.2017,ADULT SOCIAL CARE,LONDON CARE LTD,345.8,PHY LTS 65+,HOMECARE - C&V,2102677259
02.06.2017,ADULT SOCIAL CARE,LONDON CARE LTD,345.8,PHY LTS 65+,HOMECARE - C&V,2102677325
02.06.2017,ADULT SOCIAL CARE,LONDON CARE LTD,345.8,PHY LTS 65+,HOMECARE - C&V,2102677450
02.06.2017,ADULT SOCIAL CARE,LONDON CARE LTD,345.8,PHY LTS 65+,HOMECARE - C&V,2102677467
02.06.2017,ADULT SOCIAL CARE,LONDON CARE LTD,345.8,PHY LTS 65+,HOMECARE - C&V,2102677480
02.06.2017,ADULT SOCIAL CARE,LONDON CARE LTD,345.8,PHY LTS 65+,HOMECARE - C&V,2102677541
02.06.2017,ADULT SOCIAL CARE,LONDON CARE LTD,358.14,PHY LTS 65+,HOMECARE - C&V,2102677514
02.06.2017,ADULT SOCIAL CARE,LONDON CARE LTD,362.12,PHY LTS 65+,HOMECARE - C&V,2102677319
02.06.2017,ADULT SOCIAL CARE,LONDON CARE LTD,378.64,PHY LTS 65+,HOMECARE - C&V,2102677369
02.06.2017,ADULT SOCIAL CARE,LONDON CARE LTD,378.64,PHY LTS 65+,HOMECARE - C&V,2102677484
02.06.2017,ADULT SOCIAL CARE,LONDON CARE LTD,395.18,PHY LTS 65+,HOMECARE - C&V,2102677459
02.06.2017,ADULT SOCIAL CARE,LONDON CARE LTD,395.2,PHY LTS 65+,HOMECARE - C&V,2102677445
02.06.2017,ADULT SOCIAL CARE,LONDON CARE LTD,403.37,PHY LTS 65+,HOMECARE - C&V,2102677147
02.06.2017,ADULT SOCIAL CARE,LONDON CARE LTD,411.5,PHY LTS 65+,HOMECARE - C&V,2102677231
02.06.2017,ADULT SOCIAL CARE,LONDON CARE LTD,419.73,PHY LTS 65+,HOMECARE - C&V,2102677223
02.06.2017,ADULT SOCIAL CARE,LONDON CARE LTD,427.96,PHY LTS 65+,HOMECARE - C&V,2102677281
02.06.2017,ADULT SOCIAL CARE,LONDON CARE LTD,444.42,PHY LTS 65+,HOMECARE - C&V,2102677301
02.06.2017,ADULT SOCIAL CARE,LONDON CARE LTD,444.42,PHY LTS 65+,HOMECARE - C&V,2102677398
02.06.2017,ADULT SOCIAL CARE,LONDON CARE LTD,444.42,PHY LTS 65+,HOMECARE - C&V,2102677487
02.06.2017,ADULT SOCIAL CARE,LONDON CARE LTD,460.88,PHY LTS 65+,HOMECARE - C&V,2102677349
02.06.2017,ADULT SOCIAL CARE,LONDON CARE LTD,460.88,PHY LTS 65+,HOMECARE - C&V,2102677355
02.06.2017,ADULT SOCIAL CARE,LONDON CARE LTD,460.88,PHY LTS 65+,HOMECARE - C&V,2102677375
02.06.2017,ADULT SOCIAL CARE,LONDON CARE LTD,460.88,PHY LTS 65+,HOMECARE - C&V,2102677442
02.06.2017,ADULT SOCIAL CARE,LONDON CARE LTD,460.88,PHY LTS 65+,HOMECARE - C&V,2102677516
02.06.2017,ADULT SOCIAL CARE,LONDON CARE LTD,460.88,PHY LTS 65+,HOMECARE - C&V,2102677517
02.06.2017,ADULT SOCIAL CARE,LONDON CARE LTD,460.99,PHY LTS 65+,HOMECARE - C&V,2102677529
02.06.2017,ADULT SOCIAL CARE,LONDON CARE LTD,465.13,PHY LTS 65+,HOMECARE - C&V,2102677478
02.06.2017,ADULT SOCIAL CARE,LONDON CARE LTD,469.11,PHY LTS 65+,HOMECARE - C&V,2102677144
02.06.2017,ADULT SOCIAL CARE,LONDON CARE LTD,477.48,PHY LTS 65+,HOMECARE - C&V,2102677315
02.06.2017,ADULT SOCIAL CARE,LONDON CARE LTD,481.47,PHY LTS 65+,HOMECARE - SPOT,2102677353
02.06.2017,ADULT SOCIAL CARE,LONDON CARE LTD,485.57,PHY LTS 65+,HOMECARE - C&V,2102677385
02.06.2017,ADULT SOCIAL CARE,LONDON CARE LTD,493.8,PHY LTS 65+,HOMECARE - C&V,2102677313
02.06.2017,ADULT SOCIAL CARE,LONDON CARE LTD,510.26,PHY LTS 65+,HOMECARE - C&V,2102677267
02.06.2017,ADULT SOCIAL CARE,LONDON CARE LTD,510.4,PHY LTS 65+,HOMECARE - C&V,2102677382
02.06.2017,ADULT SOCIAL CARE,LONDON CARE LTD,514.39,PHY LTS 65+,HOMECARE - C&V,2102677403
02.06.2017,ADULT SOCIAL CARE,LONDON CARE LTD,514.5,PHY LTS 65+,HOMECARE - C&V,2102677460
02.06.2017,ADULT SOCIAL CARE,LONDON CARE LTD,518.62,PHY LTS 65+,HOMECARE - C&V,2102677424
02.06.2017,ADULT SOCIAL CARE,LONDON CARE LTD,526.72,PHY LTS 65+,HOMECARE - C&V,2102677279
02.06.2017,ADULT SOCIAL CARE,LONDON CARE LTD,526.81,PHY LTS 65+,HOMECARE - SPOT,2102677431
02.06.2017,ADULT SOCIAL CARE,LONDON CARE LTD,539.15,PHY LTS 65+,HOMECARE - C&V,2102677170
02.06.2017,ADULT SOCIAL CARE,LONDON CARE LTD,543.32,PHY LTS 65+,HOMECARE - C&V,2102677245
02.06.2017,ADULT SOCIAL CARE,LONDON CARE LTD,543.32,PHY LTS 65+,HOMECARE - C&V,2102677470
02.06.2017,ADULT SOCIAL CARE,LONDON CARE LTD,559.64,PHY LTS 65+,HOMECARE - C&V,2102677215
02.06.2017,ADULT SOCIAL CARE,LONDON CARE LTD,559.64,PHY LTS 65+,HOMECARE - C&V,2102677343
02.06.2017,ADULT SOCIAL CARE,LONDON CARE LTD,559.64,PHY LTS 65+,HOMECARE - C&V,2102677497
02.06.2017,ADULT SOCIAL CARE,LONDON CARE LTD,559.64,PHY LTS 65+,HOMECARE - C&V,2102677518
02.06.2017,ADULT SOCIAL CARE,LONDON CARE LTD,563.89,PHY LTS 65+,HOMECARE - C&V,2102677150
02.06.2017,ADULT SOCIAL CARE,LONDON CARE LTD,563.89,PHY LTS 65+,HOMECARE - C&V,2102677512
02.06.2017,ADULT SOCIAL CARE,LONDON CARE LTD,576.24,PHY LTS 65+,HOMECARE - C&V,2102677154
02.06.2017,ADULT SOCIAL CARE,LONDON CARE LTD,576.24,PHY LTS 65+,HOMECARE - C&V,2102677367
02.06.2017,ADULT SOCIAL CARE,LONDON CARE LTD,576.24,PHY LTS 65+,HOMECARE - C&V,2102677391
02.06.2017,ADULT SOCIAL CARE,LONDON CARE LTD,576.24,PHY LTS 65+,HOMECARE - C&V,2102677402
02.06.2017,ADULT SOCIAL CARE,LONDON CARE LTD,576.24,PHY LTS 65+,HOMECARE - C&V,2102677448
02.06.2017,ADULT SOCIAL CARE,LONDON CARE LTD,576.24,PHY LTS 65+,HOMECARE - C&V,2102677488
02.06.2017,ADULT SOCIAL CARE,LONDON CARE LTD,592.56,PHY LTS 65+,HOMECARE - C&V,2102677143
02.06.2017,ADULT SOCIAL CARE,LONDON CARE LTD,592.56,PHY LTS 65+,HOMECARE - C&V,2102677396
02.06.2017,ADULT SOCIAL CARE,LONDON CARE LTD,592.56,PHY LTS 65+,HOMECARE - C&V,2102677416
02.06.2017,ADULT SOCIAL CARE,LONDON CARE LTD,600.79,PHY LTS 65+,HOMECARE - C&V,2102677427
02.06.2017,ADULT SOCIAL CARE,LONDON CARE LTD,609.02,PHY LTS 65+,HOMECARE - C&V,2102677399
02.06.2017,ADULT SOCIAL CARE,LONDON CARE LTD,625.48,PHY LTS 65+,HOMECARE - C&V,2102677456
02.06.2017,ADULT SOCIAL CARE,LONDON CARE LTD,641.94,PHY LTS 65+,HOMECARE - C&V,2102677471
02.06.2017,ADULT SOCIAL CARE,LONDON CARE LTD,641.94,PHY LTS 65+,HOMECARE - C&V,2102677548
02.06.2017,ADULT SOCIAL CARE,LONDON CARE LTD,642.08,PHY LTS 65+,HOMECARE - C&V,2102677413
02.06.2017,ADULT SOCIAL CARE,LONDON CARE LTD,658.4,PHY LTS 65+,HOMECARE - C&V,2102677472
02.06.2017,ADULT SOCIAL CARE,LONDON CARE LTD,687.29,PHY LTS 65+,HOMECARE - C&V,2102677305
02.06.2017,ADULT SOCIAL CARE,LONDON CARE LTD,691.32,PHY LTS 65+,HOMECARE - C&V,2102677189
02.06.2017,ADULT SOCIAL CARE,LONDON CARE LTD,691.32,PHY LTS 65+,HOMECARE - C&V,2102677405
02.06.2017,ADULT SOCIAL CARE,LONDON CARE LTD,699.69,PHY LTS 65+,HOMECARE - C&V,2102677363
02.06.2017,ADULT SOCIAL CARE,LONDON CARE LTD,699.79,PHY LTS 65+,HOMECARE - C&V,2102677439
02.06.2017,ADULT SOCIAL CARE,LONDON CARE LTD,703.68,PHY LTS 65+,HOMECARE - C&V,2102677359
02.06.2017,ADULT SOCIAL CARE,LONDON CARE LTD,707.92,PHY LTS 65+,HOMECARE - C&V,2102677544
02.06.2017,ADULT SOCIAL CARE,LONDON CARE LTD,724.24,PHY LTS 65+,HOMECARE - C&V,2102677361
02.06.2017,ADULT SOCIAL CARE,LONDON CARE LTD,724.24,PHY LTS 65+,HOMECARE - C&V,2102677552
02.06.2017,ADULT SOCIAL CARE,LONDON CARE LTD,732.49,PHY LTS 65+,HOMECARE - C&V,2102677454
02.06.2017,ADULT SOCIAL CARE,LONDON CARE LTD,732.57,PHY LTS 65+,HOMECARE - C&V,2102677401
02.06.2017,ADULT SOCIAL CARE,LONDON CARE LTD,740.7,PHY LTS 65+,HOMECARE - C&V,2102677392
02.06.2017,ADULT SOCIAL CARE,LONDON CARE LTD,749.06,PHY LTS 65+,HOMECARE - C&V,2102677251
02.06.2017,ADULT SOCIAL CARE,LONDON CARE LTD,749.07,PHY LTS 65+,HOMECARE - C&V,2102677411
02.06.2017,ADULT SOCIAL CARE,LONDON CARE LTD,753.17,PHY LTS 65+,HOMECARE - C&V,2102677289
02.06.2017,ADULT SOCIAL CARE,LONDON CARE LTD,757.16,PHY LTS 65+,HOMECARE - C&V,2102677432
02.06.2017,ADULT SOCIAL CARE,LONDON CARE LTD,773.62,PHY LTS 65+,HOMECARE - C&V,2102677295
02.06.2017,ADULT SOCIAL CARE,LONDON CARE LTD,773.74,PHY LTS 65+,HOMECARE - C&V,2102677537
02.06.2017,ADULT SOCIAL CARE,LONDON CARE LTD,773.76,PHY LTS 65+,HOMECARE - C&V,2102677490
02.06.2017,ADULT SOCIAL CARE,LONDON CARE LTD,790.08,PHY LTS 65+,HOMECARE - C&V,2102677408
02.06.2017,ADULT SOCIAL CARE,LONDON CARE LTD,802.55,PHY LTS 65+,HOMECARE - C&V,2102677521
02.06.2017,ADULT SOCIAL CARE,LONDON CARE LTD,806.68,PHY LTS 65+,HOMECARE - C&V,2102677180
02.06.2017,ADULT SOCIAL CARE,LONDON CARE LTD,806.68,PHY LTS 65+,HOMECARE - C&V,2102677271
02.06.2017,ADULT SOCIAL CARE,LONDON CARE LTD,806.7,PHY LTS 65+,HOMECARE - C&V,2102677163
02.06.2017,ADULT SOCIAL CARE,LONDON CARE LTD,814.9,PHY LTS 65+,HOMECARE - C&V,2102677275
02.06.2017,ADULT SOCIAL CARE,LONDON CARE LTD,827.23,PHY LTS 65+,HOMECARE - C&V,2102677307
02.06.2017,ADULT SOCIAL CARE,LONDON CARE LTD,856,PHY LTS 65+,HOMECARE - C&V,2102677339
02.06.2017,ADULT SOCIAL CARE,LONDON CARE LTD,856.08,PHY LTS 65+,HOMECARE - C&V,2102677341
02.06.2017,ADULT SOCIAL CARE,LONDON CARE LTD,856.08,PHY LTS 65+,HOMECARE - C&V,2102677489
02.06.2017,ADULT SOCIAL CARE,LONDON CARE LTD,864.3,PHY LTS 65+,HOMECARE - C&V,2102677162
02.06.2017,ADULT SOCIAL CARE,LONDON CARE LTD,868.4,PHY LTS 65+,HOMECARE - C&V,2102677171
02.06.2017,ADULT SOCIAL CARE,LONDON CARE LTD,888.84,PHY LTS 65+,HOMECARE - C&V,2102677211
02.06.2017,ADULT SOCIAL CARE,LONDON CARE LTD,888.88,PHY LTS 65+,HOMECARE - C&V,2102677287
02.06.2017,ADULT SOCIAL CARE,LONDON CARE LTD,897.07,PHY LTS 65+,HOMECARE - C&V,2102677533
02.06.2017,ADULT SOCIAL CARE,LONDON CARE LTD,901.32,PHY LTS 65+,HOMECARE - C&V,2102677527
02.06.2017,ADULT SOCIAL CARE,LONDON CARE LTD,901.46,PHY LTS 65+,HOMECARE - C&V,2102677546
02.06.2017,ADULT SOCIAL CARE,LONDON CARE LTD,905.44,PHY LTS 65+,HOMECARE - C&V,2102677237
02.06.2017,ADULT SOCIAL CARE,LONDON CARE LTD,905.44,PHY LTS 65+,HOMECARE - C&V,2102677425
02.06.2017,ADULT SOCIAL CARE,LONDON CARE LTD,921.76,PHY LTS 65+,HOMECARE - C&V,2102677191
02.06.2017,ADULT SOCIAL CARE,LONDON CARE LTD,921.76,PHY LTS 65+,HOMECARE - C&V,2102677449
02.06.2017,ADULT SOCIAL CARE,LONDON CARE LTD,921.76,PHY LTS 65+,HOMECARE - C&V,2102677474
02.06.2017,ADULT SOCIAL CARE,LONDON CARE LTD,921.76,PHY LTS 65+,HOMECARE - C&V,2102677507
02.06.2017,ADULT SOCIAL CARE,LONDON CARE LTD,922.04,PHY LTS 65+,HOMECARE - C&V,2102677213
02.06.2017,ADULT SOCIAL CARE,LONDON CARE LTD,930.13,PHY LTS 65+,HOMECARE - C&V,2102677520
02.06.2017,ADULT SOCIAL CARE,LONDON CARE LTD,938.36,PHY LTS 65+,HOMECARE - C&V,2102677209
02.06.2017,ADULT SOCIAL CARE,LONDON CARE LTD,938.36,PHY LTS 65+,HOMECARE - C&V,2102677457
02.06.2017,ADULT SOCIAL CARE,LONDON CARE LTD,946.59,PHY LTS 65+,HOMECARE - C&V,2102677475
02.06.2017,ADULT SOCIAL CARE,LONDON CARE LTD,954.82,PHY LTS 65+,HOMECARE - C&V,2102677390
02.06.2017,ADULT SOCIAL CARE,LONDON CARE LTD,987.88,PHY LTS 65+,HOMECARE - SPOT,2102677235
02.06.2017,ADULT SOCIAL CARE,LONDON CARE LTD,987.88,PHY LTS 65+,HOMECARE - C&V,2102677255
02.06.2017,ADULT SOCIAL CARE,LONDON CARE LTD,"1,004.20",PHY LTS 65+,HOMECARE - C&V,2102677842
02.06.2017,ADULT SOCIAL CARE,LONDON CARE LTD,"1,020.52",PHY LTS 65+,HOMECARE - C&V,2102677378
02.06.2017,ADULT SOCIAL CARE,LONDON CARE LTD,"1,020.52",PHY LTS 65+,HOMECARE - C&V,2102677404
02.06.2017,ADULT SOCIAL CARE,LONDON CARE LTD,"1,020.66",PHY LTS 65+,HOMECARE - C&V,2102677840
02.06.2017,ADULT SOCIAL CARE,LONDON CARE LTD,"1,020.66",PHY LTS 65+,HOMECARE - C&V,2102677841
02.06.2017,ADULT SOCIAL CARE,LONDON CARE LTD,"1,045.35",PHY LTS 65+,HOMECARE - C&V,2102677500
02.06.2017,ADULT SOCIAL CARE,LONDON CARE LTD,"1,053.44",PHY LTS 65+,HOMECARE - C&V,2102677435
02.06.2017,ADULT SOCIAL CARE,LONDON CARE LTD,"1,069.90",PHY LTS 65+,HOMECARE - C&V,2102677179
02.06.2017,ADULT SOCIAL CARE,LONDON CARE LTD,"1,070.03",PHY LTS 65+,HOMECARE - C&V,2102677299
02.06.2017,ADULT SOCIAL CARE,LONDON CARE LTD,"1,086.36",PHY LTS 65+,HOMECARE - C&V,2102677217
02.06.2017,ADULT SOCIAL CARE,LONDON CARE LTD,"1,102.96",PHY LTS 65+,HOMECARE - C&V,2102677420
02.06.2017,ADULT SOCIAL CARE,LONDON CARE LTD,"1,111.19",PHY LTS 65+,HOMECARE - C&V,2102677233
02.06.2017,ADULT SOCIAL CARE,LONDON CARE LTD,"1,135.88",PHY LTS 65+,HOMECARE - C&V,2102677536
02.06.2017,ADULT SOCIAL CARE,LONDON CARE LTD,"1,152.20",PHY LTS 65+,HOMECARE - C&V,2102677293
02.06.2017,ADULT SOCIAL CARE,LONDON CARE LTD,"1,152.20",PHY LTS 65+,HOMECARE - C&V,2102677309
02.06.2017,ADULT SOCIAL CARE,LONDON CARE LTD,"1,152.48",PHY LTS 65+,HOMECARE - C&V,2102677297
02.06.2017,ADULT SOCIAL CARE,LONDON CARE LTD,"1,152.48",PHY LTS 65+,HOMECARE - C&V,2102677406
02.06.2017,ADULT SOCIAL CARE,LONDON CARE LTD,"1,168.78",PHY LTS 65+,HOMECARE - C&V,2102677145
02.06.2017,ADULT SOCIAL CARE,LONDON CARE LTD,"1,168.80",PHY LTS 65+,HOMECARE - C&V,2102677469
02.06.2017,ADULT SOCIAL CARE,LONDON CARE LTD,"1,168.82",PHY LTS 65+,HOMECARE - C&V,2102677219
02.06.2017,ADULT SOCIAL CARE,LONDON CARE LTD,"1,201.86",PHY LTS 65+,HOMECARE - C&V,2102677426
02.06.2017,ADULT SOCIAL CARE,LONDON CARE LTD,"1,267.56",PHY LTS 65+,HOMECARE - C&V,2102677549
02.06.2017,ADULT SOCIAL CARE,LONDON CARE LTD,"1,283.88",PHY LTS 65+,HOMECARE - C&V,2102677400
02.06.2017,ADULT SOCIAL CARE,LONDON CARE LTD,"1,283.88",PHY LTS 65+,HOMECARE - C&V,2102677462
02.06.2017,ADULT SOCIAL CARE,LONDON CARE LTD,"1,317.16",PHY LTS 65+,HOMECARE - C&V,2102677277
02.06.2017,ADULT SOCIAL CARE,LONDON CARE LTD,"1,325.17",PHY LTS 65+,HOMECARE - C&V,2102677535
02.06.2017,ADULT SOCIAL CARE,LONDON CARE LTD,"1,350.00",PHY LTS 65+,HOMECARE - C&V,2102677423
02.06.2017,ADULT SOCIAL CARE,LONDON CARE LTD,"1,370.85",PHY LTS 65+,HOMECARE - C&V,2102677505
02.06.2017,ADULT SOCIAL CARE,LONDON CARE LTD,"1,382.92",PHY LTS 65+,HOMECARE - C&V,2102677321
02.06.2017,ADULT SOCIAL CARE,LONDON CARE LTD,"1,448.48",PHY LTS 65+,HOMECARE - C&V,2102677365
02.06.2017,ADULT SOCIAL CARE,LONDON CARE LTD,"1,576.32",PHY LTS 65+,HOMECARE - C&V,2102677534
02.06.2017,ADULT SOCIAL CARE,LONDON CARE LTD,"1,629.76",PHY LTS 65+,HOMECARE - C&V,2102677167
02.06.2017,ADULT SOCIAL CARE,LONDON CARE LTD,"1,695.46",PHY LTS 65+,HOMECARE - C&V,2102677414
02.06.2017,ADULT SOCIAL CARE,LONDON CARE LTD,"1,761.86",PHY LTS 65+,HOMECARE - C&V,2102677502
02.06.2017,ADULT SOCIAL CARE,LONDON CARE LTD,"1,843.60",PHY LTS 65+,HOMECARE - SPOT,2102677249
02.06.2017,ADULT SOCIAL CARE,LONDON CARE LTD,"1,885.18",PHY LTS 65+,HOMECARE - C&V,2102677165
02.06.2017,ADULT SOCIAL CARE,LONDON CARE LTD,"1,909.64",PHY LTS 65+,HOMECARE - C&V,2102677466
02.06.2017,ADULT SOCIAL CARE,LONDON CARE LTD,"1,942.84",PHY LTS 65+,HOMECARE - C&V,2102677523
02.06.2017,ADULT SOCIAL CARE,LONDON CARE LTD,"2,061.89",PHY LTS 65+,HOMECARE - C&V,2102677407
02.06.2017,ADULT SOCIAL CARE,LONDON CARE LTD,"2,074.24",PHY LTS 65+,HOMECARE - C&V,2102677323
02.06.2017,ADULT SOCIAL CARE,LONDON CARE LTD,"2,074.24",PHY LTS 65+,HOMECARE - C&V,2102677412
02.06.2017,ADULT SOCIAL CARE,LONDON CARE LTD,"2,152.66",PHY LTS 65+,HOMECARE - C&V,2102677380
02.06.2017,ADULT SOCIAL CARE,LONDON CARE LTD,"2,370.80",PHY LTS 65+,HOMECARE - C&V,2102677195
02.06.2017,ADULT SOCIAL CARE,LONDON CARE LTD,"2,395.21",PHY LTS 65+,HOMECARE - C&V,2102677357
02.06.2017,ADULT SOCIAL CARE,LONDON CARE LTD,"2,428.27",PHY LTS 65+,HOMECARE - C&V,2102677175
02.06.2017,ADULT SOCIAL CARE,LONDON CARE LTD,"2,691.48",PHY LTS 65+,HOMECARE - C&V,2102677168
02.06.2017,ADULT SOCIAL CARE,LONDON CARE LTD,"2,765.84",PHY LTS 65+,HOMECARE - C&V,2102677148
02.06.2017,ADULT SOCIAL CARE,LONDON CARE LTD,"3,045.94",PHY LTS 65+,HOMECARE - C&V,2102677444
02.06.2017,ADULT SOCIAL CARE,LONDON CARE LTD,"3,206.14",PHY LTS 65+,HOMECARE - C&V,2102677335
02.06.2017,ADULT SOCIAL CARE,LONDON CARE LTD,"3,259.36",PHY LTS 65+,HOMECARE - C&V,2102677434
02.06.2017,ADULT SOCIAL CARE,LONDON CARE LTD,"3,280.21",PHY LTS 65+,HOMECARE - C&V,2102677371
02.06.2017,ADULT SOCIAL CARE,LONDON CARE LTD,"3,292.00",PHY LTS 65+,HOMECARE - C&V,2102677142
02.06.2017,ADULT SOCIAL CARE,METRO HOMECARE LTD,276.55,PHY LTS 65+,HOMECARE - SPOT,2102677824
02.06.2017,ADULT SOCIAL CARE,METRO HOMECARE LTD,283.29,PHY LTS 65+,HOMECARE - SPOT,2102677767
02.06.2017,ADULT SOCIAL CARE,METRO HOMECARE LTD,303.53,PHY LTS 65+,HOMECARE - SPOT,2102677803
02.06.2017,ADULT SOCIAL CARE,METRO HOMECARE LTD,303.53,PHY LTS 65+,HOMECARE - SPOT,2102677804
02.06.2017,ADULT SOCIAL CARE,METRO HOMECARE LTD,310.27,PHY LTS 65+,HOMECARE - SPOT,2102677799
02.06.2017,ADULT SOCIAL CARE,METRO HOMECARE LTD,310.27,PHY LTS 65+,HOMECARE - C&V,2102677808
02.06.2017,ADULT SOCIAL CARE,METRO HOMECARE LTD,330.51,PHY LTS 65+,HOMECARE - SPOT,2102677762
02.06.2017,ADULT SOCIAL CARE,METRO HOMECARE LTD,330.51,PHY LTS 65+,HOMECARE - SPOT,2102677776
02.06.2017,ADULT SOCIAL CARE,METRO HOMECARE LTD,330.51,PHY LTS 65+,HOMECARE - SPOT,2102677779
02.06.2017,ADULT SOCIAL CARE,METRO HOMECARE LTD,350.74,PHY LTS 65+,HOMECARE - SPOT,2102677812
02.06.2017,ADULT SOCIAL CARE,METRO HOMECARE LTD,350.74,PHY LTS 65+,HOMECARE - C&V,2102677831
02.06.2017,ADULT SOCIAL CARE,METRO HOMECARE LTD,350.74,PHY LTS 65+,HOMECARE - SPOT,2102677832
02.06.2017,ADULT SOCIAL CARE,METRO HOMECARE LTD,357.49,PHY LTS 65+,HOMECARE - C&V,2102677816
02.06.2017,ADULT SOCIAL CARE,METRO HOMECARE LTD,364.23,PHY LTS 65+,HOMECARE - SPOT,2102677827
02.06.2017,ADULT SOCIAL CARE,METRO HOMECARE LTD,377.72,PHY LTS 65+,HOMECARE - SPOT,2102677772
02.06.2017,ADULT SOCIAL CARE,METRO HOMECARE LTD,377.72,PHY LTS 65+,HOMECARE - SPOT,2102677826
02.06.2017,ADULT SOCIAL CARE,METRO HOMECARE LTD,384.47,PHY LTS 65+,HOMECARE - SPOT,2102677836
02.06.2017,ADULT SOCIAL CARE,METRO HOMECARE LTD,424.94,PHY LTS 65+,HOMECARE - SPOT,2102677806
02.06.2017,ADULT SOCIAL CARE,METRO HOMECARE LTD,424.94,PHY LTS 65+,HOMECARE - SPOT,2102677833
02.06.2017,ADULT SOCIAL CARE,METRO HOMECARE LTD,438.43,PHY LTS 65+,HOMECARE - SPOT,2102677768
02.06.2017,ADULT SOCIAL CARE,METRO HOMECARE LTD,478.9,PHY LTS 65+,HOMECARE - SPOT,2102677775
02.06.2017,ADULT SOCIAL CARE,METRO HOMECARE LTD,492.39,PHY LTS 65+,HOMECARE - SPOT,2102677823
02.06.2017,ADULT SOCIAL CARE,METRO HOMECARE LTD,492.39,PHY LTS 65+,HOMECARE - SPOT,2102677835
02.06.2017,ADULT SOCIAL CARE,METRO HOMECARE LTD,539.6,PHY LTS 65+,HOMECARE - SPOT,2102677780
02.06.2017,ADULT SOCIAL CARE,METRO HOMECARE LTD,539.6,PHY LTS 65+,HOMECARE - SPOT,2102677815
02.06.2017,ADULT SOCIAL CARE,METRO HOMECARE LTD,546.35,PHY LTS 65+,HOMECARE - SPOT,2102677829
02.06.2017,ADULT SOCIAL CARE,METRO HOMECARE LTD,607.05,PHY LTS 65+,HOMECARE - SPOT,2102677770
02.06.2017,ADULT SOCIAL CARE,METRO HOMECARE LTD,903.83,PHY LTS 65+,HOMECARE - SPOT,2102677839
02.06.2017,ADULT SOCIAL CARE,METRO HOMECARE LTD,"1,025.24",PHY LTS 65+,HOMECARE - C&V,2102677760
02.06.2017,ADULT SOCIAL CARE,METRO HOMECARE LTD,"1,038.73",PHY LTS 65+,HOMECARE - C&V,2102677821
02.06.2017,ADULT SOCIAL CARE,METRO HOMECARE LTD,"1,038.73",PHY LTS 65+,HOMECARE - SPOT,2102677828
02.06.2017,ADULT SOCIAL CARE,METRO HOMECARE LTD,"1,133.16",PHY LTS 65+,HOMECARE - SPOT,2102677783
02.06.2017,ADULT SOCIAL CARE,METRO HOMECARE LTD,"1,153.40",PHY LTS 65+,HOMECARE - SPOT,2102677765
02.06.2017,ADULT SOCIAL CARE,METRO HOMECARE LTD,"1,160.14",PHY LTS 65+,HOMECARE - SPOT,2102677761
02.06.2017,ADULT SOCIAL CARE,METRO HOMECARE LTD,"1,295.04",PHY LTS 65+,HOMECARE - C&V,2102677834
02.06.2017,ADULT SOCIAL CARE,METRO HOMECARE LTD,"1,537.86",PHY LTS 65+,HOMECARE - SPOT,2102677837
02.06.2017,ADULT SOCIAL CARE,METRO HOMECARE LTD,"1,591.82",PHY LTS 65+,HOMECARE - SPOT,2102677809
02.06.2017,ADULT SOCIAL CARE,METRO HOMECARE LTD,"1,672.76",PHY LTS 65+,HOMECARE - SPOT,2102677774
02.06.2017,ADULT SOCIAL CARE,MIHOMECARE LTD,331.89,PHY LTS 65+,HOMECARE - C&V,2102677847
02.06.2017,ADULT SOCIAL CARE,MIHOMECARE LTD,442.52,PHY LTS 65+,HOMECARE - C&V,2102677845
02.06.2017,ADULT SOCIAL CARE,MIHOMECARE LTD,"1,191.40",PHY LTS 65+,HOMECARE - C&V,2102677846
02.06.2017,ADULT SOCIAL CARE,MIHOMECARE LTD,"1,225.44",PHY LTS 65+,HOMECARE - C&V,2102677844
02.06.2017,ADULT SOCIAL CARE,MIHOMECARE LTD,"1,259.48",PHY LTS 65+,HOMECARE - C&V,2102677843
02.06.2017,ADULT SOCIAL CARE,MIHOMECARE LTD,"1,259.48",PHY LTS 65+,HOMECARE - C&V,2102677849
02.06.2017,ADULT SOCIAL CARE,MIHOMECARE LTD,"2,944.46",PHY LTS 65+,HOMECARE - C&V,2102677848
02.06.2017,ADULT SOCIAL CARE,YOUTH GRACES (UK) LTD,276.59,PHY LTS 65+,HOMECARE - SPOT,2102677578
02.06.2017,ADULT SOCIAL CARE,YOUTH GRACES (UK) LTD,344.17,PHY LTS 65+,HOMECARE - SPOT,2102677616
02.06.2017,ADULT SOCIAL CARE,YOUTH GRACES (UK) LTD,462.24,PHY LTS 65+,HOMECARE - SPOT,2102677586
02.06.2017,ADULT SOCIAL CARE,YOUTH GRACES (UK) LTD,492.46,PHY LTS 65+,HOMECARE - SPOT,2102677577
02.06.2017,ADULT SOCIAL CARE,YOUTH GRACES (UK) LTD,502.7,PHY LTS 65+,HOMECARE - SPOT,2102677605
02.06.2017,ADULT SOCIAL CARE,YOUTH GRACES (UK) LTD,543.06,PHY LTS 65+,HOMECARE - C&V,2102677599
02.06.2017,ADULT SOCIAL CARE,YOUTH GRACES (UK) LTD,613.9,PHY LTS 65+,HOMECARE - SPOT,2102677624
02.06.2017,ADULT SOCIAL CARE,YOUTH GRACES (UK) LTD,775.82,PHY LTS 65+,HOMECARE - SPOT,2102677636
02.06.2017,ADULT SOCIAL CARE,METRO HOMECARE LTD,370.98,PHY STS 65+,HOMECARE - IC,2102677801
02.06.2017,ADULT SOCIAL CARE,CARE DIRECT UK LTD,263.06,SOCIAL ISOLATION,HOMECARE - SPOT,2102677686
02.06.2017,ADULT SOCIAL CARE,LONDON CARE LTD,329.2,SOCIAL ISOLATION,HOMECARE - C&V,2102677164
02.06.2017,ADULT SOCIAL CARE,LONDON CARE LTD,345.8,SOCIAL ISOLATION,HOMECARE - C&V,2102677229
02.06.2017,ADULT SOCIAL CARE,LONDON CARE LTD,427.96,SOCIAL ISOLATION,HOMECARE - C&V,2102677468
02.06.2017,ADULT SOCIAL CARE,LONDON CARE LTD,444.56,SOCIAL ISOLATION,HOMECARE - C&V,2102677440
02.06.2017,ADULT SOCIAL CARE,LONDON CARE LTD,460.88,SOCIAL ISOLATION,HOMECARE - C&V,2102677351
02.06.2017,ADULT SOCIAL CARE,LONDON CARE LTD,798.45,SOCIAL ISOLATION,HOMECARE - C&V,2102677185
02.06.2017,ADULT SOCIAL CARE,LONDON CARE LTD,921.9,SOCIAL ISOLATION,HOMECARE - C&V,2102677443
02.06.2017,ADULT SOCIAL CARE,LONDON CARE LTD,"1,053.72",SOCIAL ISOLATION,HOMECARE - C&V,2102677169
02.06.2017,ADULT SOCIAL CARE,LONDON CARE LTD,"1,119.56",SOCIAL ISOLATION,HOMECARE - C&V,2102677499
02.06.2017,ADULT SOCIAL CARE,LONDON CARE LTD,"2,304.96",SOCIAL ISOLATION,HOMECARE - C&V,2102677243
02.06.2017,ADULT SOCIAL CARE,METRO HOMECARE LTD,290.04,SOCIAL ISOLATION,HOMECARE - SPOT,2102677794
02.06.2017,ADULT SOCIAL CARE,METRO HOMECARE LTD,418.19,SUB LTS 18-64,HOMECARE - SPOT,2102677788
02.06.2017,ASSET MANAGEMENT,A & H PEST CONTROL LTD,680,ENG CONTRACTS (NORTH),PLANNED MAINTENANCE,5902253182
02.06.2017,ASSET MANAGEMENT,A & H PEST CONTROL LTD,690,ENG CONTRACTS (NORTH),PLANNED MAINTENANCE,5902253178
02.06.2017,ASSET MANAGEMENT,GAS LOGIC LTD,495,REPAIRS OPERATIONS,TRAINING,5902252997
02.06.2017,ASSET MANAGEMENT,GAS LOGIC LTD,820,REPAIRS OPERATIONS,TRAINING,5902253000
02.06.2017,"BOROUGH, BANKSIDE & WALWORTH COMMUNITY COUNCIL",BANKSIDE VILLAGE,"1,000.00",BUILDING THE SETTLEMENT,GRANT,CHEQUE PAYMENT
02.06.2017,"BOROUGH, BANKSIDE & WALWORTH COMMUNITY COUNCIL",CENTRIC LEARNING TREE,"1,500.00",STORIES IN THE PARK,GRANT,CHEQUE PAYMENT
02.06.2017,"BOROUGH, BANKSIDE & WALWORTH COMMUNITY COUNCIL",BETTER BANKSIDE,"4,928.00",THE PAST IN THE PRESENT - BANKSIDE NEIGHBOURHOOD PLAN,GRANT,CHEQUE PAYMENT
02.06.2017,CENTRAL FUNCTIONS,EDF ENERGY PLC,514.9,COMMERCIAL PROPERTIES,ELECTRICITY,5902253086
02.06.2017,CENTRAL FUNCTIONS,STANBURY BUILDING SERVICES LTD,"1,495.00",COMMERCIAL PROPERTIES,BUILDING R&M,2102677964
02.06.2017,CENTRAL FUNCTIONS,REDACTED PERSONAL DATA,"1,669.70",HOME OWNERSHIP INCOME,HOUSING RESIDENTIAL RENTS,5902253164
02.06.2017,CENTRAL FUNCTIONS,DAWSON ESTATES LTD,360.9,HOME OWNERSHIP INCOME,HOUSING RESIDENTIAL RENTS,5902253168
02.06.2017,CHIEF EXECUTIVE,NEILCOTT SPECIAL WORKS LTD,"17,267.27",CAPITAL PS (REGEN),CONSTRUCTION FEES,5902253136
02.06.2017,CHIEF EXECUTIVE'S OFFICE,THE WALWORTH SOCIETY,"15,000.00",BUSINESS SUPPORT,GRANTS,5902253173
02.06.2017,CHIEF EXECUTIVE'S OFFICE,BE ONSITE,"25,000.00",CHIEF EXEC'S OFFICE,GRANTS,5902253172
02.06.2017,CHILDREN AND ADULT,INTERSERVE (FACILITIES MANAGEMENT),"118,941.87",CAPITAL PS (SOC SERV),CONSTRUCTION MAIN CONTRACT -CERTIFICATED,2102677965
02.06.2017,CHILDREN AND ADULT,NUMBER 10 INTERIM LTD,"2,625.00",CAPITAL PS (STRAT SERV),ICT ACQUISITION FEES,5902252521
02.06.2017,CHILDREN'S SERVICES,LONDON GRID FOR LEARNING TRUST,"2,714.00",ADMISSIONS,PRINTING,5902253149
02.06.2017,CHILDREN'S SERVICES,LONDON GRID FOR LEARNING TRUST,"5,925.00",ADMISSIONS,PRINTING,5902253149
02.06.2017,CHILDREN'S SERVICES,LONDON GRID FOR LEARNING TRUST,"8,497.00",ADMISSIONS,PRINTING,5902253149
02.06.2017,CHILDREN'S SERVICES,REDACTED PERSONAL DATA,401.08,ADOPTION PLACEMENTS & INTER AGENCY,PAYMENTS TO CARERS,5902253133
02.06.2017,CHILDREN'S SERVICES,REDACTED PERSONAL DATA,"3,200.00",ADOPTION PLACEMENTS & INTER AGENCY,OTHER PAYMENTS FOR CLIENTS,5902253126
02.06.2017,CHILDREN'S SERVICES,CAPSTONE FOSTER CARE,442.88,AGENCY FOSTERING,EXTERNAL AGENCIES AND BODIES,5902253070
02.06.2017,CHILDREN'S SERVICES,KINDERCARE FOSTERING,"3,321.34",AGENCY FOSTERING,EXTERNAL AGENCIES AND BODIES,2102677124
02.06.2017,CHILDREN'S SERVICES,KINDERCARE FOSTERING,"3,520.67",AGENCY FOSTERING,EXTERNAL AGENCIES AND BODIES,2102677122
02.06.2017,CHILDREN'S SERVICES,KINDERCARE FOSTERING,"5,212.34",AGENCY FOSTERING,EXTERNAL AGENCIES AND BODIES,2102677123
02.06.2017,CHILDREN'S SERVICES,BRAKE BROS,267.07,CAMBERWELL GROVE EARLY YEARS CENTRE,CATERING MATERIALS & SUPPLIES,5902253150
02.06.2017,CHILDREN'S SERVICES,BRAKE BROS,272.87,CAMBERWELL GROVE EARLY YEARS CENTRE,CATERING MATERIALS & SUPPLIES,5902253158
02.06.2017,CHILDREN'S SERVICES,BRAKE BROS,296.31,CAMBERWELL GROVE EARLY YEARS CENTRE,CATERING MATERIALS & SUPPLIES,5902253171
02.06.2017,CHILDREN'S SERVICES,BRAKE BROS,459.6,CAMBERWELL GROVE EARLY YEARS CENTRE,CATERING MATERIALS & SUPPLIES,5902253155
02.06.2017,CHILDREN'S SERVICES,TEENS CRISIS UK,433.5,CARE GRPS  1 TO 3,OTHER PAYMENTS FOR CLIENTS,5902252995
02.06.2017,CHILDREN'S SERVICES,TEENS CRISIS UK,433.5,CARE GRPS  1 TO 3,OTHER PAYMENTS FOR CLIENTS,5902252996
02.06.2017,CHILDREN'S SERVICES,TEENS CRISIS UK,867,CARE GRPS  1 TO 3,OTHER PAYMENTS FOR CLIENTS,5902252994
02.06.2017,CHILDREN'S SERVICES,CARE O LINE,679.75,CARE PRACTICE GROUP SET C,OTHER PAYMENTS FOR CLIENTS,5902253040
02.06.2017,CHILDREN'S SERVICES,BELVEDERE COMMUNITY CENTRE,"3,500.32",CONTACT,OTHER PAYMENTS FOR CLIENTS,5902253035
02.06.2017,CHILDREN'S SERVICES,NEGOTIATORS LTD,420,CONTACT,OTHER PAYMENTS FOR CLIENTS,5902253004
02.06.2017,CHILDREN'S SERVICES,REDACTED PERSONAL DATA,336,HOME 2 SCHOOL TRANSPORT,OTHER PAYMENTS FOR CLIENTS,2102677936
02.06.2017,CHILDREN'S SERVICES,REDACTED PERSONAL DATA,470,HOME 2 SCHOOL TRANSPORT,OTHER PAYMENTS FOR CLIENTS,2102677932
02.06.2017,CHILDREN'S SERVICES,REDACTED PERSONAL DATA,476,HOME 2 SCHOOL TRANSPORT,OTHER PAYMENTS FOR CLIENTS,2102677934
02.06.2017,CHILDREN'S SERVICES,REDACTED PERSONAL DATA,711.98,HOME 2 SCHOOL TRANSPORT,OTHER PAYMENTS FOR CLIENTS,2102677923
02.06.2017,CHILDREN'S SERVICES,REDACTED PERSONAL DATA,"1,040.00",HOME 2 SCHOOL TRANSPORT,OTHER PAYMENTS FOR CLIENTS,2102677925
02.06.2017,CHILDREN'S SERVICES,REDACTED PERSONAL DATA,"2,140.00",HOME 2 SCHOOL TRANSPORT,OTHER PAYMENTS FOR CLIENTS,2102677928
02.06.2017,CHILDREN'S SERVICES,REDACTED PERSONAL DATA,"3,069.00",HOME 2 SCHOOL TRANSPORT,OTHER PAYMENTS FOR CLIENTS,2102677940
02.06.2017,CHILDREN'S SERVICES,HEALTHCARE & TRANSPORT SERVICES,-336,HOME 2 SCHOOL TRANSPORT,CAB FARES,5902252498
02.06.2017,CHILDREN'S SERVICES,REDACTED PERSONAL DATA,"2,000.00",LEAVING CARE GRANT,OTHER PAYMENTS FOR CLIENTS,5902251957
02.06.2017,CHILDREN'S SERVICES,THE LITERACY TREE LTD,"7,000.00",PRIMARY ACHIEVEMENT,CONSULTANTS SERVICES,5902253034
02.06.2017,CHILDREN'S SERVICES,POTTON HOMES LTD,"11,160.00",RESIDENTIAL,RESIDENTIAL CARE,5902253038
02.06.2017,CHILDREN'S SERVICES,SPORTFIT SHORT BREAK CARE LTD,"3,586.50",RESIDENTIAL,RESIDENTIAL CARE,2102677121
02.06.2017,CHILDREN'S SERVICES,SPORTFIT SHORT BREAK CARE LTD,"12,353.50",RESIDENTIAL,RESIDENTIAL CARE,2102677119
02.06.2017,CHILDREN'S SERVICES,SILVER BIRCH CARE LTD,942.86,S24 CLA,EXTERNAL AGENCIES AND BODIES,5902253016
02.06.2017,CHILDREN'S SERVICES,THE SALVATION ARMY,"1,964.38",S24 CLA,EXTERNAL AGENCIES AND BODIES,5902253033
02.06.2017,CHILDREN'S SERVICES,FUTURE FOUNDATIONS LTD,300,SEMI INDEPENDENT,OTHER PAYMENTS FOR CLIENTS,5902253027
02.06.2017,CHILDREN'S SERVICES,SILVER BIRCH CARE LTD,550,SEMI INDEPENDENT,OTHER PAYMENTS FOR CLIENTS,5902253045
02.06.2017,CHILDREN'S SERVICES,SILVER BIRCH CARE LTD,"2,710.71",SEMI INDEPENDENT,EXTERNAL AGENCIES AND BODIES,5902253016
02.06.2017,CHILDREN'S SERVICES,ST CHRISTOPHER FELLOWSHIP,"4,971.47",SEMI INDEPENDENT,EXTERNAL AGENCIES AND BODIES,5902253098
02.06.2017,CHILDREN'S SERVICES,ST CHRISTOPHER FELLOWSHIP,"5,142.90",SEMI INDEPENDENT,EXTERNAL AGENCIES AND BODIES,5902253099
02.06.2017,CHILDREN'S SERVICES,LOGICOUS LTD,884.6,SPECIAL GUARDIANSHIP,EXTERNAL AGENCIES AND BODIES,5902252999
02.06.2017,CHILDREN'S SERVICES,CARE O LINE,457.93,SPECIALIST CARE,SECTION 17 PAYMENTS TO AGENCIES/CARERS,5902253007
02.06.2017,CHILDREN'S SERVICES,CONTACT PROFESSIONALS,388,SPECIALIST CARE,SECTION 17 PAYMENTS TO AGENCIES/CARERS,2102677131
02.06.2017,CHILDREN'S SERVICES,ST CHRISTOPHER FELLOWSHIP,"9,407.00",TACKLING TROUBLED FAMILIES,EXTERNAL AGENCIES AND BODIES,5902253100
02.06.2017,CUSTOMER EXPERIENCE HGF,SG PATH LTD,415.8,CORONER'S,PROFESSIONAL FEES,5902253195
02.06.2017,CUSTOMER EXPERIENCE HGF,SG PATH LTD,415.8,CORONER'S,PROFESSIONAL FEES,5902253196
02.06.2017,CUSTOMER EXPERIENCE HGF,SG PATH LTD,415.8,CORONER'S,PROFESSIONAL FEES,5902253203
02.06.2017,CUSTOMER EXPERIENCE HGF,SG PATH LTD,415.8,CORONER'S,PROFESSIONAL FEES,5902253204
02.06.2017,CUSTOMER EXPERIENCE HGF,SG PATH LTD,415.8,CORONER'S,PROFESSIONAL FEES,5902253206
02.06.2017,CUSTOMER EXPERIENCE HGF,SG PATH LTD,415.8,CORONER'S,PROFESSIONAL FEES,5902253207
02.06.2017,CUSTOMER EXPERIENCE HGF,VICTORIA ASSET FINANCE,355,CORONER'S,CATERING MATERIALS & SUPPLIES,5902253061
02.06.2017,DULWICH COMMUNITY COUNCIL,CENTRIC LEARNING TREE,"1,650.00",CENTRIC LEARNING TREE,GRANT,CHEQUE PAYMENT
02.06.2017,DULWICH COMMUNITY COUNCIL,NEW LEAF EDUCATIONAL GARDENS CIC,"2,500.00",NEW LEAF BOTANIC TIMELINE AND COMMUNITY BOOKSHOP,GRANT,CHEQUE PAYMENT
02.06.2017,ELECTORAL SVCES,ELECTORAL REFORM  SERVICES,"1,191.31",ELECTORAL REGISTRATION,PROFESSIONAL FEES,5902253189
02.06.2017,ENVIRONMENT AND LEISURE,APPLEYARD & TREW,"7,500.00",CAPITAL PS (LEISURE),CONSTRUCTION FEES  - EXTERNAL,5902253008
02.06.2017,ENVIRONMENT AND LEISURE,GOOSE GREEN PRIMARY AND NURSERY SCHOOL,"2,998.00",CAPITAL PS (LEISURE),CONST'N MAIN CONTRACT - NON CERTIFICATED,5902253087
02.06.2017,ENVIRONMENT AND LEISURE,R HERRIDGE & PARTNERS,"1,205.00",CAPITAL PS (LEISURE),CONST'N MAIN CONTRACT - NON CERTIFICATED,2102677914
02.06.2017,ENVIRONMENT AND LEISURE,R HERRIDGE & PARTNERS,"3,773.00",CAPITAL PS (LEISURE),CONST'N MAIN CONTRACT - NON CERTIFICATED,2102677914
02.06.2017,ENVIRONMENT AND LEISURE,RIDGE & PARTNERS LLP,"3,500.00",CAPITAL PS (LEISURE),CONSTRUCTION FEES  - EXTERNAL,5902253183
02.06.2017,ENVIRONMENT DIRECTORATE,AUTO SISTANCE LTD,500,BUSINESS CORE,MATERIALS,5902253079
02.06.2017,ENVIRONMENT DIRECTORATE,HELIARC TECHNOLOGY LTD,"1,044.00",ENGINEERING CRAFTS,MATERIALS,5902253072
02.06.2017,ENVIRONMENT DIRECTORATE,HELIARC TECHNOLOGY LTD,"1,087.60",ENGINEERING CRAFTS,MATERIALS,5902253076
02.06.2017,ENVIRONMENT DIRECTORATE,PURPOSE POWDER COATINGS LTD,"1,027.02",ENGINEERING CRAFTS,MATERIALS,5902253064
02.06.2017,ENVIRONMENT DIRECTORATE,SOUTH ESSEX STOCKHOLDERS LTD,281.6,ENGINEERING CRAFTS,MATERIALS,5902253096
02.06.2017,ENVIRONMENT DIRECTORATE,SPALDINGS (UK) LTD,342,GROUNDS MAINTENANCE - GENERAL,MATERIALS,5902253188
02.06.2017,ENVIRONMENT DIRECTORATE,IMPERIAL POLYTHENE PRODUCTS LTD,795,MANAGEMENT TEAM,MATERIALS,5902253148
02.06.2017,ENVIRONMENT DIRECTORATE,IMPERIAL POLYTHENE PRODUCTS LTD,"1,523.00",MANAGEMENT TEAM,MATERIALS,5902252846
02.06.2017,ENVIRONMENT DIRECTORATE,LAND SKILLS TRAINING LTD,422,NON HOUSING GROUNDS,TRAINING,5902252523
02.06.2017,ENVIRONMENT DIRECTORATE,LAND SKILLS TRAINING LTD,"1,380.00",NON HOUSING GROUNDS,TRAINING,5902252523
02.06.2017,ENVIRONMENT DIRECTORATE,APCOA PARKING (UK) LTD,"67,226.92",PARKING OVERHEADS,OTHER CONTRACTORS,5902253165
02.06.2017,ENVIRONMENT DIRECTORATE,CROWN OIL UK,576,SANDGATE STREET,VEHICLE FUEL,5902252668
02.06.2017,ENVIRONMENT DIRECTORATE,CONWAY AECOM LTD,"26,654.74",SECTION 278 & 38,OTHER CONTRACTORS,5902253174
02.06.2017,ENVIRONMENT DIRECTORATE,ALL PRINT SUPPLIES LTD,433.4,SIGN SHOP,MATERIALS,5902253081
02.06.2017,ENVIRONMENT DIRECTORATE,ALL PRINT SUPPLIES LTD,882.9,SIGN SHOP,MATERIALS,5902253082
02.06.2017,ENVIRONMENT DIRECTORATE,F H BRUNDLE,344.8,SIGN SHOP,MATERIALS,5902253085
02.06.2017,ENVIRONMENT DIRECTORATE,F H BRUNDLE,520,SIGN SHOP,MATERIALS,5902253084
02.06.2017,ENVIRONMENT DIRECTORATE,LONDON TOOLS LIMITED,800,SIGN SHOP,MATERIALS,5902253094
02.06.2017,ENVIRONMENT DIRECTORATE,NPOWER LTD,380.17,STREET TRADING A/C,ELECTRICITY,5902253006
02.06.2017,ENVIRONMENT DIRECTORATE,AGENTIS WORKWEAR LTD,827.6,STREET WORKS OVERHEADS,BOOKS & PUBLICATIONS,5902253145
02.06.2017,F & C S EXCLUDING CORPORATE BUDGETS,REDACTED PERSONAL DATA,"18,524.44",CORPORATE SERVICES,LEGAL FEES & COURT COSTS,2102677912
02.06.2017,HOUSING,A T & T (GB LTD ),288,STORES,CREDITORS -GR/IR CLEARING ACCOUNT,5902253060
02.06.2017,HOUSING,A T & T (GB LTD ),880,STORES,CREDITORS -GR/IR CLEARING ACCOUNT,5902253044
02.06.2017,HOUSING,A T & T (GB LTD ),"1,026.96",STORES,CREDITORS -GR/IR CLEARING ACCOUNT,5902253062
02.06.2017,HOUSING,A T & T (GB LTD ),"1,128.00",STORES,CREDITORS -GR/IR CLEARING ACCOUNT,5902253063
02.06.2017,HOUSING,A T & T (GB LTD ),"1,408.00",STORES,CREDITORS -GR/IR CLEARING ACCOUNT,5902253044
02.06.2017,HOUSING,EDWARDES BROS (DULWICH) LTD,375,STORES,CREDITORS -GR/IR CLEARING ACCOUNT,5902253047
02.06.2017,HOUSING,EDWARDES BROS (DULWICH) LTD,850,STORES,CREDITORS -GR/IR CLEARING ACCOUNT,5902253047
02.06.2017,HOUSING,EDWARDES BROS (DULWICH) LTD,"2,886.00",STORES,CREDITORS -GR/IR CLEARING ACCOUNT,5902253046
02.06.2017,HOUSING,TOUCAN TOOL CO LTD,270,STORES,CREDITORS -GR/IR CLEARING ACCOUNT,5902253134
02.06.2017,HOUSING,TOUCAN TOOL CO LTD,270,STORES,CREDITORS -GR/IR CLEARING ACCOUNT,5902253134
02.06.2017,HOUSING,TOUCAN TOOL CO LTD,"1,003.00",STORES,CREDITORS -GR/IR CLEARING ACCOUNT,5902253134
02.06.2017,HOUSING HRA,CARTER JONAS LLP,"1,900.00",CAPITAL PS (REGEN),LAND & BUILDINGS ACQUISITION FEES,5902253179
02.06.2017,LEISURE DIRECTORATE,COPELAND PARK PV,"3,000.00",ARTS GRANTS,GRANTS,5902253023
02.06.2017,LEISURE DIRECTORATE,QUADRON SERVICES LIMITED,"224,527.66",CLIENT SERV(GRNS MAIN),OTHER CONTRACTORS,5902253002
02.06.2017,LEISURE DIRECTORATE,KENT COUNTY COUNCIL - LASER,312.46,DULWICH LIBRARY,GAS,5902253111
02.06.2017,LEISURE DIRECTORATE,EDUCARE LEARNING LTD,250.75,FACILITIES MANAGEMENT,TRAINING,5902252455
02.06.2017,LEISURE DIRECTORATE,KENT COUNTY COUNCIL - LASER,"1,872.95",PECKHAM LIBRARY,ELECTRICITY,5902253162
02.06.2017,LEISURE DIRECTORATE,KENT COUNTY COUNCIL - LASER,"1,947.89",PECKHAM LIBRARY,ELECTRICITY,5902253159
02.06.2017,LEISURE DIRECTORATE,KENT COUNTY COUNCIL - LASER,425.52,STOCK SERVICES,GAS,5902253114
02.06.2017,MODERNISATION HGF,GVA ACUITY LTD,"3,000.00",160 TOOLEY ST.,PROFESSIONAL FEES,5902253013
02.06.2017,MODERNISATION HGF,GVA ACUITY LTD,"19,000.00",160 TOOLEY ST.,PROFESSIONAL FEES,5902253012
02.06.2017,MODERNISATION HGF,SYMANTEC LTD,"1,200.00",APPLICATIONS,SOFTWARE,5902253108
02.06.2017,MODERNISATION HGF,BIFM TRAINING,835,CFM OPERATIONAL BUDGET,TRAINING,5902253144
02.06.2017,MODERNISATION HGF,KROLL ONTRACK  LTD,615,TECHNOLOGY,SOFTWARE,5902253051
02.06.2017,MODERNISATION HGF,KROLL ONTRACK  LTD,615,TECHNOLOGY,SOFTWARE,5902253051
02.06.2017,MODERNISATION HGF,KROLL ONTRACK  LTD,"1,131.00",TECHNOLOGY,SOFTWARE,5902253051
02.06.2017,MODERNISATION HGF,KROLL ONTRACK  LTD,"4,425.00",TECHNOLOGY,SOFTWARE,5902253051
02.06.2017,PUBLIC HEALTH,SPORTS AND LEISURE MANAGEMENT LTD,"41,800.00",TACKLING CHILD OBESITY,EXTERNAL AGENCIES AND BODIES,5902253177
02.06.2017,REGENERATION,ILLUMINATE PRODUCTIONS,"7,500.00",BLACKFRIARS ROAD PROJECT,MARKETING & PUBLICITY SERVICES,5902252301
02.06.2017,REGENERATION,CASTLE WATER LTD,454.55,KENNINGTON WORKSHOPS,WATER,5902253180
02.06.2017,REGENERATION,STITCH STUDIO LTD,"13,483.00",OLD KENT RD-FEES/MPLAN,PROFESSIONAL FEES,5902253201
02.06.2017,REGENERATION,EDF ENERGY PLC,366.39,VCS MANAGED MSC BUILDILNGS,ELECTRICITY,5902253106
02.06.2017,RESIDENT SERVICES,EDF ENERGY PLC,354.21,OPERATIONS/OFFICES ACCOMMODATION,ELECTRICITY,5902252015
02.06.2017,RESIDENT SERVICES,THE ALBANY 2001 COMPANY LTD,-336.5,OPERATIONS/OFFICES ACCOMMODATION,REFRESHMENTS FOR MEETINGS,5902253243
02.06.2017,RESIDENT SERVICES,THE ALBANY 2001 COMPANY LTD,336.5,OPERATIONS/OFFICES ACCOMMODATION,REFRESHMENTS FOR MEETINGS,5902253241
02.06.2017,RESIDENT SERVICES,APCOA PARKING (UK) LTD,"6,847.91",PARKING CONTROL,OTHER CONTRACTORS,5902253147
02.06.2017,RESIDENT SERVICES,CASTLE WATER LTD,921.54,PECKHAM,WATER,5902253135
02.06.2017,RESIDENT SERVICES,A & H PEST CONTROL LTD,390,WALWORTH,PEST CONTROL,5902253083
02.06.2017,RESIDENT SERVICES,A & H PEST CONTROL LTD,490,WALWORTH,PEST CONTROL,5902253197
02.06.2017,RESIDENT SERVICES,A & H PEST CONTROL LTD,790,WALWORTH,PEST CONTROL,5902253059
03.06.2017,ADULT SOCIAL CARE,PELLE LTD,"1,000.00",SAFEGUARDING TEAM,OTHER CONTRACTORS,5902252614
03.06.2017,CHILDREN'S SERVICES,REGIONAL FOSTER PLACEMENTS (SW) LTD,700,FURTHER EDUCATION SUPPORT,OTHER PAYMENTS FOR CLIENTS,5902253031
03.06.2017,CHILDREN'S SERVICES,THE LITERACY TREE LTD,"1,250.00",PRIMARY ACHIEVEMENT,CONSULTANTS SERVICES,5902253042
03.06.2017,ENVIRONMENT AND LEISURE,CONWAY AECOM LTD,294.95,CAPITAL PS (LEISURE),CONSTRUCTION FEES  - EXTERNAL,5902252833
03.06.2017,ENVIRONMENT DIRECTORATE,CROWN OIL UK,320,SANDGATE STREET,VEHICLE FUEL,5902252705
03.06.2017,ENVIRONMENT DIRECTORATE,CROWN OIL UK,960.07,SANDGATE STREET,VEHICLE FUEL,5902252705
03.06.2017,F & C S EXCLUDING CORPORATE BUDGETS,NORTHGATE PUBLIC SERVICES (UK) LTD,"3,131.85",ADMINISTRATIVE SUPPORT,SOFTWARE,5902253156
04.06.2017,CHIEF EXECUTIVE,FS ENTERTAINMENTS  LTD,606.5,CAPITAL PS (REGEN),CONSTRUCTION FEES,5902252731
04.06.2017,CHILDREN'S SERVICES,WESTCO TRADING LTD,"1,765.00",YOS SUPPORT,MARKETING & PUBLICITY SERVICES,5902253160
04.06.2017,COMMISSIONING & CENTRAL,NCER CIC,"1,164.94",ICT APPLICATIONS,SOFTWARE,5902252826
04.06.2017,COMMISSIONING & CENTRAL,NCER CIC,"7,043.44",ICT APPLICATIONS,SOFTWARE,5902252826
04.06.2017,COMMUNITIES,LOOK AHEAD CARE AND SUPPORT LTD,829,NO RECOURSE TO PUBLIC FUNDS,ACCOMMODATION CHARGES,5902253071
04.06.2017,CUSTOMER EXPERIENCE HGF,JOANNE MCELROY,300,COMPLAINTS,PROFESSIONAL FEES,5902253175
04.06.2017,ELECTORAL SVCES,IDOX SOFWARE LIMITED,"12,750.00",LOCAL LAND CHARGES,COMPUTER MAINTENANCE,5902252755
04.06.2017,REGENERATION,GERALD EVE LLP,"2,250.00",MISC INDUSTRIAL PROPERTIES,PROFESSIONAL FEES,5902253056
04.06.2017,REGENERATION,SOUTHERN ELECTRIC CONTRACTING LTD,488.75,TOWER WORKSHOPS,BUILDING R&M,5902253052
05.06.2017,ADULT SOCIAL CARE,HC-ONE LTD (THE ORCHARD CARE HOME),"-9,131.18", OP CARE PACKAGES,NURSING PLACEMENTS FEES,2102570250
05.06.2017,ADULT SOCIAL CARE,SOUTH LONDON & MAUDSLEY HOSPITAL,"1,251.95",DIR OF ASC,PROFESSIONAL FEES,5902253244
05.06.2017,ADULT SOCIAL CARE,CAMBRIDGE HOUSE & TALBOT,420,LD LTS 18-64,DAYCARE,2102678078
05.06.2017,ADULT SOCIAL CARE,CAMBRIDGE HOUSE & TALBOT,910,LD LTS 18-64,DAYCARE,2102678075
05.06.2017,ADULT SOCIAL CARE,CAMBRIDGE HOUSE & TALBOT,910,LD LTS 18-64,DAYCARE,2102678076
05.06.2017,ADULT SOCIAL CARE,CAMBRIDGE HOUSE & TALBOT,"1,001.00",LD LTS 18-64,DAYCARE,2102678100
05.06.2017,ADULT SOCIAL CARE,CAMBRIDGE HOUSE & TALBOT,"2,002.00",LD LTS 18-64,DAYCARE,2102678105
05.06.2017,ADULT SOCIAL CARE,KENT HARRIER PROPERTY MANAGEMENT,"1,403.00",LD LTS 18-64,EXTERNAL AGENCIES AND BODIES,2102677978
05.06.2017,ADULT SOCIAL CARE,KENT HARRIER PROPERTY MANAGEMENT,"1,580.00",LD LTS 18-64,EXTERNAL AGENCIES AND BODIES,2102677980
05.06.2017,ADULT SOCIAL CARE,THE NEW SHOOTS,375,LD LTS 18-64,DAYCARE,2102678068
05.06.2017,ADULT SOCIAL CARE,WII CARE LIMITED,"2,914.30",LD LTS 18-64,HOMECARE - SPOT,2102678065
05.06.2017,ADULT SOCIAL CARE,HOUSING & CARE 21,397.88,LD LTS 65+,SUPPORTED LIVING,2102678064
05.06.2017,ADULT SOCIAL CARE,PROFAD CARE AGENCY,539.77,MEM LTS 65+,HOMECARE - SPOT,2102677990
05.06.2017,ADULT SOCIAL CARE,WESTMINSTER HOMECARE LTD,391.44,MEM LTS 65+,HOMECARE - SPOT,2102678009
05.06.2017,ADULT SOCIAL CARE,WESTMINSTER HOMECARE LTD,671.28,MEM LTS 65+,HOMECARE - SPOT,2102678079
05.06.2017,ADULT SOCIAL CARE,WESTMINSTER HOMECARE LTD,692.26,MEM LTS 65+,HOMECARE - SPOT,2102677994
05.06.2017,ADULT SOCIAL CARE,PROFAD CARE AGENCY,668.04,MH LTS 18-64,HOMECARE - SPOT,2102678023
05.06.2017,ADULT SOCIAL CARE,PROFAD CARE AGENCY,620.96,MH LTS 65+,HOMECARE - SPOT,2102678032
05.06.2017,ADULT SOCIAL CARE,WESTMINSTER HOMECARE LTD,776.17,MH LTS 65+,HOMECARE - SPOT,2102677986
05.06.2017,ADULT SOCIAL CARE,WESTMINSTER HOMECARE LTD,783.16,MH LTS 65+,HOMECARE - SPOT,2102678082
05.06.2017,ADULT SOCIAL CARE,PROFAD CARE AGENCY,431.68,PHY LTS 18-64,HOMECARE - C&V,2102678017
05.06.2017,ADULT SOCIAL CARE,PROFAD CARE AGENCY,"2,266.60",PHY LTS 18-64,HOMECARE - SPOT,2102678016
05.06.2017,ADULT SOCIAL CARE,WESTMINSTER HOMECARE LTD,503.28,PHY LTS 18-64,HOMECARE - SPOT,2102678072
05.06.2017,ADULT SOCIAL CARE,WESTMINSTER HOMECARE LTD,531.37,PHY LTS 18-64,HOMECARE - SPOT,2102678054
05.06.2017,ADULT SOCIAL CARE,WESTMINSTER HOMECARE LTD,531.37,PHY LTS 18-64,HOMECARE - SPOT,2102678083
05.06.2017,ADULT SOCIAL CARE,WESTMINSTER HOMECARE LTD,573.18,PHY LTS 18-64,HOMECARE - SPOT,2102678010
05.06.2017,ADULT SOCIAL CARE,WESTMINSTER HOMECARE LTD,601.14,PHY LTS 18-64,HOMECARE - SPOT,2102678069
05.06.2017,ADULT SOCIAL CARE,WESTMINSTER HOMECARE LTD,793.62,PHY LTS 18-64,HOMECARE - SPOT,2102678103
05.06.2017,ADULT SOCIAL CARE,WESTMINSTER HOMECARE LTD,797,PHY LTS 18-64,HOMECARE - SPOT,2102678012
05.06.2017,ADULT SOCIAL CARE,WESTMINSTER HOMECARE LTD,797,PHY LTS 18-64,HOMECARE - SPOT,2102678070
05.06.2017,ADULT SOCIAL CARE,WESTMINSTER HOMECARE LTD,867.04,PHY LTS 18-64,HOMECARE - SPOT,2102678001
05.06.2017,ADULT SOCIAL CARE,WESTMINSTER HOMECARE LTD,"2,464.34",PHY LTS 18-64,HOMECARE - SPOT,2102678090
05.06.2017,ADULT SOCIAL CARE,WESTMINSTER HOMECARE LTD,"2,597.15",PHY LTS 18-64,HOMECARE - SPOT,2102678024
05.06.2017,ADULT SOCIAL CARE,CULTURE CARE AGENCY,304.5,PHY LTS 65+,HOMECARE - SPOT,2102678074
05.06.2017,ADULT SOCIAL CARE,PROFAD CARE AGENCY,283.36,PHY LTS 65+,HOMECARE - SPOT,2102678060
05.06.2017,ADULT SOCIAL CARE,PROFAD CARE AGENCY,371.38,PHY LTS 65+,HOMECARE - SPOT,2102678038
05.06.2017,ADULT SOCIAL CARE,PROFAD CARE AGENCY,389.11,PHY LTS 65+,HOMECARE - SPOT,2102678014
05.06.2017,ADULT SOCIAL CARE,PROFAD CARE AGENCY,397.98,PHY LTS 65+,HOMECARE - SPOT,2102678036
05.06.2017,ADULT SOCIAL CARE,PROFAD CARE AGENCY,431.68,PHY LTS 65+,HOMECARE - SPOT,2102678049
05.06.2017,ADULT SOCIAL CARE,PROFAD CARE AGENCY,462.33,PHY LTS 65+,HOMECARE - SPOT,2102678019
05.06.2017,ADULT SOCIAL CARE,PROFAD CARE AGENCY,593.86,PHY LTS 65+,HOMECARE - SPOT,2102678006
05.06.2017,ADULT SOCIAL CARE,PROFAD CARE AGENCY,769.28,PHY LTS 65+,HOMECARE - SPOT,2102678020
05.06.2017,ADULT SOCIAL CARE,PROFAD CARE AGENCY,917.8,PHY LTS 65+,HOMECARE - SPOT,2102678027
05.06.2017,ADULT SOCIAL CARE,PROFAD CARE AGENCY,"3,089.48",PHY LTS 65+,HOMECARE - SPOT,2102677996
05.06.2017,ADULT SOCIAL CARE,SWK DISABLEMENT ASSN,516.8,PHY LTS 65+,HOMECARE - C&V,2102678028
05.06.2017,ADULT SOCIAL CARE,SWK DISABLEMENT ASSN,641.52,PHY LTS 65+,HOMECARE - SPOT,2102678022
05.06.2017,ADULT SOCIAL CARE,SWK DISABLEMENT ASSN,874,PHY LTS 65+,HOMECARE - SPOT,2102677984
05.06.2017,ADULT SOCIAL CARE,SWK DISABLEMENT ASSN,887.04,PHY LTS 65+,HOMECARE - SPOT,2102678033
05.06.2017,ADULT SOCIAL CARE,SWK DISABLEMENT ASSN,891,PHY LTS 65+,HOMECARE - SPOT,2102678021
05.06.2017,ADULT SOCIAL CARE,SWK DISABLEMENT ASSN,995.8,PHY LTS 65+,HOMECARE - C&V,2102678052
05.06.2017,ADULT SOCIAL CARE,SWK DISABLEMENT ASSN,"1,702.40",PHY LTS 65+,HOMECARE - C&V,2102678047
05.06.2017,ADULT SOCIAL CARE,SWK DISABLEMENT ASSN,"2,705.60",PHY LTS 65+,HOMECARE - SPOT,2102678018
05.06.2017,ADULT SOCIAL CARE,WESTMINSTER HOMECARE LTD,293.72,PHY LTS 65+,HOMECARE - SPOT,2102678008
05.06.2017,ADULT SOCIAL CARE,WESTMINSTER HOMECARE LTD,293.72,PHY LTS 65+,HOMECARE - SPOT,2102678071
05.06.2017,ADULT SOCIAL CARE,WESTMINSTER HOMECARE LTD,349.55,PHY LTS 65+,HOMECARE - SPOT,2102678025
05.06.2017,ADULT SOCIAL CARE,WESTMINSTER HOMECARE LTD,412.51,PHY LTS 65+,HOMECARE - SPOT,2102678029
05.06.2017,ADULT SOCIAL CARE,WESTMINSTER HOMECARE LTD,437,PHY LTS 65+,HOMECARE - SPOT,2102678035
05.06.2017,ADULT SOCIAL CARE,WESTMINSTER HOMECARE LTD,461.47,PHY LTS 65+,HOMECARE - SPOT,2102678094
05.06.2017,ADULT SOCIAL CARE,WESTMINSTER HOMECARE LTD,506.91,PHY LTS 65+,HOMECARE - SPOT,2102678011
05.06.2017,ADULT SOCIAL CARE,WESTMINSTER HOMECARE LTD,510.41,PHY LTS 65+,HOMECARE - SPOT,2102678087
05.06.2017,ADULT SOCIAL CARE,WESTMINSTER HOMECARE LTD,517.4,PHY LTS 65+,HOMECARE - SPOT,2102678034
05.06.2017,ADULT SOCIAL CARE,WESTMINSTER HOMECARE LTD,517.4,PHY LTS 65+,HOMECARE - SPOT,2102678101
05.06.2017,ADULT SOCIAL CARE,WESTMINSTER HOMECARE LTD,587.16,PHY LTS 65+,HOMECARE - SPOT,2102677988
05.06.2017,ADULT SOCIAL CARE,WESTMINSTER HOMECARE LTD,587.16,PHY LTS 65+,HOMECARE - SPOT,2102678097
05.06.2017,ADULT SOCIAL CARE,WESTMINSTER HOMECARE LTD,611.71,PHY LTS 65+,HOMECARE - SPOT,2102678089
05.06.2017,ADULT SOCIAL CARE,WESTMINSTER HOMECARE LTD,622.25,PHY LTS 65+,HOMECARE - SPOT,2102678092
05.06.2017,ADULT SOCIAL CARE,WESTMINSTER HOMECARE LTD,629.13,PHY LTS 65+,HOMECARE - SPOT,2102678063
05.06.2017,ADULT SOCIAL CARE,WESTMINSTER HOMECARE LTD,671.16,PHY LTS 65+,HOMECARE - SPOT,2102678000
05.06.2017,ADULT SOCIAL CARE,WESTMINSTER HOMECARE LTD,671.16,PHY LTS 65+,HOMECARE - SPOT,2102678081
05.06.2017,ADULT SOCIAL CARE,WESTMINSTER HOMECARE LTD,699.04,PHY LTS 65+,HOMECARE - SPOT,2102678084
05.06.2017,ADULT SOCIAL CARE,WESTMINSTER HOMECARE LTD,741.08,PHY LTS 65+,HOMECARE - SPOT,2102678026
05.06.2017,ADULT SOCIAL CARE,WESTMINSTER HOMECARE LTD,741.08,PHY LTS 65+,HOMECARE - SPOT,2102678102
05.06.2017,ADULT SOCIAL CARE,WESTMINSTER HOMECARE LTD,880.88,PHY LTS 65+,HOMECARE - C&V,2102678013
05.06.2017,ADULT SOCIAL CARE,WESTMINSTER HOMECARE LTD,880.88,PHY LTS 65+,HOMECARE - C&V,2102678061
05.06.2017,ADULT SOCIAL CARE,WESTMINSTER HOMECARE LTD,880.88,PHY LTS 65+,HOMECARE - C&V,2102678104
05.06.2017,ADULT SOCIAL CARE,WESTMINSTER HOMECARE LTD,887.87,PHY LTS 65+,HOMECARE - C&V,2102678098
05.06.2017,ADULT SOCIAL CARE,WESTMINSTER HOMECARE LTD,908.8,PHY LTS 65+,HOMECARE - SPOT,2102678003
05.06.2017,ADULT SOCIAL CARE,WESTMINSTER HOMECARE LTD,908.8,PHY LTS 65+,HOMECARE - SPOT,2102678073
05.06.2017,ADULT SOCIAL CARE,WESTMINSTER HOMECARE LTD,978.6,PHY LTS 65+,HOMECARE - SPOT,2102678007
05.06.2017,ADULT SOCIAL CARE,WESTMINSTER HOMECARE LTD,978.6,PHY LTS 65+,HOMECARE - SPOT,2102678088
05.06.2017,ADULT SOCIAL CARE,WESTMINSTER HOMECARE LTD,"1,097.43",PHY LTS 65+,HOMECARE - SPOT,2102678059
05.06.2017,ADULT SOCIAL CARE,WESTMINSTER HOMECARE LTD,"1,097.43",PHY LTS 65+,HOMECARE - SPOT,2102678086
05.06.2017,ADULT SOCIAL CARE,WESTMINSTER HOMECARE LTD,"1,775.72",PHY LTS 65+,HOMECARE - SPOT,2102678096
05.06.2017,ADULT SOCIAL CARE,WESTMINSTER HOMECARE LTD,"1,873.60",PHY LTS 65+,HOMECARE - SPOT,2102678040
05.06.2017,ADULT SOCIAL CARE,WESTMINSTER HOMECARE LTD,"1,957.20",PHY LTS 65+,HOMECARE - SPOT,2102678048
05.06.2017,ADULT SOCIAL CARE,WESTMINSTER HOMECARE LTD,"1,999.56",PHY LTS 65+,HOMECARE - SPOT,2102677982
05.06.2017,ADULT SOCIAL CARE,WESTMINSTER HOMECARE LTD,"1,999.56",PHY LTS 65+,HOMECARE - SPOT,2102678085
05.06.2017,ADULT SOCIAL CARE,WESTMINSTER HOMECARE LTD,"2,125.24",PHY LTS 65+,HOMECARE - SPOT,2102678077
05.06.2017,ADULT SOCIAL CARE,WESTMINSTER HOMECARE LTD,"2,139.22",PHY LTS 65+,HOMECARE - C&V,2102678095
05.06.2017,ADULT SOCIAL CARE,WESTMINSTER HOMECARE LTD,"2,153.20",PHY LTS 65+,HOMECARE - SPOT,2102678057
05.06.2017,ADULT SOCIAL CARE,WESTMINSTER HOMECARE LTD,"2,153.20",PHY LTS 65+,HOMECARE - C&V,2102678058
05.06.2017,ADULT SOCIAL CARE,WESTMINSTER HOMECARE LTD,"2,314.00",PHY LTS 65+,HOMECARE - SPOT,2102678091
05.06.2017,ADULT SOCIAL CARE,WESTMINSTER HOMECARE LTD,"2,320.96",PHY LTS 65+,HOMECARE - SPOT,2102677992
05.06.2017,ADULT SOCIAL CARE,PROFAD CARE AGENCY,573.34,PHY STS 65+,HOMECARE - IC,2102678037
05.06.2017,ADULT SOCIAL CARE,PROFAD CARE AGENCY,526.32,SEN LTS 65+,HOMECARE - SPOT,2102678044
05.06.2017,ADULT SOCIAL CARE,PROFAD CARE AGENCY,290.17,SOCIAL ISOLATION,HOMECARE - SPOT,2102678004
05.06.2017,ADULT SOCIAL CARE,KAIROS COMMUNITY TRUST,"2,080.00",SUB LTS 18-64,DAYCARE,2102678067
05.06.2017,ADULT SOCIAL CARE,PROFAD CARE AGENCY,"1,120.04",SUB LTS 18-64,HOMECARE - SPOT,2102678039
05.06.2017,ADULT SOCIAL CARE,WESTMINSTER DRUG PROJECT,800.04,SUB LTS 18-64,DAYCARE,2102678066
05.06.2017,ADULT SOCIAL CARE,PROFAD CARE AGENCY,"1,699.88",SUB LTS 65+,HOMECARE - SPOT,2102678002
05.06.2017,ASSET MANAGEMENT,STEPHEN EVANS,800,DISREPAIR,LEGAL FEES & COURT COSTS,2102673786
05.06.2017,ASSET MANAGEMENT,EG TRAINING SERVICES,975,ENG CONTRACTS,TRAINING,5902253254
05.06.2017,BERMONDSEY AND ROTHERHITHE COMMUNITY COUNCIL,ALWAYS KREATIVE,"1,897.00",,GRANT,CHEQUE PAYMENT
05.06.2017,CENTRAL FUNCTIONS,BIFFA WASTE SERVICES LTD,"1,028.69",COMMERCIAL PROPERTIES,REFUSE COLLECTION CONTRACT,5902253275
05.06.2017,CENTRAL FUNCTIONS,VEOLIA ES (UK)LTD,"153,083.96",HEATING ACCOUNT,GAS,5902253252
05.06.2017,CHIEF EXECUTIVE,CONWAY AECOM LTD,"2,096.83",CAPITAL PS (REGEN),CONSTRUCTION MAIN CONTRACT -CERTIFICATED,5902253223
05.06.2017,CHIEF EXECUTIVE,CONWAY AECOM LTD,"4,080.00",CAPITAL PS (REGEN),CONSTRUCTION MAIN CONTRACT -CERTIFICATED,5902253314
05.06.2017,CHIEF EXECUTIVE,CONWAY AECOM LTD,"31,618.31",CAPITAL PS (REGEN),CONSTRUCTION MAIN CONTRACT -CERTIFICATED,5902253312
05.06.2017,CHIEF EXECUTIVE,GVA GRIMLEY LLP,"9,195.35",CAPITAL PS (REGEN),CONSTRUCTION FEES  - EXTERNAL,5902253248
05.06.2017,CHIEF EXECUTIVE,GVA GRIMLEY LLP,"9,945.35",CAPITAL PS (REGEN),CONSTRUCTION FEES  - EXTERNAL,5902253247
05.06.2017,CHIEF EXECUTIVE,GVA GRIMLEY LLP,"10,195.35",CAPITAL PS (REGEN),CONSTRUCTION FEES  - EXTERNAL,5902253250
05.06.2017,CHIEF EXECUTIVE'S OFFICE,MUSICITY LTD,"8,300.00",BUSINESS SUPPORT,GRANTS,5902253268
05.06.2017,CHIEF EXECUTIVE'S OFFICE,J C CONSULTANT SERVICES LTD,"8,000.00",CHIEF EXEC'S OFFICE,GRANTS,5902253216
05.06.2017,CHIEF EXECUTIVE'S OFFICE,J C CONSULTANT SERVICES LTD,"8,500.00",CHIEF EXEC'S OFFICE,GRANTS,5902253311
05.06.2017,CHILDREN'S SERVICES,AVOCET SOCIAL CARE LTD,"1,750.00",FOSTERING  PRAC GROUPS,PROFESSIONAL FEES,5902253255
05.06.2017,CHILDREN'S SERVICES,LONDON BOROUGH OF LAMBETH,252.43,HOME 2 SCHOOL TRANSPORT,M&M ALLOWANCE CO-OPS,5902242395
05.06.2017,CHILDREN'S SERVICES,LONDON BOROUGH OF LAMBETH,352.5,HOME 2 SCHOOL TRANSPORT,M&M ALLOWANCE CO-OPS,5902242372
05.06.2017,CHILDREN'S SERVICES,LONDON BOROUGH OF LAMBETH,"5,048.64",HOME 2 SCHOOL TRANSPORT,M&M ALLOWANCE CO-OPS,5902242395
05.06.2017,CHILDREN'S SERVICES,LONDON BOROUGH OF LAMBETH,"7,050.00",HOME 2 SCHOOL TRANSPORT,M&M ALLOWANCE CO-OPS,5902242372
05.06.2017,CHILDREN'S SERVICES,1ST PLACE CHILDREN & PARENTS CENTRE,"9,140.63",NURSERY ED GRANT 2 Y Y O,GRANTS,2102678210
05.06.2017,CHILDREN'S SERVICES,1ST PLACE CHILDREN & PARENTS CENTRE,"18,281.25",NURSERY ED GRANT 2 Y Y O,GRANTS,2102678211
05.06.2017,CHILDREN'S SERVICES,ARC COMMUNITY TRUSTEES,"3,046.88",NURSERY ED GRANT 2 Y Y O,GRANTS,2102678212
05.06.2017,CHILDREN'S SERVICES,ARC COMMUNITY TRUSTEES,"3,656.25",NURSERY ED GRANT 2 Y Y O,GRANTS,2102678263
05.06.2017,CHILDREN'S SERVICES,ASQUITH NURSERIES LTD,"1,968.75",NURSERY ED GRANT 2 Y Y O,GRANTS,2102678255
05.06.2017,CHILDREN'S SERVICES,BERMONDSEY COMMUNITY NURSERY,"20,109.38",NURSERY ED GRANT 2 Y Y O,GRANTS,2102678214
05.06.2017,CHILDREN'S SERVICES,BRIGHT EXPLORERS DAY NURSERY,"5,484.38",NURSERY ED GRANT 2 Y Y O,GRANTS,2102678217
05.06.2017,CHILDREN'S SERVICES,BRIGHT ORIGIN NURSERY,"1,218.75",NURSERY ED GRANT 2 Y Y O,GRANTS,2102678218
05.06.2017,CHILDREN'S SERVICES,BUDS DAY NURSERY LTD,"4,021.88",NURSERY ED GRANT 2 Y Y O,GRANTS,2102678219
05.06.2017,CHILDREN'S SERVICES,CAMBERWELL AFTER SCHOOL PROJECT,"6,093.75",NURSERY ED GRANT 2 Y Y O,GRANTS,2102678220
05.06.2017,CHILDREN'S SERVICES,COLOURBOX CHILDCARE,"2,437.50",NURSERY ED GRANT 2 Y Y O,GRANTS,2102678222
05.06.2017,CHILDREN'S SERVICES,CREATIVE MINDS CARE AND EDUCATION,"1,828.13",NURSERY ED GRANT 2 Y Y O,GRANTS,2102678223
05.06.2017,CHILDREN'S SERVICES,CRYSTAL NURSERY (UK),"1,218.75",NURSERY ED GRANT 2 Y Y O,GRANTS,2102678239
05.06.2017,CHILDREN'S SERVICES,CTY NURSERY LTD,"12,562.50",NURSERY ED GRANT 2 Y Y O,GRANTS,2102678224
05.06.2017,CHILDREN'S SERVICES,DESTINY DAY NURSERY,"2,437.50",NURSERY ED GRANT 2 Y Y O,GRANTS,2102678258
05.06.2017,CHILDREN'S SERVICES,DESTINY DAY NURSERY,"7,312.50",NURSERY ED GRANT 2 Y Y O,GRANTS,2102678225
05.06.2017,CHILDREN'S SERVICES,DESTINY KIDS NURSERY LTD,"2,437.50",NURSERY ED GRANT 2 Y Y O,GRANTS,2102678226
05.06.2017,CHILDREN'S SERVICES,DULWICH MONTESSORI NURSERY SCHOOL,"3,656.25",NURSERY ED GRANT 2 Y Y O,GRANTS,2102678227
05.06.2017,CHILDREN'S SERVICES,DULWICH OAKS MONTESSORI NURSERY SCHOOL,"14,015.63",NURSERY ED GRANT 2 Y Y O,GRANTS,2102678228
05.06.2017,CHILDREN'S SERVICES,DULWICH VILLAGE PRE-SCHOOL,"2,437.50",NURSERY ED GRANT 2 Y Y O,GRANTS,2102678229
05.06.2017,CHILDREN'S SERVICES,DYASON PRE-SCHOOL,"4,875.00",NURSERY ED GRANT 2 Y Y O,GRANTS,2102678230
05.06.2017,CHILDREN'S SERVICES,EAGLES FLIGHT MONTESSORI NURSERY,"1,218.75",NURSERY ED GRANT 2 Y Y O,GRANTS,2102678231
05.06.2017,CHILDREN'S SERVICES,EAST DULWICH COMMUNITY NURSERY ASSOCIATION,"2,437.50",NURSERY ED GRANT 2 Y Y O,GRANTS,2102678233
05.06.2017,CHILDREN'S SERVICES,ELEPHANT & CASTLE DAY NURSERY LTD,"6,703.13",NURSERY ED GRANT 2 Y Y O,GRANTS,2102678234
05.06.2017,CHILDREN'S SERVICES,FIRST CHOICE DAY NURSERY,"4,875.00",NURSERY ED GRANT 2 Y Y O,GRANTS,2102678209
05.06.2017,CHILDREN'S SERVICES,FOUNTAIN CHILDRENS CENTRE LIMITED,"4,875.00",NURSERY ED GRANT 2 Y Y O,GRANTS,2102678236
05.06.2017,CHILDREN'S SERVICES,GERMAN KINDERGARTEN LTD,"1,218.75",NURSERY ED GRANT 2 Y Y O,GRANTS,2102678237
05.06.2017,CHILDREN'S SERVICES,GODS GRACE DAYCARE,"7,312.50",NURSERY ED GRANT 2 Y Y O,GRANTS,2102678238
05.06.2017,CHILDREN'S SERVICES,GUMBOOTS COMMUNITY NURSERY,"4,290.00",NURSERY ED GRANT 2 Y Y O,GRANTS,2102678240
05.06.2017,CHILDREN'S SERVICES,HALFPINTS PRE-SCHOOL,"3,046.88",NURSERY ED GRANT 2 Y Y O,GRANTS,2102678241
05.06.2017,CHILDREN'S SERVICES,HAVILAH DAY CARE NURSERY,"3,046.88",NURSERY ED GRANT 2 Y Y O,GRANTS,2102678242
05.06.2017,CHILDREN'S SERVICES,HERMAN WHYTE T/A LITTLE CLIMBERS DAYCARE PROJECT,"2,343.75",NURSERY ED GRANT 2 Y Y O,GRANTS,2102678248
05.06.2017,CHILDREN'S SERVICES,JULIE THOMPSON,"1,218.75",NURSERY ED GRANT 2 Y Y O,GRANTS,2102678216
05.06.2017,CHILDREN'S SERVICES,K & O CHILDCARE LTD,"9,234.38",NURSERY ED GRANT 2 Y Y O,GRANTS,2102678244
05.06.2017,CHILDREN'S SERVICES,LILIES DAY NURSERY,"7,921.88",NURSERY ED GRANT 2 Y Y O,GRANTS,2102678246
05.06.2017,CHILDREN'S SERVICES,LITTLE JUNGLE NURSERY LIMITED,609.38,NURSERY ED GRANT 2 Y Y O,GRANTS,2102678249
05.06.2017,CHILDREN'S SERVICES,LITTLE PILLARS MONTESSORI LTD,"6,093.75",NURSERY ED GRANT 2 Y Y O,GRANTS,2102678250
05.06.2017,CHILDREN'S SERVICES,LOGICOUS LTD,"3,046.88",NURSERY ED GRANT 2 Y Y O,GRANTS,2102678213
05.06.2017,CHILDREN'S SERVICES,LONDON EARLY YEARS FOUNDATION,"8,531.25",NURSERY ED GRANT 2 Y Y O,GRANTS,2102678215
05.06.2017,CHILDREN'S SERVICES,MAGIC ROUNDABOUT NURSERIES LTD,"25,640.63",NURSERY ED GRANT 2 Y Y O,GRANTS,2102678252
05.06.2017,CHILDREN'S SERVICES,MATVIC VENTURES LTD T/A MAGIC MIND NURSERY & PRE-SCHOOL,"4,875.00",NURSERY ED GRANT 2 Y Y O,GRANTS,2102678251
05.06.2017,CHILDREN'S SERVICES,MAUREEN GARVIS,"1,125.00",NURSERY ED GRANT 2 Y Y O,GRANTS,2102678271
05.06.2017,CHILDREN'S SERVICES,MIATA EDUCATIONAL SERVICES LTD,"6,093.75",NURSERY ED GRANT 2 Y Y O,GRANTS,2102678232
05.06.2017,CHILDREN'S SERVICES,MONICA LINTON,270,NURSERY ED GRANT 2 Y Y O,GRANTS,2102678272
05.06.2017,CHILDREN'S SERVICES,NEW VISION DAY NURSERY,"3,656.25",NURSERY ED GRANT 2 Y Y O,GRANTS,2102678253
05.06.2017,CHILDREN'S SERVICES,NICKI DAY NURSERY LTD,"10,359.38",NURSERY ED GRANT 2 Y Y O,GRANTS,2102678254
05.06.2017,CHILDREN'S SERVICES,PATRICIA IBIRONKE T/A JOYFUL STAR NURSERY,"3,656.25",NURSERY ED GRANT 2 Y Y O,GRANTS,2102678243
05.06.2017,CHILDREN'S SERVICES,PLAYDAYS UK LTD,"2,437.50",NURSERY ED GRANT 2 Y Y O,GRANTS,2102678259
05.06.2017,CHILDREN'S SERVICES,ROCKINGHAM COMMUNITY NURSERY,"9,993.75",NURSERY ED GRANT 2 Y Y O,GRANTS,2102678256
05.06.2017,CHILDREN'S SERVICES,ROTHERHITHE PRIMARY SCHOOL,609.38,NURSERY ED GRANT 2 Y Y O,GRANTS,2102678257
05.06.2017,CHILDREN'S SERVICES,S R C COMMUNITY NURSERY,"4,875.00",NURSERY ED GRANT 2 Y Y O,GRANTS,2102678262
05.06.2017,CHILDREN'S SERVICES,SMART KIDS DAY NURSERY,"6,093.75",NURSERY ED GRANT 2 Y Y O,GRANTS,2102678260
05.06.2017,CHILDREN'S SERVICES,SMART START,609.38,NURSERY ED GRANT 2 Y Y O,GRANTS,2102678261
05.06.2017,CHILDREN'S SERVICES,ST JOHNS PRE SCHOOL,"2,437.50",NURSERY ED GRANT 2 Y Y O,GRANTS,2102678264
05.06.2017,CHILDREN'S SERVICES,ST JUDES PLAYGROUP,"3,046.88",NURSERY ED GRANT 2 Y Y O,GRANTS,2102678265
05.06.2017,CHILDREN'S SERVICES,ST MARY'S PRE-SCHOOL,609.38,NURSERY ED GRANT 2 Y Y O,GRANTS,2102678266
05.06.2017,CHILDREN'S SERVICES,SUCCESS ASSOCIATES,"6,093.75",NURSERY ED GRANT 2 Y Y O,GRANTS,2102678245
05.06.2017,CHILDREN'S SERVICES,TADWORTH PRE-SCHOOL,"3,046.88",NURSERY ED GRANT 2 Y Y O,GRANTS,2102678267
05.06.2017,CHILDREN'S SERVICES,THE BEECHES NURSERY GROUP LTD,"2,640.63",NURSERY ED GRANT 2 Y Y O,GRANTS,2102678235
05.06.2017,CHILDREN'S SERVICES,THE CHERRY TREE MONTESSORI NURSERY,"8,531.25",NURSERY ED GRANT 2 Y Y O,GRANTS,2102678221
05.06.2017,CHILDREN'S SERVICES,THE FRUIT TREE DAY NURSERY,"5,718.75",NURSERY ED GRANT 2 Y Y O,GRANTS,2102678268
05.06.2017,CHILDREN'S SERVICES,TINU ODEKU T/A LITTLE ANGELS CHILDCARE SERVICES,"4,265.63",NURSERY ED GRANT 2 Y Y O,GRANTS,2102678247
05.06.2017,CHILDREN'S SERVICES,VICTORY IN COMMUNITY RESOURCE CENTRE,"7,031.25",NURSERY ED GRANT 2 Y Y O,GRANTS,2102678269
05.06.2017,CHILDREN'S SERVICES,VIVY DAY NURSERY,"6,703.13",NURSERY ED GRANT 2 Y Y O,GRANTS,2102678270
05.06.2017,CHILDREN'S SERVICES,1ST PLACE CHILDREN & PARENTS CENTRE,"10,551.07",NURSURERY EDUCATION GRANT-3 Y.O.,GRANTS,2102678112
05.06.2017,CHILDREN'S SERVICES,1ST PLACE CHILDREN & PARENTS CENTRE,"40,264.64",NURSURERY EDUCATION GRANT-3 Y.O.,GRANTS,2102678111
05.06.2017,CHILDREN'S SERVICES,1ST PLACE CHILDREN & PARENTS CENTRE,"43,150.58",NURSURERY EDUCATION GRANT-3 Y.O.,GRANTS,2102678110
05.06.2017,CHILDREN'S SERVICES,A MEEHAN T/A HALFMOON MONTESSORI NURSERY,"45,639.02",NURSURERY EDUCATION GRANT-3 Y.O.,GRANTS,2102678154
05.06.2017,CHILDREN'S SERVICES,ANGEL OAK ACADEMY,"40,078.50",NURSURERY EDUCATION GRANT-3 Y.O.,GRANTS,2102678114
05.06.2017,CHILDREN'S SERVICES,ARC COMMUNITY TRUSTEES,"8,104.27",NURSURERY EDUCATION GRANT-3 Y.O.,GRANTS,2102678196
05.06.2017,CHILDREN'S SERVICES,ARC COMMUNITY TRUSTEES,"17,667.98",NURSURERY EDUCATION GRANT-3 Y.O.,GRANTS,2102678113
05.06.2017,CHILDREN'S SERVICES,ARK SCHOOLS T/A GLOBE ACADEMY,"28,573.35",NURSURERY EDUCATION GRANT-3 Y.O.,GRANTS,2102678146
05.06.2017,CHILDREN'S SERVICES,ASQUITH NURSERIES LTD,"33,313.48",NURSURERY EDUCATION GRANT-3 Y.O.,GRANTS,2102678182
05.06.2017,CHILDREN'S SERVICES,BASCULE LTD,"9,922.58",NURSURERY EDUCATION GRANT-3 Y.O.,GRANTS,2102678179
05.06.2017,CHILDREN'S SERVICES,BASCULE LTD,"17,125.88",NURSURERY EDUCATION GRANT-3 Y.O.,GRANTS,2102678178
05.06.2017,CHILDREN'S SERVICES,BEORMUND COMMUNITY CENTRE,"18,608.85",NURSURERY EDUCATION GRANT-3 Y.O.,GRANTS,2102678157
05.06.2017,CHILDREN'S SERVICES,BERMONDSEY COMMUNITY NURSERY,"24,737.78",NURSURERY EDUCATION GRANT-3 Y.O.,GRANTS,2102678117
05.06.2017,CHILDREN'S SERVICES,BRIGHT EXPLORERS DAY NURSERY,"6,666.08",NURSURERY EDUCATION GRANT-3 Y.O.,GRANTS,2102678121
05.06.2017,CHILDREN'S SERVICES,BRIGHT HORIZONS FAMILY SOLUTIONS,"8,428.68",NURSURERY EDUCATION GRANT-3 Y.O.,GRANTS,2102678122
05.06.2017,CHILDREN'S SERVICES,BRIGHT HORIZONS FAMILY SOLUTIONS,"18,603.00",NURSURERY EDUCATION GRANT-3 Y.O.,GRANTS,2102678135
05.06.2017,CHILDREN'S SERVICES,BRIGHT ORIGIN NURSERY,"1,404.00",NURSURERY EDUCATION GRANT-3 Y.O.,GRANTS,2102678123
05.06.2017,CHILDREN'S SERVICES,BUDS DAY NURSERY LTD,"21,766.16",NURSURERY EDUCATION GRANT-3 Y.O.,GRANTS,2102678124
05.06.2017,CHILDREN'S SERVICES,CAMBERWELL AFTER SCHOOL PROJECT,"11,374.35",NURSURERY EDUCATION GRANT-3 Y.O.,GRANTS,2102678126
05.06.2017,CHILDREN'S SERVICES,CEDAR HOUSE DAY NURSERY,"16,302.00",NURSURERY EDUCATION GRANT-3 Y.O.,GRANTS,2102678127
05.06.2017,CHILDREN'S SERVICES,COLOURBOX CHILDCARE,"2,622.75",NURSURERY EDUCATION GRANT-3 Y.O.,GRANTS,2102678129
05.06.2017,CHILDREN'S SERVICES,CREATIVE MINDS CARE AND EDUCATION,"20,688.45",NURSURERY EDUCATION GRANT-3 Y.O.,GRANTS,2102678130
05.06.2017,CHILDREN'S SERVICES,CRYSTAL NURSERY (UK),"17,855.18",NURSURERY EDUCATION GRANT-3 Y.O.,GRANTS,2102678149
05.06.2017,CHILDREN'S SERVICES,CTY NURSERY LTD,"26,840.78",NURSURERY EDUCATION GRANT-3 Y.O.,GRANTS,2102678131
05.06.2017,CHILDREN'S SERVICES,DESTINY DAY NURSERY,"7,496.48",NURSURERY EDUCATION GRANT-3 Y.O.,GRANTS,2102678132
05.06.2017,CHILDREN'S SERVICES,DESTINY DAY NURSERY,"8,422.05",NURSURERY EDUCATION GRANT-3 Y.O.,GRANTS,2102678190
05.06.2017,CHILDREN'S SERVICES,DESTINY KIDS NURSERY LTD,"8,913.45",NURSURERY EDUCATION GRANT-3 Y.O.,GRANTS,2102678133
05.06.2017,CHILDREN'S SERVICES,DULWICH MONTESSORI NURSERY SCHOOL,"26,423.61",NURSURERY EDUCATION GRANT-3 Y.O.,GRANTS,2102678134
05.06.2017,CHILDREN'S SERVICES,DULWICH OAKS MONTESSORI NURSERY SCHOOL,"52,723.97",NURSURERY EDUCATION GRANT-3 Y.O.,GRANTS,2102678136
05.06.2017,CHILDREN'S SERVICES,DULWICH VILLAGE PRE-SCHOOL,"18,323.18",NURSURERY EDUCATION GRANT-3 Y.O.,GRANTS,2102678137
05.06.2017,CHILDREN'S SERVICES,DYASON PRE-SCHOOL,"13,849.88",NURSURERY EDUCATION GRANT-3 Y.O.,GRANTS,2102678138
05.06.2017,CHILDREN'S SERVICES,EAGLES FLIGHT MONTESSORI NURSERY,"1,343.55",NURSURERY EDUCATION GRANT-3 Y.O.,GRANTS,2102678139
05.06.2017,CHILDREN'S SERVICES,EAST DULWICH COMMUNITY NURSERY ASSOCIATION,"15,929.55",NURSURERY EDUCATION GRANT-3 Y.O.,GRANTS,2102678141
05.06.2017,CHILDREN'S SERVICES,ELEPHANT & CASTLE DAY NURSERY LTD,"22,528.42",NURSURERY EDUCATION GRANT-3 Y.O.,GRANTS,2102678142
05.06.2017,CHILDREN'S SERVICES,EXCEL CHILD CARE SERVICES LTD,"32,640.08",NURSURERY EDUCATION GRANT-3 Y.O.,GRANTS,2102678143
05.06.2017,CHILDREN'S SERVICES,FIRST CHOICE DAY NURSERY,"18,352.43",NURSURERY EDUCATION GRANT-3 Y.O.,GRANTS,2102678109
05.06.2017,CHILDREN'S SERVICES,FOUNTAIN CHILDRENS CENTRE LIMITED,"15,493.73",NURSURERY EDUCATION GRANT-3 Y.O.,GRANTS,2102678145
05.06.2017,CHILDREN'S SERVICES,GODS GRACE DAYCARE,"8,119.80",NURSURERY EDUCATION GRANT-3 Y.O.,GRANTS,2102678147
05.06.2017,CHILDREN'S SERVICES,GOOSE GREEN PRIMARY AND NURSERY SCHOOL,"13,132.95",NURSURERY EDUCATION GRANT-3 Y.O.,GRANTS,2102678148
05.06.2017,CHILDREN'S SERVICES,GUMBOOTS COMMUNITY NURSERY,"45,869.66",NURSURERY EDUCATION GRANT-3 Y.O.,GRANTS,2102678150
05.06.2017,CHILDREN'S SERVICES,GUYS & ST THOMAS NHS FOUNDATION TRUST,"10,034.70",NURSURERY EDUCATION GRANT-3 Y.O.,GRANTS,2102678151
05.06.2017,CHILDREN'S SERVICES,HALFPINTS PRE-SCHOOL,"10,463.70",NURSURERY EDUCATION GRANT-3 Y.O.,GRANTS,2102678153
05.06.2017,CHILDREN'S SERVICES,HARRIS PRIMARY ACADEMY PECKHAM PARK,"18,998.93",NURSURERY EDUCATION GRANT-3 Y.O.,GRANTS,2102678152
05.06.2017,CHILDREN'S SERVICES,HAVILAH DAY CARE NURSERY,"6,808.43",NURSURERY EDUCATION GRANT-3 Y.O.,GRANTS,2102678155
05.06.2017,CHILDREN'S SERVICES,HEAVENLY ANGELS LTD T/A BANANA MOON DAY NURSERY,"1,526.25",NURSURERY EDUCATION GRANT-3 Y.O.,GRANTS,2102678116
05.06.2017,CHILDREN'S SERVICES,HERMAN WHYTE T/A LITTLE CLIMBERS DAYCARE PROJECT,"6,591.00",NURSURERY EDUCATION GRANT-3 Y.O.,GRANTS,2102678166
05.06.2017,CHILDREN'S SERVICES,JAMES ALLEN GIRLS SCHOOL,"2,159.40",NURSURERY EDUCATION GRANT-3 Y.O.,GRANTS,2102678158
05.06.2017,CHILDREN'S SERVICES,JOHN DONNE PRIMARY SCHOOL,"35,847.83",NURSURERY EDUCATION GRANT-3 Y.O.,GRANTS,2102678159
05.06.2017,CHILDREN'S SERVICES,JULIE THOMPSON,"13,888.88",NURSURERY EDUCATION GRANT-3 Y.O.,GRANTS,2102678119
05.06.2017,CHILDREN'S SERVICES,K & O CHILDCARE LTD,"29,618.55",NURSURERY EDUCATION GRANT-3 Y.O.,GRANTS,2102678161
05.06.2017,CHILDREN'S SERVICES,KINGS COLLEGE NHS FOUNDATION TRUST,"19,839.70",NURSURERY EDUCATION GRANT-3 Y.O.,GRANTS,2102678162
05.06.2017,CHILDREN'S SERVICES,LILIES DAY NURSERY,"50,479.65",NURSURERY EDUCATION GRANT-3 Y.O.,GRANTS,2102678164
05.06.2017,CHILDREN'S SERVICES,LITTLE FINGERS MONTESSORI 2,"12,029.55",NURSURERY EDUCATION GRANT-3 Y.O.,GRANTS,2102678167
05.06.2017,CHILDREN'S SERVICES,LITTLE JUNGLE NURSERY LIMITED,"37,914.40",NURSURERY EDUCATION GRANT-3 Y.O.,GRANTS,2102678168
05.06.2017,CHILDREN'S SERVICES,LITTLE PILLARS MONTESSORI LTD,"9,152.52",NURSURERY EDUCATION GRANT-3 Y.O.,GRANTS,2102678169
05.06.2017,CHILDREN'S SERVICES,LITTLE WINNERS DAY NURSERY 1,"13,244.40",NURSURERY EDUCATION GRANT-3 Y.O.,GRANTS,2102678170
05.06.2017,CHILDREN'S SERVICES,LOGICOUS LTD,"17,671.88",NURSURERY EDUCATION GRANT-3 Y.O.,GRANTS,2102678115
05.06.2017,CHILDREN'S SERVICES,LONDON EARLY YEARS FOUNDATION,"28,612.88",NURSURERY EDUCATION GRANT-3 Y.O.,GRANTS,2102678125
05.06.2017,CHILDREN'S SERVICES,LONDON EARLY YEARS FOUNDATION,"39,255.45",NURSURERY EDUCATION GRANT-3 Y.O.,GRANTS,2102678118
05.06.2017,CHILDREN'S SERVICES,LONDON EARLY YEARS FOUNDATION,"41,925.00",NURSURERY EDUCATION GRANT-3 Y.O.,GRANTS,2102678194
05.06.2017,CHILDREN'S SERVICES,MAGIC ROUNDABOUT NURSERIES LTD,"28,420.28",NURSURERY EDUCATION GRANT-3 Y.O.,GRANTS,2102678172
05.06.2017,CHILDREN'S SERVICES,MATVIC VENTURES LTD T/A MAGIC MIND NURSERY & PRE-SCHOOL,"18,133.05",NURSURERY EDUCATION GRANT-3 Y.O.,GRANTS,2102678171
05.06.2017,CHILDREN'S SERVICES,MIATA EDUCATIONAL SERVICES LTD,"10,938.53",NURSURERY EDUCATION GRANT-3 Y.O.,GRANTS,2102678140
05.06.2017,CHILDREN'S SERVICES,MOTHER GOOSE NURSERIES - GREENDALE FIELDS LTD,"12,511.88",NURSURERY EDUCATION GRANT-3 Y.O.,GRANTS,2102678174
05.06.2017,CHILDREN'S SERVICES,MOTHER GOOSE NURSERIES T/A MOTHER GOOSE,"13,032.83",NURSURERY EDUCATION GRANT-3 Y.O.,GRANTS,2102678173
05.06.2017,CHILDREN'S SERVICES,MOTHER GOOSE NURSERIES T/A MOTHER GOOSE NURSERIES (UPLAND ) LTD,"9,037.27",NURSURERY EDUCATION GRANT-3 Y.O.,GRANTS,2102678175
05.06.2017,CHILDREN'S SERVICES,MUSTARD SEED PRE-SCHOOL,"8,825.40",NURSURERY EDUCATION GRANT-3 Y.O.,GRANTS,2102678176
05.06.2017,CHILDREN'S SERVICES,NEW VISION DAY NURSERY,"27,917.93",NURSURERY EDUCATION GRANT-3 Y.O.,GRANTS,2102678180
05.06.2017,CHILDREN'S SERVICES,NICKI DAY NURSERY LTD,"24,121.50",NURSURERY EDUCATION GRANT-3 Y.O.,GRANTS,2102678181
05.06.2017,CHILDREN'S SERVICES,PATRICIA IBIRONKE T/A JOYFUL STAR NURSERY,"13,123.50",NURSURERY EDUCATION GRANT-3 Y.O.,GRANTS,2102678160
05.06.2017,CHILDREN'S SERVICES,PIPLINGS NURSERY ED,"8,484.45",NURSURERY EDUCATION GRANT-3 Y.O.,GRANTS,2102678183
05.06.2017,CHILDREN'S SERVICES,PLAYDAYS UK LTD,"13,582.73",NURSURERY EDUCATION GRANT-3 Y.O.,GRANTS,2102678191
05.06.2017,CHILDREN'S SERVICES,PLAYSHACK PLAYGROUP,"10,788.37",NURSURERY EDUCATION GRANT-3 Y.O.,GRANTS,2102678184
05.06.2017,CHILDREN'S SERVICES,PUDDLEDUCK NURSERY,"26,868.08",NURSURERY EDUCATION GRANT-3 Y.O.,GRANTS,2102678185
05.06.2017,CHILDREN'S SERVICES,REDRIFF PRIMARY SCHOOL,"36,081.83",NURSURERY EDUCATION GRANT-3 Y.O.,GRANTS,2102678186
05.06.2017,CHILDREN'S SERVICES,ROCKINGHAM COMMUNITY NURSERY,"31,901.55",NURSURERY EDUCATION GRANT-3 Y.O.,GRANTS,2102678187
05.06.2017,CHILDREN'S SERVICES,ROCKINGHAM PRE-SCHOOL,"4,948.12",NURSURERY EDUCATION GRANT-3 Y.O.,GRANTS,2102678188
05.06.2017,CHILDREN'S SERVICES,ROTHERHITHE PRIMARY SCHOOL,"19,450.28",NURSURERY EDUCATION GRANT-3 Y.O.,GRANTS,2102678189
05.06.2017,CHILDREN'S SERVICES,S R C COMMUNITY NURSERY,"29,552.48",NURSURERY EDUCATION GRANT-3 Y.O.,GRANTS,2102678195
05.06.2017,CHILDREN'S SERVICES,SMART KIDS DAY NURSERY,"15,782.33",NURSURERY EDUCATION GRANT-3 Y.O.,GRANTS,2102678192
05.06.2017,CHILDREN'S SERVICES,SMART START,"52,481.33",NURSURERY EDUCATION GRANT-3 Y.O.,GRANTS,2102678193
05.06.2017,CHILDREN'S SERVICES,ST JOHNS PRE SCHOOL,"18,310.50",NURSURERY EDUCATION GRANT-3 Y.O.,GRANTS,2102678197
05.06.2017,CHILDREN'S SERVICES,ST JUDES PLAYGROUP,"7,449.00",NURSURERY EDUCATION GRANT-3 Y.O.,GRANTS,2102678198
05.06.2017,CHILDREN'S SERVICES,ST MARY'S PRE-SCHOOL,"17,675.78",NURSURERY EDUCATION GRANT-3 Y.O.,GRANTS,2102678199
05.06.2017,CHILDREN'S SERVICES,STRAWBERRY BABYBUBS NURSERY,"2,376.00",NURSURERY EDUCATION GRANT-3 Y.O.,GRANTS,2102678200
05.06.2017,CHILDREN'S SERVICES,SUCCESS ASSOCIATES,"11,383.13",NURSURERY EDUCATION GRANT-3 Y.O.,GRANTS,2102678163
05.06.2017,CHILDREN'S SERVICES,SURE AND FIRM FOUNDATIONS,"14,652.30",NURSURERY EDUCATION GRANT-3 Y.O.,GRANTS,2102678177
05.06.2017,CHILDREN'S SERVICES,TADWORTH PRE-SCHOOL,"9,646.65",NURSURERY EDUCATION GRANT-3 Y.O.,GRANTS,2102678201
05.06.2017,CHILDREN'S SERVICES,THE BEECHES NURSERY GROUP LTD,"22,887.25",NURSURERY EDUCATION GRANT-3 Y.O.,GRANTS,2102678144
05.06.2017,CHILDREN'S SERVICES,THE BOSCO CENTRE,"11,845.27",NURSURERY EDUCATION GRANT-3 Y.O.,GRANTS,2102678120
05.06.2017,CHILDREN'S SERVICES,THE CHERRY TREE MONTESSORI NURSERY,"10,956.08",NURSURERY EDUCATION GRANT-3 Y.O.,GRANTS,2102678128
05.06.2017,CHILDREN'S SERVICES,THE FRUIT TREE DAY NURSERY,"13,123.50",NURSURERY EDUCATION GRANT-3 Y.O.,GRANTS,2102678202
05.06.2017,CHILDREN'S SERVICES,THE VILLA SCHOOL & NURSERY LTD,"94,750.20",NURSURERY EDUCATION GRANT-3 Y.O.,GRANTS,2102678203
05.06.2017,CHILDREN'S SERVICES,TINU ODEKU T/A LITTLE ANGELS CHILDCARE SERVICES,"9,944.03",NURSURERY EDUCATION GRANT-3 Y.O.,GRANTS,2102678165
05.06.2017,CHILDREN'S SERVICES,TODDLE ON INN LTD,"4,059.90",NURSURERY EDUCATION GRANT-3 Y.O.,GRANTS,2102678204
05.06.2017,CHILDREN'S SERVICES,UNDER THE WILLOW NURSERY,"20,044.73",NURSURERY EDUCATION GRANT-3 Y.O.,GRANTS,2102678205
05.06.2017,CHILDREN'S SERVICES,VICTORY IN COMMUNITY RESOURCE CENTRE,"7,814.55",NURSURERY EDUCATION GRANT-3 Y.O.,GRANTS,2102678206
05.06.2017,CHILDREN'S SERVICES,VIVY DAY NURSERY,"9,559.88",NURSURERY EDUCATION GRANT-3 Y.O.,GRANTS,2102678207
05.06.2017,CHILDREN'S SERVICES,WILLIAM BOOTH COLLEGE T/A HUMPTY DUMPTY NURSERY,"4,855.50",NURSURERY EDUCATION GRANT-3 Y.O.,GRANTS,2102678156
05.06.2017,CHILDREN'S SERVICES,PEOPLE PLUS,"33,485.00",PLACEMENTS FOR CHILDREN WITH SPEC NEEDS,EXTERNAL AGENCIES AND BODIES,5902253308
05.06.2017,CHILDREN'S SERVICES,FAITHFUL & GOULD,"10,276.40",PROPERTY MANAGEMENT,PROFESSIONAL FEES,5902253262
05.06.2017,CHILDREN'S SERVICES,FAITHFUL & GOULD,"17,096.00",PROPERTY MANAGEMENT,PROFESSIONAL FEES,5902253293
05.06.2017,COMMUNITIES,BONAMY & BRAMCOTE T&RA,"1,000.00",TENANTS FUND,GRANTS,5902253251
05.06.2017,CUSTOMER EXPERIENCE HGF,GUYS & ST THOMAS NHS FOUNDATION TRUST,320,CORONER'S,OTHER CONTRACTORS,5902253279
05.06.2017,CUSTOMER EXPERIENCE HGF,GUYS & ST THOMAS NHS FOUNDATION TRUST,400,CORONER'S,OTHER CONTRACTORS,5902253281
05.06.2017,CUSTOMER EXPERIENCE HGF,OFFICE DEPOT UK LTD,790.19,CORONER'S,STATIONERY,5902253283
05.06.2017,CUSTOMER EXPERIENCE HGF,SG PATH LTD,415.8,CORONER'S,PROFESSIONAL FEES,5902253213
05.06.2017,CUSTOMER EXPERIENCE HGF,SG PATH LTD,415.8,CORONER'S,PROFESSIONAL FEES,5902253220
05.06.2017,CUSTOMER EXPERIENCE HGF,GROVE HOTEL LTD,945,NIGHTLY TA (NSC),EXTERNAL AGENCIES AND BODIES,5902253221
05.06.2017,CUSTOMER EXPERIENCE HGF,SOUTH OF THE RIVER INVESTMENTS LTD,"3,836.90",NIGHTLY TA (NSC),EXTERNAL AGENCIES AND BODIES,5902253342
05.06.2017,CUSTOMER EXPERIENCE HGF,TAAKSVALE HOUSING LTD,"3,210.00",NIGHTLY TA (NSC),EXTERNAL AGENCIES AND BODIES,5902253286
05.06.2017,CUSTOMER EXPERIENCE HGF,TRADE  IN OPTIONS LTD,"2,418.00",NIGHTLY TA (NSC),EXTERNAL AGENCIES AND BODIES,5902253287
05.06.2017,CUSTOMER EXPERIENCE HGF,TFL TELESALES / OYSTER FULFILMENT,300,REGISTRARS,OFFICE EXPENSES,5902253215
05.06.2017,ELECTORAL SVCES,ELECTORAL REFORM  SERVICES,391.26,ELECTORAL REGISTRATION,PRINTING,5902253236
05.06.2017,ELECTORAL SVCES,ELECTORAL REFORM  SERVICES,436.67,ELECTORAL REGISTRATION,PRINTING,5902253225
05.06.2017,ELECTORAL SVCES,ELECTORAL REFORM  SERVICES,549.51,ELECTORAL REGISTRATION,PRINTING,5902253229
05.06.2017,ELECTORAL SVCES,ELECTORAL REFORM  SERVICES,567,ELECTORAL REGISTRATION,POSTAGES,5902253236
05.06.2017,ELECTORAL SVCES,ELECTORAL REFORM  SERVICES,635.99,ELECTORAL REGISTRATION,POSTAGES,5902253225
05.06.2017,ELECTORAL SVCES,ELECTORAL REFORM  SERVICES,799.25,ELECTORAL REGISTRATION,POSTAGES,5902253229
05.06.2017,ELECTORAL SVCES,ELECTORAL REFORM  SERVICES,"8,148.39",ELECTORAL REGISTRATION,PROFESSIONAL FEES,5902253242
05.06.2017,ENVIRONMENT AND LEISURE,CONNICK TREE CARE REIGATE LTD,700,CAPITAL PS (LEISURE),CONSTRUCTION FEES  - EXTERNAL,5902253245
05.06.2017,ENVIRONMENT AND LEISURE,DOVERCOURT ROAD NORTH RESIDENTS ASSOCIATION,"5,245.00",CAPITAL PS (LEISURE),CAPITAL GRANTS,5902253231
05.06.2017,ENVIRONMENT AND LEISURE,LDA DESIGN CONSULTING LTD,"6,397.50",CAPITAL PS (LEISURE),CONSTRUCTION FEES  - EXTERNAL,5902253374
05.06.2017,ENVIRONMENT AND LEISURE,PRIEST STONEWORK & RESTORATION LTD,800,CAPITAL PS (LEISURE),CONSTRUCTION FEES - INTERNAL,5902253184
05.06.2017,ENVIRONMENT AND LEISURE,RIDGE & PARTNERS LLP,"5,400.00",CAPITAL PS (LEISURE),CONSTRUCTION FEES  - EXTERNAL,5902253217
05.06.2017,ENVIRONMENT DIRECTORATE,SOUTH ESSEX STOCKHOLDERS LTD,281.6,ENGINEERING CRAFTS,MATERIALS,5902253332
05.06.2017,ENVIRONMENT DIRECTORATE,SOUTH ESSEX STOCKHOLDERS LTD,352.8,ENGINEERING CRAFTS,MATERIALS,5902253332
05.06.2017,ENVIRONMENT DIRECTORATE,SOUTH ESSEX STOCKHOLDERS LTD,"1,308.72",ENGINEERING CRAFTS,MATERIALS,5902253331
05.06.2017,ENVIRONMENT DIRECTORATE,MARWOOD ELECTRICAL CO,"1,259.00",LIGHTING RECOVERABLE WORKS,SOUTHWARK DIRECT CHARGES,5902253328
05.06.2017,ENVIRONMENT DIRECTORATE,COMPLETE TREE CARE LTD,"1,510.92",NON HOUSING GROUNDS,AGENCY STAFF,5902253263
05.06.2017,ENVIRONMENT DIRECTORATE,EDF ENERGY PLC,568.36,POLLUTION CONTROL,STATIONERY,5902253380
05.06.2017,ENVIRONMENT DIRECTORATE,CARL TURNER ARCHITECTURE LTD,550,PREMISES  MANAGEMENT OVERHEAD,PROFESSIONAL FEES,5902253305
05.06.2017,ENVIRONMENT DIRECTORATE,COMMUNITY CYCLEWORKS,"1,980.00","ROAD SAFETY EDUCATION,TRAINING&PUBLICITY",PROFESSIONAL FEES,5902253048
05.06.2017,ENVIRONMENT DIRECTORATE,BAKER ENGINEERING,481.22,STREET CLEANING-GENERAL,EQUIPMENT PURCHASE & REPAIR,5902253359
05.06.2017,F & C S EXCLUDING CORPORATE BUDGETS,ROYAL MAIL GROUP LTD,"1,789.83",ADMINISTRATIVE SUPPORT,POSTAGES,5902253317
05.06.2017,F & C S EXCLUDING CORPORATE BUDGETS,ROYAL MAIL GROUP LTD,"6,600.18",ADMINISTRATIVE SUPPORT,POSTAGES,5902253321
05.06.2017,F & C S EXCLUDING CORPORATE BUDGETS,BDO LLP,"21,618.44",INTERNAL AUDIT CONTRACTS,PAYMENTS FOR FINANCIAL SERVICES,5902253101
05.06.2017,F & C S EXCLUDING CORPORATE BUDGETS,BDO LLP,"21,618.44",INTERNAL AUDIT CONTRACTS,PAYMENTS FOR FINANCIAL SERVICES,5902253101
05.06.2017,HOUSING,AGENTIS WORKWEAR LTD,299,STORES,CREDITORS -GR/IR CLEARING ACCOUNT,5902253325
05.06.2017,HOUSING,EDWARDES BROS (DULWICH) LTD,539.1,STORES,CREDITORS -GR/IR CLEARING ACCOUNT,5902253323
05.06.2017,HOUSING HRA,CALFORD SEADEN LLP,"5,154.23",CAPITAL PS (HRA),CONSTRUCTION FEES  - EXTERNAL,5902253373
05.06.2017,HOUSING HRA,HARRADINES REMOVALS,"2,500.00",CAPITAL PS (HRA),CAPITAL GRANTS,2102678108
05.06.2017,HOUSING HRA,HINDWOODS LTD,800,CAPITAL PS (HRA),CONSTRUCTION FEES  - EXTERNAL,5902253224
05.06.2017,HOUSING HRA,SALTASH ENTERPRISES LTD,"5,000.00",CAPITAL PS (HRA),CONSTRUCTION MAIN CONTRACT -CERTIFICATED,2102678106
05.06.2017,LEISURE DIRECTORATE,CONNICK TREE CARE REIGATE LTD,385,ACCOMODATION,PROFESSIONAL FEES,5902253273
05.06.2017,LEISURE DIRECTORATE,KENT COUNTY COUNCIL - LASER,352.76,CAMBERWELL LIBRARY,GAS,5902253310
05.06.2017,LEISURE DIRECTORATE,G WORRALL & SON LTD,271.8,CEMETERIES,BUILDING R&M,5902253362
05.06.2017,LEISURE DIRECTORATE,BRITISH CREMATION AUTHORITIES,879.6,CREMATORIUM,PROFESSIONAL FEES,5902253377
05.06.2017,LEISURE DIRECTORATE,LANDMARK SERVICES,780,DULWICH AREA TEAM,OTHER R&M,5902253389
05.06.2017,LEISURE DIRECTORATE,P D CONSTRUCTION LTD,427,DULWICH AREA TEAM,OTHER R&M,5902253338
05.06.2017,LEISURE DIRECTORATE,DONNA MARIA,400,DULWICH FAIR AREA,OTHER R&M,5902253239
05.06.2017,LEISURE DIRECTORATE,KENT COUNTY COUNCIL - LASER,537.17,DULWICH LIBRARY,ELECTRICITY,5902253316
05.06.2017,LEISURE DIRECTORATE,KENT COUNTY COUNCIL - LASER,496.28,KINGSWOOD HOUSE,ELECTRICITY,5902253319
05.06.2017,LEISURE DIRECTORATE,KENT COUNTY COUNCIL - LASER,282.77,NUNHEAD LIBRARY,GAS,5902253315
05.06.2017,LEISURE DIRECTORATE,CASTLE WATER LTD,269.17,PECKHAM LIBRARY,WATER,5902253297
05.06.2017,LEISURE DIRECTORATE,KENT COUNTY COUNCIL - LASER,574.86,PECKHAM LIBRARY,GAS,5902253313
05.06.2017,LEISURE DIRECTORATE,P D CONSTRUCTION LTD,910,SOUTHWARK AREA TEAM,OTHER R&M,5902253337
05.06.2017,MODERNISATION HGF,REDACTED PERSONAL DATA,"4,801.75",FRONTLINE BURSARIES,TRAINING,5902253334
05.06.2017,MODERNISATION HGF,REDACTED PERSONAL DATA,"4,801.75",FRONTLINE BURSARIES,TRAINING,5902253335
05.06.2017,MODERNISATION HGF,REDACTED PERSONAL DATA,"4,801.75",FRONTLINE BURSARIES,TRAINING,5902253336
05.06.2017,MODERNISATION HGF,KIER FACILITIES SERVICES LTD,"8,322.52",PLANNED FM SERVICES BY KIER,BUILDING R&M,5902253360
05.06.2017,MODERNISATION HGF,KIER FACILITIES SERVICES LTD,"54,679.96",PLANNED FM SERVICES BY KIER,BUILDING R&M,5902253296
05.06.2017,PECKHAM AND NUNHEAD COMMUNITY COUNCIL,BURGESS PARK FOOD PROJECT,934,GLENGALL - HEART OF PECKHAM,GRANT,CHEQUE PAYMENT
05.06.2017,PLANNING AND TRANSPORT,GIA,"10,000.00",PLANNING POLICY TEAM,CONSULTANTS SERVICES,5902253291
05.06.2017,REGENERATION,LEATHERMARKET COMMUNITY BENEFIT SOCIETY LTD,"285,477.00",KIPLING GARAGES,GRANTS,5902253257
05.06.2017,REGENERATION,LEATHERMARKET COMMUNITY BENEFIT SOCIETY LTD,"1,290,444.00",KIPLING GARAGES,GRANTS,5902253257
05.06.2017,REGENERATION,DELOITTE LLP,"4,000.00",MISC INDUSTRIAL PROPERTIES,PROFESSIONAL FEES,5902253253
05.06.2017,RESIDENT SERVICES,A & H PEST CONTROL LTD,490,DULWICH,PEST CONTROL,5902253379
05.06.2017,RESIDENT SERVICES,EDF ENERGY PLC,259.73,OPERATIONS/OFFICES ACCOMMODATION,ELECTRICITY,5902253361
05.06.2017,RESIDENT SERVICES,POSTURITE (UK) LTD,381.33,OPERATIONS/OFFICES ACCOMMODATION,EQUIPMENT PURCHASE & REPAIR,5902253382
05.06.2017,RESIDENT SERVICES,SHAW KELLY,450,SPECIAL INVESTIGATIONS,LEGAL FEES & COURT COSTS,2102675719
05.06.2017,RESIDENT SERVICES,SHAW KELLY,650,SPECIAL INVESTIGATIONS,LEGAL FEES & COURT COSTS,2102675718
05.06.2017,RESIDENT SERVICES,CASTLE WATER LTD,"1,076.08",TA HOSTELS,ELECTRICITY,5902253304
05.06.2017,RESIDENT SERVICES,RENT CONNECT HOUSING LTD,"1,430.34",TA PLACEMENTS,EXTERNAL AGENCIES AND BODIES,5902253261
05.06.2017,RESIDENT SERVICES,A & H PEST CONTROL LTD,490,WALWORTH,PEST CONTROL,5902253351
05.06.2017,RESIDENT SERVICES HGF,CASTLE WATER LTD,760.73,ILDERTON ROAD PERM,WATER,5902253309
05.06.2017,RESIDENT SERVICES HGF,CASTLE WATER LTD,970.58,ILDERTON ROAD PERM,WATER,5902253318
06.06.2017,ADULT SOCIAL CARE,REDACTED PERSONAL DATA,910,APPOINTEESHIPS,OTHER PAYMENTS FOR CLIENTS,2102677950
06.06.2017,ADULT SOCIAL CARE,BEDE HOUSE ASSOCIATION,519.43,LD LTS 18-64,DAYCARE,2102678362
06.06.2017,ADULT SOCIAL CARE,CHOICE SUPPORT,330.66,LD LTS 18-64,SUPPORTED LIVING,2102678345
06.06.2017,ADULT SOCIAL CARE,CHOICE SUPPORT,367.4,LD LTS 18-64,SUPPORTED LIVING,2102678355
06.06.2017,ADULT SOCIAL CARE,CHOICE SUPPORT,440.88,LD LTS 18-64,SUPPORTED LIVING,2102678348
06.06.2017,ADULT SOCIAL CARE,CHOICE SUPPORT,514.36,LD LTS 18-64,SUPPORTED LIVING,2102678353
06.06.2017,ADULT SOCIAL CARE,CHOICE SUPPORT,569.46,LD LTS 18-64,SUPPORTED LIVING,2102678350
06.06.2017,ADULT SOCIAL CARE,CHOICE SUPPORT,587.84,LD LTS 18-64,SUPPORTED LIVING,2102678347
06.06.2017,ADULT SOCIAL CARE,CHOICE SUPPORT,729.55,LD LTS 18-64,SUPPORTED LIVING,2102678341
06.06.2017,ADULT SOCIAL CARE,CHOICE SUPPORT,881.76,LD LTS 18-64,SUPPORTED LIVING,2102678351
06.06.2017,ADULT SOCIAL CARE,CHOICE SUPPORT,"1,102.20",LD LTS 18-64,SUPPORTED LIVING,2102678342
06.06.2017,ADULT SOCIAL CARE,KEYRING-LIVING SUPPORT NETWORKS LTD,317.6,LD LTS 18-64,SUPPORTED LIVING,2102678356
06.06.2017,ADULT SOCIAL CARE,PEOPLE PLUS,"10,232.88",LD LTS 18-64,PAYMENTS TO CLIENTS (DIRECT PAYMENTS),2102678366
06.06.2017,ADULT SOCIAL CARE,PEOPLE PLUS,260.82,PHY LTS 18-64,PAYMENTS TO CLIENTS (DIRECT PAYMENTS),2102678365
06.06.2017,ADULT SOCIAL CARE,ABOUT ME CARE AND SUPPORT LTD,942.01,PHY LTS 65+,EXTERNAL AGENCIES AND BODIES,2102678293
06.06.2017,ADULT SOCIAL CARE,ARK HOME HEALTHCARE LTD,333.45,PHY LTS 65+,HOMECARE - C&V,2102678349
06.06.2017,ADULT SOCIAL CARE,ARK HOME HEALTHCARE LTD,468,PHY LTS 65+,HOMECARE - C&V,2102678358
06.06.2017,ADULT SOCIAL CARE,PEOPLE PLUS,"1,335.00",PHY LTS 65+,PAYMENTS TO CLIENTS (DIRECT PAYMENTS),2102678369
06.06.2017,ADULT SOCIAL CARE,EASYLINK UK,728.88,SOUTHWARK RESOURCE CENTRE,EQUIPMENT PURCHASE & REPAIR,5902253458
06.06.2017,ADULT SOCIAL CARE,REDACTED PERSONAL DATA,"2,032.36",TRANSITION 14YRS TO 18YRS,PAYMENTS TO CLIENTS (DIRECT PAYMENTS),2102678359
06.06.2017,ADULT SOCIAL CARE,HCP STAFFING SERVICES LTD,363.46,TRANSITION 14YRS TO 18YRS,SECTION 17 PAYMENTS TO AGENCIES/CARERS,2102678333
06.06.2017,ASSET MANAGEMENT,WYNNE BIER CONSULTANCY LTD,"1,500.00",REPAIRS OPERATIONS,TRAINING,5902253503
06.06.2017,ASSET MANAGEMENT,WYNNE BIER CONSULTANCY LTD,"2,000.00",REPAIRS OPERATIONS,TRAINING,5902253501
06.06.2017,ASSET MANAGEMENT,BRIDGEWATER ROOFING CONTRACTORS LTD,"39,506.65",VISIBLE DIFFERENCE (NORTH),BUILDING R&M,2102678378
06.06.2017,ASSET MANAGEMENT,BRIDGEWATER ROOFING CONTRACTORS LTD,"70,765.90",VISIBLE DIFFERENCE (NORTH),BUILDING R&M,2102678377
06.06.2017,BERMONDSEY AND ROTHERHITHE COMMUNITY COUNCIL,BERMONDSEY COMMUNITY KITCHEN,"5,000.00",BERMONDSEY COMMUNITY KITCHEN,GRANT,CHEQUE PAYMENT
06.06.2017,CENTRAL FUNCTIONS,NPOWER LTD,495.58,COMMERCIAL PROPERTIES,ELECTRICITY,5902253429
06.06.2017,CENTRAL FUNCTIONS,STANBURY BUILDING SERVICES LTD,"2,995.00",COMMERCIAL PROPERTIES,BUILDING R&M,2102678373
06.06.2017,CENTRAL FUNCTIONS,THAMES REACH EMPOLYMENT ACADEMY,"20,000.00",TENANTS FUND,PROFESSIONAL FEES,5902253478
06.06.2017,CHIEF EXECUTIVE,CONTAINER TRAK LTD,"2,750.00",CAPITAL PS (REGEN),CONSTRUCTION,5902253483
06.06.2017,CHIEF EXECUTIVE,CONWAY AECOM LTD,"10,999.12",CAPITAL PS (REGEN),CONSTR'N SUB CONTRACT - NON CERTIFICATED,5902253508
06.06.2017,CHIEF EXECUTIVE,CONWAY AECOM LTD,"29,051.92",CAPITAL PS (REGEN),CONSTR'N SUB CONTRACT - NON CERTIFICATED,2102678372
06.06.2017,CHIEF EXECUTIVE,CUTTLE CONSTRUCTION LTD,"60,792.13",CAPITAL PS (REGEN),CONSTRUCTION MAIN CONTRACT -CERTIFICATED,2102678426
06.06.2017,CHIEF EXECUTIVE,KENT COUNTY COUNCIL - LASER,"1,433.93",CAPITAL PS (REGEN),CONSTRUCTION MAIN CONTRACT -CERTIFICATED,5902253482
06.06.2017,CHIEF EXECUTIVE'S OFFICE,SAFER LONDON BUSINESS,730,RESILIENCE AND EMERGENCY PLANNING,COMMS & COMPUTING CONTRACT CHARGES,5902253467
06.06.2017,CHILDREN AND ADULT,GALLIFORD TRY LTD,"671,483.75",CAPITAL PS (EDUCATION),CONSTRUCTION MAIN CONTRACT -CERTIFICATED,2102678428
06.06.2017,CHILDREN AND ADULT,MACE LTD,"5,750.00",CAPITAL PS (EDUCATION),CONSTRUCTION,5902253489
06.06.2017,CHILDREN AND ADULT,MACE LTD,"9,775.00",CAPITAL PS (EDUCATION),CONSTRUCTION,5902253491
06.06.2017,CHILDREN AND ADULT,MORGAN SINDALL PLC,"279,007.64",CAPITAL PS (EDUCATION),CONSTRUCTION MAIN CONTRACT -CERTIFICATED,2102678435
06.06.2017,CHILDREN AND ADULT,MORGAN SINDALL PLC,"281,651.58",CAPITAL PS (EDUCATION),CONST'N MAIN CONTRACT - NON CERTIFICATED,2102678370
06.06.2017,CHILDREN AND ADULT,MORGAN SINDALL PLC,"496,253.94",CAPITAL PS (EDUCATION),CONST'N MAIN CONTRACT - NON CERTIFICATED,2102678434
06.06.2017,CHILDREN AND ADULT,MORGAN SINDALL PLC,"625,324.63",CAPITAL PS (EDUCATION),CONSTRUCTION MAIN CONTRACT -CERTIFICATED,2102678433
06.06.2017,CHILDREN AND ADULT,MORGAN SINDALL PLC,"801,155.49",CAPITAL PS (EDUCATION),CONSTRUCTION MAIN CONTRACT -CERTIFICATED,2102678432
06.06.2017,CHILDREN AND ADULT,MORGAN SINDALL PLC,"828,086.70",CAPITAL PS (EDUCATION),CONSTRUCTION MAIN CONTRACT -CERTIFICATED,2102678371
06.06.2017,CHILDREN'S SERVICES,NEWLANDS ACADEMY,"52,849.89",ACADEMIES SECONDARY,STATEMENTED FEES,2102678408
06.06.2017,CHILDREN'S SERVICES,CARAVELLO CATERING,505,ADOPTION PLACEMENTS & INTER AGENCY,EXTERNAL AGENCIES AND BODIES,5902253462
06.06.2017,CHILDREN'S SERVICES,MONKEY PUZZLE DAY NURSERY BROMLEY,521.34,ADOPTION PLACEMENTS & INTER AGENCY,EXTERNAL AGENCIES AND BODIES,5902253400
06.06.2017,CHILDREN'S SERVICES,REDACTED PERSONAL DATA,429,ADOPTION REFORM GRANT (PART B),PROFESSIONAL FEES,5902253396
06.06.2017,CHILDREN'S SERVICES,FAMILY FUTURES CIC,"5,000.00",ADOPTION REFORM GRANT (PART B),EXTERNAL AGENCIES AND BODIES,5902253461
06.06.2017,CHILDREN'S SERVICES,FAMILY FOSTERING LTD,"3,551.98",AGENCY FOSTERING,EXTERNAL AGENCIES AND BODIES,2102678336
06.06.2017,CHILDREN'S SERVICES,KENT HOMEFINDING & FOSTERING LTD,"9,123.30",AGENCY FOSTERING,EXTERNAL AGENCIES AND BODIES,2102678335
06.06.2017,CHILDREN'S SERVICES,MOSAIC FOSTER CARE LTD,"6,642.68",AGENCY FOSTERING,EXTERNAL AGENCIES AND BODIES,2102678337
06.06.2017,CHILDREN'S SERVICES,BLANCHE NEVILE SCHOOL,"9,811.77",CASEWORK OLA  0-8,RECOUPMENT,2102678399
06.06.2017,CHILDREN'S SERVICES,CENMAC,"3,172.25",CASEWORK OLA  0-8,OP LEASE/HIRE CHARGES:PLANT/EQUIP/FURNIT,2102678421
06.06.2017,CHILDREN'S SERVICES,DARRICK WOOD SCHOOL,"2,180.64",CASEWORK OLA  0-8,STATEMENTED FEES,2102678394
06.06.2017,CHILDREN'S SERVICES,HILLCREST AUTISM SERVICES LTD,"34,759.00",CASEWORK OLA  0-8,RECOUPMENT,2102678418
06.06.2017,CHILDREN'S SERVICES,OCTAVIA HOUSE SCHOOLS LTD,"14,000.00",CASEWORK OLA  0-8,RECOUPMENT,2102678424
06.06.2017,CHILDREN'S SERVICES,SHOREDITCH PARK PRIMARY SCHOOL,"5,845.36",CASEWORK OLA  0-8,EXTERNAL AGENCIES AND BODIES,2102678400
06.06.2017,CHILDREN'S SERVICES,THE ANNEX PROJECT LTD,500,CASEWORK OLA  0-8,OTHER CONTRACTORS,2102678396
06.06.2017,CHILDREN'S SERVICES,THE LIVITY SCHOOL,"21,526.52",CASEWORK OLA  0-8,RECOUPMENT,2102678401
06.06.2017,CHILDREN'S SERVICES,1ST PLACE CHILDREN & PARENTS CENTRE,"1,560.28",CASEWORK SOUTHWARK 0-8,OTHER LOCAL AUTHORITIES,2102678412
06.06.2017,CHILDREN'S SERVICES,CENMAC,"13,939.58",CASEWORK SOUTHWARK 0-8,OP LEASE/HIRE CHARGES:PLANT/EQUIP/FURNIT,2102678420
06.06.2017,CHILDREN'S SERVICES,LOVE ABA LTD,"1,677.50",CASEWORK SOUTHWARK 0-8,OTHER CONTRACTORS,2102678402
06.06.2017,CHILDREN'S SERVICES,PHOENIXPLACE,"1,728.00",CASEWORK SOUTHWARK 0-8,RECOUPMENT,2102678413
06.06.2017,CHILDREN'S SERVICES,PHOENIXPLACE,"3,648.00",CASEWORK SOUTHWARK 0-8,RECOUPMENT,2102678414
06.06.2017,CHILDREN'S SERVICES,BASCULE LTD,"2,690.58",EARLY YEARS,STATEMENTED FEES,2102678407
06.06.2017,CHILDREN'S SERVICES,GUMBOOTS COMMUNITY NURSERY,"2,690.58",EARLY YEARS,STATEMENTED FEES,2102678406
06.06.2017,CHILDREN'S SERVICES,CAPEL MANOR COLLEGE,"7,998.26",FE & SIXTH FORM COLLEGES,STATEMENTED FEES,2102678403
06.06.2017,CHILDREN'S SERVICES,CROYDON COLLEGE,"12,999.29",FE & SIXTH FORM COLLEGES,STATEMENTED FEES,2102678390
06.06.2017,CHILDREN'S SERVICES,HILLCREST AUTISM SERVICES LTD,"42,023.35",FE & SIXTH FORM COLLEGES,STATEMENTED FEES,2102678417
06.06.2017,CHILDREN'S SERVICES,MEDWAY COUNCIL,"1,725.00",FE & SIXTH FORM COLLEGES,STATEMENTED FEES,2102678391
06.06.2017,CHILDREN'S SERVICES,NEWLANDS ACADEMY,"56,380.08",FE & SIXTH FORM COLLEGES,STATEMENTED FEES,2102678409
06.06.2017,CHILDREN'S SERVICES,THE DRIVE CARE HOMES LTD,"1,020.00",HOME 2 SCHOOL TRANSPORT,RECOUPMENT,5902253391
06.06.2017,CHILDREN'S SERVICES,MEDWAY COUNCIL,"35,833.33",OLA - SPECIAL,STATEMENTED FEES,2102678392
06.06.2017,CHILDREN'S SERVICES,CAPEL MANOR COLLEGE,"3,999.13",PFA TEAM SOUTHWARK 9 PLUS,"SCHOOLS CAPITATION, STANDARDS FUND",2102678404
06.06.2017,CHILDREN'S SERVICES,CENMAC,253.5,PFA TEAM SOUTHWARK 9 PLUS,OP LEASE/HIRE CHARGES:PLANT/EQUIP/FURNIT,2102678423
06.06.2017,CHILDREN'S SERVICES,CENMAC,"11,279.25",PFA TEAM SOUTHWARK 9 PLUS,OP LEASE/HIRE CHARGES:PLANT/EQUIP/FURNIT,2102678422
06.06.2017,CHILDREN'S SERVICES,EVELYN GRACE ACADEMY,"5,278.85",PFA TEAM SOUTHWARK 9 PLUS,STATEMENTED FEES,2102678393
06.06.2017,CHILDREN'S SERVICES,HILLCREST AUTISM SERVICES LTD,"44,241.00",PFA TEAM SOUTHWARK 9 PLUS,RECOUPMENT,2102678419
06.06.2017,CHILDREN'S SERVICES,HORNBEAM ACADEMY TRUST,"6,166.67",PFA TEAM SOUTHWARK 9 PLUS,STATEMENTED FEES,2102678405
06.06.2017,CHILDREN'S SERVICES,LVS HASSOCKS,"9,948.62",PFA TEAM SOUTHWARK 9 PLUS,ADDITIONAL PAYMENTS TO AGENCIES/CARERS,2102678410
06.06.2017,CHILDREN'S SERVICES,TREASURE HOUSE (LONDON) CIC,"7,473.33",PFA TEAM SOUTHWARK 9 PLUS,RECOUPMENT,2102678415
06.06.2017,CHILDREN'S SERVICES,TRINITY SCHOOL,"1,013.53",PFA TEAM SOUTHWARK 9 PLUS,STATEMENTED FEES,2102678398
06.06.2017,CHILDREN'S SERVICES,PEOPLE PLUS,355.68,PLACEMENTS FOR CHILDREN WITH SPEC NEEDS,PAYMENTS TO CLIENTS (DIRECT PAYMENTS),2102678361
06.06.2017,CHILDREN'S SERVICES,HILLCREST CHILDRENS SERVICES LTD,"16,430.00",RESIDENTIAL,RESIDENTIAL CARE,2102678298
06.06.2017,CHILDREN'S SERVICES,HILLCREST CHILDRENS SERVICES LTD,"16,430.00",RESIDENTIAL,RESIDENTIAL CARE,2102678300
06.06.2017,CHILDREN'S SERVICES,NEATH PORT TALBOT COUNTY BOROUGH COUNCIL,"24,800.00",RESIDENTIAL,RESIDENTIAL CARE,2102678301
06.06.2017,CHILDREN'S SERVICES,NEW HORIZONS CHILD CARE LTD,"14,000.00",RESIDENTIAL,RESIDENTIAL CARE,2102678295
06.06.2017,CHILDREN'S SERVICES,NEW HORIZONS CHILD CARE LTD,"15,500.00",RESIDENTIAL,RESIDENTIAL CARE,2102678296
06.06.2017,CHILDREN'S SERVICES,NEW HORIZONS CHILD CARE LTD,"15,500.00",RESIDENTIAL,RESIDENTIAL CARE,2102678297
06.06.2017,CHILDREN'S SERVICES,NEW HORIZONS CHILD CARE LTD,"15,500.00",RESIDENTIAL,RESIDENTIAL CARE,2102678302
06.06.2017,CHILDREN'S SERVICES,NEW HORIZONS CHILD CARE LTD,"17,271.34",RESIDENTIAL,RESIDENTIAL CARE,2102678304
06.06.2017,CHILDREN'S SERVICES,NEW HORIZONS CHILD CARE LTD,"19,485.67",RESIDENTIAL,RESIDENTIAL CARE,2102678299
06.06.2017,CHILDREN'S SERVICES,NEW HORIZONS CHILD CARE LTD,"33,568.35",RESIDENTIAL,RESIDENTIAL CARE,2102678303
06.06.2017,CHILDREN'S SERVICES,FINEFAIR LTD,"1,356.56",S24 CLA,EXTERNAL AGENCIES AND BODIES,2102678312
06.06.2017,CHILDREN'S SERVICES,FINEFAIR LTD,"1,687.33",S24 CLA,EXTERNAL AGENCIES AND BODIES,2102678306
06.06.2017,CHILDREN'S SERVICES,FINEFAIR LTD,"1,687.33",S24 CLA,EXTERNAL AGENCIES AND BODIES,2102678309
06.06.2017,CHILDREN'S SERVICES,FINEFAIR LTD,"1,687.33",S24 CLA,EXTERNAL AGENCIES AND BODIES,2102678310
06.06.2017,CHILDREN'S SERVICES,FINEFAIR LTD,"1,687.33",S24 CLA,EXTERNAL AGENCIES AND BODIES,2102678311
06.06.2017,CHILDREN'S SERVICES,FINEFAIR LTD,"2,967.32",S24 CLA,EXTERNAL AGENCIES AND BODIES,2102678305
06.06.2017,CHILDREN'S SERVICES,PHASE II CARE LTD,"1,477.30",S24 CLA,RESIDENTIAL CARE,2102678314
06.06.2017,CHILDREN'S SERVICES,CONTACT PROFESSIONALS,368.1,SEMI INDEPENDENT,OTHER PAYMENTS FOR CLIENTS,2102678322
06.06.2017,CHILDREN'S SERVICES,ELLIOT LEIGH TLC LTD,"3,432.01",SEMI INDEPENDENT,EXTERNAL AGENCIES AND BODIES,2102678315
06.06.2017,CHILDREN'S SERVICES,FUTURE FOUNDATIONS LTD,257.14,SEMI INDEPENDENT,OTHER PAYMENTS FOR CLIENTS,2102678319
06.06.2017,CHILDREN'S SERVICES,FUTURE FOUNDATIONS LTD,265.71,SEMI INDEPENDENT,OTHER PAYMENTS FOR CLIENTS,2102678317
06.06.2017,CHILDREN'S SERVICES,FUTURE FOUNDATIONS LTD,"4,277.14",SEMI INDEPENDENT,EXTERNAL AGENCIES AND BODIES,2102678318
06.06.2017,CHILDREN'S SERVICES,FUTURE FOUNDATIONS LTD,"4,419.71",SEMI INDEPENDENT,EXTERNAL AGENCIES AND BODIES,2102678316
06.06.2017,CHILDREN'S SERVICES,SILVER BIRCH CARE LTD,265.71,SEMI INDEPENDENT,OTHER PAYMENTS FOR CLIENTS,2102678313
06.06.2017,CHILDREN'S SERVICES,HILLCREST AUTISM SERVICES LTD,"34,177.00",SEN TRANSPORT,STATEMENTED FEES,2102678416
06.06.2017,CHILDREN'S SERVICES,REDACTED PERSONAL DATA,"2,926.36",SPECIAL GUARDIANSHIP,PAYMENTS TO CARERS,2102676281
06.06.2017,CHILDREN'S SERVICES,HCP STAFFING SERVICES LTD,291.72,SPECIALIST CARE,SECTION 17 PAYMENTS TO AGENCIES/CARERS,2102678324
06.06.2017,CHILDREN'S SERVICES,HCP STAFFING SERVICES LTD,324.81,SPECIALIST CARE,SECTION 17 PAYMENTS TO AGENCIES/CARERS,2102678331
06.06.2017,CHILDREN'S SERVICES,HCP STAFFING SERVICES LTD,968.55,SPECIALIST CARE,SECTION 17 PAYMENTS TO AGENCIES/CARERS,2102678334
06.06.2017,CHILDREN'S SERVICES,INTERSERVE HEALTHCARE,612.66,SPECIALIST CARE,SECTION 17 PAYMENTS TO AGENCIES/CARERS,2102678327
06.06.2017,CHILDREN'S SERVICES,THORNBURY NURSING SERVICES,"5,894.21",SPECIALIST CARE,SECTION 17 PAYMENTS TO AGENCIES/CARERS,2102678328
06.06.2017,CHILDREN'S SERVICES,ST GEORGES RC SCHOOL,"100,000.00",ST GEORGES JMI 340,SCHOOLS CAPITATION,5902253492
06.06.2017,CHILDREN'S SERVICES,AFFINITY FOSTERING SERVICES LTD,"1,749.33",STAYING PUT,EXTERNAL AGENCIES AND BODIES,2102678307
06.06.2017,CHILDREN'S SERVICES,AFFINITY FOSTERING SERVICES LTD,"1,749.33",STAYING PUT,EXTERNAL AGENCIES AND BODIES,2102678308
06.06.2017,COMMISSIONING & CENTRAL,MKJ&L SERVICES LTD,"4,968.00",SAFEGUARDING BOARDS,PROFESSIONAL FEES,5902253437
06.06.2017,COMMUNITIES,COMMUNITY SOUTHWARK,"1,500.00",HEAD OF COMM ENGAGE,GRANTS,5902253473
06.06.2017,COMMUNITIES,KENNINGTON PARK HSE MGMT CO-OP,557,KENNINGTON PK CO-OP,M&M ALLOWANCE CO-OPS,5902253522
06.06.2017,COMMUNITIES,KENNINGTON PARK HSE MGMT CO-OP,"16,092.00",KENNINGTON PK CO-OP,M&M ALLOWANCE CO-OPS,5902253519
06.06.2017,COMMUNITIES,TOM HOPKINS ASSOCIATES LTD,"1,470.00",TENANT MGT INITITIVES,TRAINING,5902253513
06.06.2017,CUSTOMER EXPERIENCE HGF,ST GILES TRUST,476,HOMELESS PROJECTS,GRANTS,5902253411
06.06.2017,CUSTOMER EXPERIENCE HGF,ASSET GROVE LETTINGS LTD,"-1,395.00",NIGHTLY TA (NSC),EXTERNAL AGENCIES AND BODIES,5902250150
06.06.2017,CUSTOMER EXPERIENCE HGF,UXBRIDGE ESTATE AGENTS LTD,"2,604.00",NIGHTLY TA (NSC),EXTERNAL AGENCIES AND BODIES,5902253450
06.06.2017,CUSTOMER EXPERIENCE HGF,UXBRIDGE ESTATE AGENTS LTD,"4,778.65",NIGHTLY TA (NSC),EXTERNAL AGENCIES AND BODIES,5902253524
06.06.2017,CUSTOMER EXPERIENCE HGF,ZFA LTD,"11,802.00",NIGHTLY TA (NSC),EXTERNAL AGENCIES AND BODIES,5902253474
06.06.2017,ENVIRONMENT AND LEISURE,H2O SERVICING LTD,"51,611.00",CAPITAL PS (LEISURE),CONSTRUCTION MAIN CONTRACT,5902253422
06.06.2017,ENVIRONMENT AND LEISURE,LDA DESIGN CONSULTING LTD,"5,800.50",CAPITAL PS (LEISURE),CONSTRUCTION FEES  - EXTERNAL,5902253469
06.06.2017,ENVIRONMENT AND LEISURE,LDA DESIGN CONSULTING LTD,"7,490.96",CAPITAL PS (LEISURE),CONSTRUCTION FEES  - EXTERNAL,5902253487
06.06.2017,ENVIRONMENT AND LEISURE,MULTIMAC SURFACES LIMITED,"1,980.00",CAPITAL PS (LEISURE),CONSTRUCTION FEES - INTERNAL,2102678389
06.06.2017,ENVIRONMENT AND LEISURE,SPOKEMEAD MAINTENANCE LTD,763.99,CAPITAL PS (LEISURE),CONSTRUCTION FEES  - EXTERNAL,2102678379
06.06.2017,ENVIRONMENT AND LEISURE,SPOKEMEAD MAINTENANCE LTD,847.11,CAPITAL PS (LEISURE),CONSTRUCTION FEES - INTERNAL,2102678376
06.06.2017,ENVIRONMENT AND LEISURE,SPOKEMEAD MAINTENANCE LTD,856.64,CAPITAL PS (LEISURE),CONSTRUCTION FEES - INTERNAL,2102678376
06.06.2017,ENVIRONMENT AND LEISURE,SPOKEMEAD MAINTENANCE LTD,899.01,CAPITAL PS (LEISURE),CONSTRUCTION FEES - INTERNAL,2102678376
06.06.2017,ENVIRONMENT AND LEISURE,SPOKEMEAD MAINTENANCE LTD,"1,659.51",CAPITAL PS (LEISURE),CONSTRUCTION FEES  - EXTERNAL,2102678379
06.06.2017,ENVIRONMENT AND LEISURE,T LOUGHMAN AND CO LIMITED,"4,225.98",CAPITAL PS (LEISURE),CONSTRUCTION FEES  - EXTERNAL,2102678436
06.06.2017,ENVIRONMENT DIRECTORATE,COMPLETE TREE CARE LTD,"1,544.80",NON HOUSING GROUNDS,AGENCY STAFF,5902253505
06.06.2017,ENVIRONMENT DIRECTORATE,CONWAY AECOM LTD,456.23,PARKING ATTENDANTS PCN'S,HIGHWAYS R&M,2102678441
06.06.2017,ENVIRONMENT DIRECTORATE,CONWAY AECOM LTD,579.03,PARKING ATTENDANTS PCN'S,HIGHWAYS R&M,2102678445
06.06.2017,ENVIRONMENT DIRECTORATE,CONWAY AECOM LTD,624.57,PARKING ATTENDANTS PCN'S,HIGHWAYS R&M,2102678440
06.06.2017,ENVIRONMENT DIRECTORATE,CONWAY AECOM LTD,"2,851.20",PARKING ATTENDANTS PCN'S,HIGHWAYS R&M,2102678437
06.06.2017,ENVIRONMENT DIRECTORATE,CONWAY AECOM LTD,"9,480.50",PARKING ATTENDANTS PCN'S,HIGHWAYS R&M,2102678438
06.06.2017,ENVIRONMENT DIRECTORATE,A & H PEST CONTROL LTD,890,PEST CONTROL-CDN A/C,OTHER CONTRACTORS,5902253509
06.06.2017,ENVIRONMENT DIRECTORATE,CONWAY AECOM LTD,"7,722.69",PUBLIC LIGHTING,OTHER CONTRACTORS,2102678388
06.06.2017,ENVIRONMENT DIRECTORATE,BAKER ENGINEERING,595.95,STREET CLEANING-GENERAL,EQUIPMENT PURCHASE & REPAIR,5902253507
06.06.2017,F & C S EXCLUDING CORPORATE BUDGETS,LG FUTURES LTD,"5,890.00",CORPORATE SERVICES AND F&G,PROFESSIONAL FEES,5902253516
06.06.2017,HOUSING,KENT COUNTY COUNCIL,"15,638.72",SUPPLY OF ELECTRICITY,ELECTRICITY,DIRECT DEBIT PAYMENT
06.06.2017,HOUSING,KENT COUNTY COUNCIL,"8,265.90",SUPPLY OF ELECTRICITY,ELECTRICITY,DIRECT DEBIT PAYMENT
06.06.2017,HOUSING GENERAL FUND,RSM BUILDING CONTRACTORS,"5,384.00",CAPITAL PS (HOUSING GF),CAPITAL GRANTS,5902253475
06.06.2017,HOUSING GENERAL FUND,CAPITA BUSINESS SERVICES LTD,720,CAPITAL PS (STRAT SERV),ICT ACQUISITION,5902253510
06.06.2017,HOUSING GENERAL FUND,DIGITAL FIRST SOLUTIONS LTD,"31,700.00",CAPITAL PS (STRAT SERV),CONSTRUCTION FEES  - EXTERNAL,5902253506
06.06.2017,HOUSING HRA,A & E ELKINS LTD,613.76,CAPITAL PS (HRA),CONSTRUCTION MAIN CONTRACT -CERTIFICATED,2102678431
06.06.2017,HOUSING HRA,A & E ELKINS LTD,"417,998.23",CAPITAL PS (HRA),CONSTRUCTION MAIN CONTRACT -CERTIFICATED,2102678374
06.06.2017,HOUSING HRA,BWB CONSULTING LTD,"2,667.50",CAPITAL PS (HRA),CONSTRUCTION FEES  - EXTERNAL,5902253468
06.06.2017,HOUSING HRA,INVICTA BUILDING SERVICES LTD,"63,001.07",CAPITAL PS (HRA),CONSTRUCTION MAIN CONTRACT -CERTIFICATED,2102678430
06.06.2017,HOUSING HRA,JEREMY GARDNER ASSOCIATES LTD,"1,200.00",CAPITAL PS (HRA),CONSTRUCTION FEES  - EXTERNAL,5902253454
06.06.2017,HOUSING HRA,KEEPMOAT REGENERATION (APOLLO) LTD,"419,376.38",CAPITAL PS (HRA),CONSTRUCTION MAIN CONTRACT -CERTIFICATED,2102678427
06.06.2017,HOUSING HRA,MULALLEY & CO LTD,"17,006.20",CAPITAL PS (HRA),CONSTRUCTION MAIN CONTRACT -CERTIFICATED,2102678375
06.06.2017,HOUSING HRA,SALTASH ENTERPRISES LTD,"35,859.46",CAPITAL PS (HRA),CONSTRUCTION MAIN CONTRACT -CERTIFICATED,2102678429
06.06.2017,HOUSING HRA,THE ALBANY 2001 COMPANY LTD,330,CAPITAL PS (REGEN),CONSTRUCTION FEES,5902253415
06.06.2017,LEISURE DIRECTORATE,TELESHORE UK LTD,842,CEMETERIES,GROUNDS MAINTENANCE,5902253494
06.06.2017,LEISURE DIRECTORATE,EDF ENERGY PLC,261.19,DULWICH AREA TEAM,ELECTRICITY,5902253480
06.06.2017,LEISURE DIRECTORATE,ASKEWS & HOLTS LIBRARY SERVICES LTD,"10,131.78",STOCK SERVICES,BOOKS & PUBLICATIONS,5902253402
06.06.2017,LEISURE DIRECTORATE,BIBLIOTHECA LTD,462.07,STOCK SERVICES,STATIONERY,5902253453
06.06.2017,MODERNISATION HGF,KENT COUNTY COUNCIL - LASER,-832.25,BOURNEMOUTH GROVE,ELECTRICITY,5902253484
06.06.2017,PLANNING AND TRANSPORT,GVA GRIMLEY LLP,"4,000.00",MAJOR APPLICATIONS,PROFESSIONAL FEES,5902253479
06.06.2017,PUBLIC HEALTH,MEDWAY NHS FOUNDATION TRUST,-295.9,SEXUAL HEALTH - STI,EXTERNAL AGENCIES AND BODIES,5902253595
06.06.2017,PUBLIC HEALTH,MEDWAY NHS FOUNDATION TRUST,295.9,SEXUAL HEALTH - STI,EXTERNAL AGENCIES AND BODIES,5902253592
06.06.2017,REGENERATION,FIELD FISHER WATERHOUSE,"2,509.00",CPHA  MANAGED PROPERTIES,PROFESSIONAL FEES,5902253451
06.06.2017,RESIDENT SERVICES,EDF ENERGY PLC,268.41,OPERATIONS/OFFICES ACCOMMODATION,ELECTRICITY,5902253465
06.06.2017,RESIDENT SERVICES,CHARTWELLS,"4,431.22",SPECIAL NEEDS HOSTELS,CATERING MATERIALS & SUPPLIES,5902253425
06.06.2017,RESIDENT SERVICES,ASSET GROVE LETTINGS LTD,426,TA PLACEMENTS,RENTS,5902253426
06.06.2017,RESIDENT SERVICES,ASSET GROVE LETTINGS LTD,"1,065.00",TA PLACEMENTS,RENTS,5902253428
06.06.2017,RESIDENT SERVICES,ASSET GROVE LETTINGS LTD,"1,100.50",TA PLACEMENTS,RENTS,5902253424
06.06.2017,RESIDENT SERVICES,ASSET GROVE LETTINGS LTD,"1,100.50",TA PLACEMENTS,RENTS,5902253430
07.06.2017,ADULT SOCIAL CARE,REDACTED PERSONAL DATA,343.6,APPOINTEESHIPS,OTHER PAYMENTS FOR CLIENTS,2102679242
07.06.2017,ADULT SOCIAL CARE,CYGNET HOSPITAL BURY,320,APPOINTEESHIPS,OTHER PAYMENTS FOR CLIENTS,2102677951
07.06.2017,ADULT SOCIAL CARE,SHAW & SONS LTD,260.1,MH PREMISES COSTS,STATIONERY,5902253546
07.06.2017,ADULT SOCIAL CARE,LUCAS CONSULT LTD,588.92,SAFEGUARDING TEAM,OTHER CONTRACTORS,5902253599
07.06.2017,ASSET MANAGEMENT,T BROWN & SONS (HEATING) LTD,464.34,ENG CONTRACTS (NORTH),HEATING - DISTRICT PLANT REPAIR & REPLAC,5902253668
07.06.2017,"BOROUGH, BANKSIDE & WALWORTH COMMUNITY COUNCIL",WALWORTH GARDEN,"3,000.00",BEE-A-PART-30-YEARS ON!,GRANT,CHEQUE PAYMENT
07.06.2017,"BOROUGH, BANKSIDE & WALWORTH COMMUNITY COUNCIL",MINT STREET MUSIC FESTIVAL TEAM,"3,051.00",MINT STREET MUSIC FESTIVAL 2017,GRANT,CHEQUE PAYMENT
07.06.2017,"BOROUGH, BANKSIDE & WALWORTH COMMUNITY COUNCIL",MINT STREET MUSIC FESTIVAL TEAM,"1,000.00",SOUTHWARK MARDI GRAS 2018,GRANT,CHEQUE PAYMENT
07.06.2017,CAMBERWELL COMMUNITY COUNCIL,ST FAITHS COMMUNITY & YOUTH ASSOCIATION,"2,000.00",WEB HUB/BROCHURE,GRANT,CHEQUE PAYMENT
07.06.2017,CENTRAL FUNCTIONS,BRESLIN CONSTRUCTION LTD,"1,850.00",COMMERCIAL PROPERTIES,BUILDING R&M,5902253557
07.06.2017,CENTRAL FUNCTIONS,STANBURY BUILDING SERVICES LTD,-290,COMMERCIAL PROPERTIES,BUILDING R&M,5902253919
07.06.2017,CENTRAL FUNCTIONS,STANBURY BUILDING SERVICES LTD,290,COMMERCIAL PROPERTIES,BUILDING R&M,5902253834
07.06.2017,CHIEF EXECUTIVE,CONWAY AECOM LTD,649.71,CAPITAL PS (REGEN),CONSTR'N SUB CONTRACT - NON CERTIFICATED,2102678447
07.06.2017,CHIEF EXECUTIVE,DRAIN SCAN,260,CAPITAL PS (REGEN),CONSTR'N SUB CONTRACT - NON CERTIFICATED,5902253669
07.06.2017,CHIEF EXECUTIVE,DRAIN SCAN,280,CAPITAL PS (REGEN),CONSTR'N SUB CONTRACT - NON CERTIFICATED,5902253664
07.06.2017,CHIEF EXECUTIVE,DRAIN SCAN,280,CAPITAL PS (REGEN),CONSTR'N SUB CONTRACT - NON CERTIFICATED,5902253671
07.06.2017,CHIEF EXECUTIVE,DRAIN SCAN,280,CAPITAL PS (REGEN),CONSTR'N SUB CONTRACT - NON CERTIFICATED,5902253676
07.06.2017,CHIEF EXECUTIVE,STANDAGE & CO LTD,"91,670.22",CAPITAL PS (REGEN),CONSTRUCTION MAIN CONTRACT -CERTIFICATED,5902253528
07.06.2017,CHIEF EXECUTIVE,WE MADE THAT LLP,"5,167.50",CAPITAL PS (REGEN),CONSTRUCTION FEES  - EXTERNAL,5902253626
07.06.2017,CHIEF EXECUTIVE,WILLIAM MARTIN FIREFLY LTD,645,CAPITAL PS (REGEN),CONSTRUCTION FEES  - EXTERNAL,5902253683
07.06.2017,CHIEF EXECUTIVE'S OFFICE,COLIN WRIGHT,866.64,BUSINESS SUPPORT,GRANTS,5902253566
07.06.2017,CHIEF EXECUTIVE'S OFFICE,CARE TRADE CHARITABLE TRUST,"17,500.00",CHIEF EXEC'S OFFICE,GRANTS,5902253525
07.06.2017,CHIEF EXECUTIVE'S OFFICE,CLOUDSCAPE IT LTD,"9,879.00",CHIEF EXEC'S OFFICE,GRANTS,5902253574
07.06.2017,CHILDREN AND ADULT,MACE LTD,382.5,CAPITAL PS (EDUCATION),CONSTRUCTION,5902253526
07.06.2017,CHILDREN AND ADULT,MACE LTD,"6,517.50",CAPITAL PS (EDUCATION),CONSTRUCTION,5902253526
07.06.2017,CHILDREN AND ADULT,CORELOGIC LTD,"10,500.00",CAPITAL PS (STRAT SERV),ICT ACQUISITION,5902253563
07.06.2017,CHILDREN AND ADULT,HERBERT CONSULTING LIMITED,"6,475.00",CAPITAL PS (STRAT SERV),ICT ACQUISITION,5902253554
07.06.2017,CHILDREN AND ADULT,NUMBER 10 INTERIM LTD,"2,625.00",CAPITAL PS (STRAT SERV),ICT ACQUISITION FEES,5902253613
07.06.2017,CHILDREN'S SERVICES,REDACTED PERSONAL DATA,252.9,ADOPTION PLACEMENTS & INTER AGENCY,PAYMENTS TO CARERS,2102678814
07.06.2017,CHILDREN'S SERVICES,REDACTED PERSONAL DATA,253.56,ADOPTION PLACEMENTS & INTER AGENCY,PAYMENTS TO CARERS,2102678900
07.06.2017,CHILDREN'S SERVICES,REDACTED PERSONAL DATA,255.22,ADOPTION PLACEMENTS & INTER AGENCY,PAYMENTS TO CARERS,2102678825
07.06.2017,CHILDREN'S SERVICES,REDACTED PERSONAL DATA,255.22,ADOPTION PLACEMENTS & INTER AGENCY,PAYMENTS TO CARERS,2102678843
07.06.2017,CHILDREN'S SERVICES,REDACTED PERSONAL DATA,256.54,ADOPTION PLACEMENTS & INTER AGENCY,PAYMENTS TO CARERS,2102678881
07.06.2017,CHILDREN'S SERVICES,REDACTED PERSONAL DATA,263.24,ADOPTION PLACEMENTS & INTER AGENCY,PAYMENTS TO CARERS,2102678751
07.06.2017,CHILDREN'S SERVICES,REDACTED PERSONAL DATA,263.24,ADOPTION PLACEMENTS & INTER AGENCY,PAYMENTS TO CARERS,2102678859
07.06.2017,CHILDREN'S SERVICES,REDACTED PERSONAL DATA,269.22,ADOPTION PLACEMENTS & INTER AGENCY,PAYMENTS TO CARERS,2102678741
07.06.2017,CHILDREN'S SERVICES,REDACTED PERSONAL DATA,275.1,ADOPTION PLACEMENTS & INTER AGENCY,PAYMENTS TO CARERS,2102678757
07.06.2017,CHILDREN'S SERVICES,REDACTED PERSONAL DATA,293.26,ADOPTION PLACEMENTS & INTER AGENCY,PAYMENTS TO CARERS,2102678842
07.06.2017,CHILDREN'S SERVICES,REDACTED PERSONAL DATA,293.98,ADOPTION PLACEMENTS & INTER AGENCY,PAYMENTS TO CARERS,2102678749
07.06.2017,CHILDREN'S SERVICES,REDACTED PERSONAL DATA,303.32,ADOPTION PLACEMENTS & INTER AGENCY,PAYMENTS TO CARERS,2102678853
07.06.2017,CHILDREN'S SERVICES,REDACTED PERSONAL DATA,311.34,ADOPTION PLACEMENTS & INTER AGENCY,PAYMENTS TO CARERS,2102678868
07.06.2017,CHILDREN'S SERVICES,REDACTED PERSONAL DATA,316.5,ADOPTION PLACEMENTS & INTER AGENCY,PAYMENTS TO CARERS,2102678753
07.06.2017,CHILDREN'S SERVICES,REDACTED PERSONAL DATA,316.5,ADOPTION PLACEMENTS & INTER AGENCY,PAYMENTS TO CARERS,2102678816
07.06.2017,CHILDREN'S SERVICES,REDACTED PERSONAL DATA,319.36,ADOPTION PLACEMENTS & INTER AGENCY,PAYMENTS TO CARERS,2102678783
07.06.2017,CHILDREN'S SERVICES,REDACTED PERSONAL DATA,329.16,ADOPTION PLACEMENTS & INTER AGENCY,PAYMENTS TO CARERS,2102678807
07.06.2017,CHILDREN'S SERVICES,REDACTED PERSONAL DATA,329.16,ADOPTION PLACEMENTS & INTER AGENCY,PAYMENTS TO CARERS,2102678818
07.06.2017,CHILDREN'S SERVICES,REDACTED PERSONAL DATA,354.76,ADOPTION PLACEMENTS & INTER AGENCY,PAYMENTS TO CARERS,2102678889
07.06.2017,CHILDREN'S SERVICES,REDACTED PERSONAL DATA,359.44,ADOPTION PLACEMENTS & INTER AGENCY,PAYMENTS TO CARERS,2102678827
07.06.2017,CHILDREN'S SERVICES,REDACTED PERSONAL DATA,368.52,ADOPTION PLACEMENTS & INTER AGENCY,PAYMENTS TO CARERS,2102678776
07.06.2017,CHILDREN'S SERVICES,REDACTED PERSONAL DATA,373.96,ADOPTION PLACEMENTS & INTER AGENCY,PAYMENTS TO CARERS,2102678766
07.06.2017,CHILDREN'S SERVICES,REDACTED PERSONAL DATA,375.54,ADOPTION PLACEMENTS & INTER AGENCY,PAYMENTS TO CARERS,2102678742
07.06.2017,CHILDREN'S SERVICES,REDACTED PERSONAL DATA,375.54,ADOPTION PLACEMENTS & INTER AGENCY,PAYMENTS TO CARERS,2102678752
07.06.2017,CHILDREN'S SERVICES,REDACTED PERSONAL DATA,375.54,ADOPTION PLACEMENTS & INTER AGENCY,PAYMENTS TO CARERS,2102678764
07.06.2017,CHILDREN'S SERVICES,REDACTED PERSONAL DATA,375.54,ADOPTION PLACEMENTS & INTER AGENCY,PAYMENTS TO CARERS,2102678774
07.06.2017,CHILDREN'S SERVICES,REDACTED PERSONAL DATA,375.54,ADOPTION PLACEMENTS & INTER AGENCY,PAYMENTS TO CARERS,2102678820
07.06.2017,CHILDREN'S SERVICES,REDACTED PERSONAL DATA,375.54,ADOPTION PLACEMENTS & INTER AGENCY,PAYMENTS TO CARERS,2102678849
07.06.2017,CHILDREN'S SERVICES,REDACTED PERSONAL DATA,375.54,ADOPTION PLACEMENTS & INTER AGENCY,PAYMENTS TO CARERS,2102678852
07.06.2017,CHILDREN'S SERVICES,REDACTED PERSONAL DATA,375.54,ADOPTION PLACEMENTS & INTER AGENCY,PAYMENTS TO CARERS,2102678876
07.06.2017,CHILDREN'S SERVICES,REDACTED PERSONAL DATA,375.54,ADOPTION PLACEMENTS & INTER AGENCY,PAYMENTS TO CARERS,2102678883
07.06.2017,CHILDREN'S SERVICES,REDACTED PERSONAL DATA,379.81,ADOPTION PLACEMENTS & INTER AGENCY,PAYMENTS TO CARERS,2102678846
07.06.2017,CHILDREN'S SERVICES,REDACTED PERSONAL DATA,382.3,ADOPTION PLACEMENTS & INTER AGENCY,PAYMENTS TO CARERS,2102678785
07.06.2017,CHILDREN'S SERVICES,REDACTED PERSONAL DATA,382.3,ADOPTION PLACEMENTS & INTER AGENCY,PAYMENTS TO CARERS,2102678810
07.06.2017,CHILDREN'S SERVICES,REDACTED PERSONAL DATA,382.3,ADOPTION PLACEMENTS & INTER AGENCY,PAYMENTS TO CARERS,2102678833
07.06.2017,CHILDREN'S SERVICES,REDACTED PERSONAL DATA,382.3,ADOPTION PLACEMENTS & INTER AGENCY,PAYMENTS TO CARERS,2102678862
07.06.2017,CHILDREN'S SERVICES,REDACTED PERSONAL DATA,390.26,ADOPTION PLACEMENTS & INTER AGENCY,PAYMENTS TO CARERS,2102678896
07.06.2017,CHILDREN'S SERVICES,REDACTED PERSONAL DATA,400.18,ADOPTION PLACEMENTS & INTER AGENCY,PAYMENTS TO CARERS,2102678793
07.06.2017,CHILDREN'S SERVICES,REDACTED PERSONAL DATA,400.84,ADOPTION PLACEMENTS & INTER AGENCY,PAYMENTS TO CARERS,2102678808
07.06.2017,CHILDREN'S SERVICES,REDACTED PERSONAL DATA,404.46,ADOPTION PLACEMENTS & INTER AGENCY,PAYMENTS TO CARERS,2102678869
07.06.2017,CHILDREN'S SERVICES,REDACTED PERSONAL DATA,409.02,ADOPTION PLACEMENTS & INTER AGENCY,PAYMENTS TO CARERS,2102678797
07.06.2017,CHILDREN'S SERVICES,REDACTED PERSONAL DATA,451.8,ADOPTION PLACEMENTS & INTER AGENCY,PAYMENTS TO CARERS,2102678844
07.06.2017,CHILDREN'S SERVICES,REDACTED PERSONAL DATA,453.24,ADOPTION PLACEMENTS & INTER AGENCY,PAYMENTS TO CARERS,2102678847
07.06.2017,CHILDREN'S SERVICES,REDACTED PERSONAL DATA,453.24,ADOPTION PLACEMENTS & INTER AGENCY,PAYMENTS TO CARERS,2102678897
07.06.2017,CHILDREN'S SERVICES,REDACTED PERSONAL DATA,457.14,ADOPTION PLACEMENTS & INTER AGENCY,PAYMENTS TO CARERS,2102678759
07.06.2017,CHILDREN'S SERVICES,REDACTED PERSONAL DATA,465.48,ADOPTION PLACEMENTS & INTER AGENCY,PAYMENTS TO CARERS,2102678864
07.06.2017,CHILDREN'S SERVICES,REDACTED PERSONAL DATA,465.52,ADOPTION PLACEMENTS & INTER AGENCY,PAYMENTS TO CARERS,2102678828
07.06.2017,CHILDREN'S SERVICES,REDACTED PERSONAL DATA,465.52,ADOPTION PLACEMENTS & INTER AGENCY,PAYMENTS TO CARERS,2102678850
07.06.2017,CHILDREN'S SERVICES,REDACTED PERSONAL DATA,465.54,ADOPTION PLACEMENTS & INTER AGENCY,PAYMENTS TO CARERS,2102678777
07.06.2017,CHILDREN'S SERVICES,REDACTED PERSONAL DATA,465.54,ADOPTION PLACEMENTS & INTER AGENCY,PAYMENTS TO CARERS,2102678786
07.06.2017,CHILDREN'S SERVICES,REDACTED PERSONAL DATA,465.54,ADOPTION PLACEMENTS & INTER AGENCY,PAYMENTS TO CARERS,2102678800
07.06.2017,CHILDREN'S SERVICES,REDACTED PERSONAL DATA,465.54,ADOPTION PLACEMENTS & INTER AGENCY,PAYMENTS TO CARERS,2102678834
07.06.2017,CHILDREN'S SERVICES,REDACTED PERSONAL DATA,465.54,ADOPTION PLACEMENTS & INTER AGENCY,PAYMENTS TO CARERS,2102678873
07.06.2017,CHILDREN'S SERVICES,REDACTED PERSONAL DATA,468.46,ADOPTION PLACEMENTS & INTER AGENCY,PAYMENTS TO CARERS,2102678775
07.06.2017,CHILDREN'S SERVICES,REDACTED PERSONAL DATA,484.92,ADOPTION PLACEMENTS & INTER AGENCY,PAYMENTS TO CARERS,2102678839
07.06.2017,CHILDREN'S SERVICES,REDACTED PERSONAL DATA,485.22,ADOPTION PLACEMENTS & INTER AGENCY,PAYMENTS TO CARERS,2102678837
07.06.2017,CHILDREN'S SERVICES,REDACTED PERSONAL DATA,502,ADOPTION PLACEMENTS & INTER AGENCY,PAYMENTS TO CARERS,2102678747
07.06.2017,CHILDREN'S SERVICES,REDACTED PERSONAL DATA,512.02,ADOPTION PLACEMENTS & INTER AGENCY,PAYMENTS TO CARERS,2102678760
07.06.2017,CHILDREN'S SERVICES,REDACTED PERSONAL DATA,530,ADOPTION PLACEMENTS & INTER AGENCY,PAYMENTS TO CARERS,2102678758
07.06.2017,CHILDREN'S SERVICES,REDACTED PERSONAL DATA,534.54,ADOPTION PLACEMENTS & INTER AGENCY,PAYMENTS TO CARERS,2102678865
07.06.2017,CHILDREN'S SERVICES,REDACTED PERSONAL DATA,538.08,ADOPTION PLACEMENTS & INTER AGENCY,PAYMENTS TO CARERS,2102678770
07.06.2017,CHILDREN'S SERVICES,REDACTED PERSONAL DATA,552.16,ADOPTION PLACEMENTS & INTER AGENCY,PAYMENTS TO CARERS,2102678898
07.06.2017,CHILDREN'S SERVICES,REDACTED PERSONAL DATA,559.06,ADOPTION PLACEMENTS & INTER AGENCY,PAYMENTS TO CARERS,2102678826
07.06.2017,CHILDREN'S SERVICES,REDACTED PERSONAL DATA,588.42,ADOPTION PLACEMENTS & INTER AGENCY,PAYMENTS TO CARERS,2102678812
07.06.2017,CHILDREN'S SERVICES,REDACTED PERSONAL DATA,635.34,ADOPTION PLACEMENTS & INTER AGENCY,PAYMENTS TO CARERS,2102678761
07.06.2017,CHILDREN'S SERVICES,REDACTED PERSONAL DATA,635.34,ADOPTION PLACEMENTS & INTER AGENCY,PAYMENTS TO CARERS,2102678784
07.06.2017,CHILDREN'S SERVICES,REDACTED PERSONAL DATA,652.9,ADOPTION PLACEMENTS & INTER AGENCY,PAYMENTS TO CARERS,2102678787
07.06.2017,CHILDREN'S SERVICES,REDACTED PERSONAL DATA,652.9,ADOPTION PLACEMENTS & INTER AGENCY,PAYMENTS TO CARERS,2102678840
07.06.2017,CHILDREN'S SERVICES,REDACTED PERSONAL DATA,653.06,ADOPTION PLACEMENTS & INTER AGENCY,PAYMENTS TO CARERS,2102678799
07.06.2017,CHILDREN'S SERVICES,REDACTED PERSONAL DATA,682.3,ADOPTION PLACEMENTS & INTER AGENCY,PAYMENTS TO CARERS,2102678831
07.06.2017,CHILDREN'S SERVICES,REDACTED PERSONAL DATA,682.3,ADOPTION PLACEMENTS & INTER AGENCY,PAYMENTS TO CARERS,2102678892
07.06.2017,CHILDREN'S SERVICES,REDACTED PERSONAL DATA,688.62,ADOPTION PLACEMENTS & INTER AGENCY,PAYMENTS TO CARERS,2102678891
07.06.2017,CHILDREN'S SERVICES,REDACTED PERSONAL DATA,695.04,ADOPTION PLACEMENTS & INTER AGENCY,PAYMENTS TO CARERS,2102678748
07.06.2017,CHILDREN'S SERVICES,REDACTED PERSONAL DATA,695.12,ADOPTION PLACEMENTS & INTER AGENCY,PAYMENTS TO CARERS,2102678878
07.06.2017,CHILDREN'S SERVICES,REDACTED PERSONAL DATA,705.24,ADOPTION PLACEMENTS & INTER AGENCY,PAYMENTS TO CARERS,2102678798
07.06.2017,CHILDREN'S SERVICES,REDACTED PERSONAL DATA,712.3,ADOPTION PLACEMENTS & INTER AGENCY,PAYMENTS TO CARERS,2102678743
07.06.2017,CHILDREN'S SERVICES,REDACTED PERSONAL DATA,717.14,ADOPTION PLACEMENTS & INTER AGENCY,PAYMENTS TO CARERS,2102678750
07.06.2017,CHILDREN'S SERVICES,REDACTED PERSONAL DATA,738.32,ADOPTION PLACEMENTS & INTER AGENCY,PAYMENTS TO CARERS,2102678866
07.06.2017,CHILDREN'S SERVICES,REDACTED PERSONAL DATA,767.68,ADOPTION PLACEMENTS & INTER AGENCY,PAYMENTS TO CARERS,2102678778
07.06.2017,CHILDREN'S SERVICES,REDACTED PERSONAL DATA,777.36,ADOPTION PLACEMENTS & INTER AGENCY,PAYMENTS TO CARERS,2102678803
07.06.2017,CHILDREN'S SERVICES,REDACTED PERSONAL DATA,800,ADOPTION PLACEMENTS & INTER AGENCY,PAYMENTS TO CARERS,2102678811
07.06.2017,CHILDREN'S SERVICES,REDACTED PERSONAL DATA,854.28,ADOPTION PLACEMENTS & INTER AGENCY,PAYMENTS TO CARERS,2102678830
07.06.2017,CHILDREN'S SERVICES,REDACTED PERSONAL DATA,908,ADOPTION PLACEMENTS & INTER AGENCY,PAYMENTS TO CARERS,2102678817
07.06.2017,CHILDREN'S SERVICES,REDACTED PERSONAL DATA,"1,011.20",ADOPTION PLACEMENTS & INTER AGENCY,PAYMENTS TO CARERS,2102678858
07.06.2017,CHILDREN'S SERVICES,REDACTED PERSONAL DATA,"1,053.20",ADOPTION PLACEMENTS & INTER AGENCY,PAYMENTS TO CARERS,2102678795
07.06.2017,CHILDREN'S SERVICES,REDACTED PERSONAL DATA,"1,079.60",ADOPTION PLACEMENTS & INTER AGENCY,PAYMENTS TO CARERS,2102678805
07.06.2017,CHILDREN'S SERVICES,REDACTED PERSONAL DATA,"1,647.18",ADOPTION PLACEMENTS & INTER AGENCY,PAYMENTS TO CARERS,2102678871
07.06.2017,CHILDREN'S SERVICES,BRAKE BROS,262.87,BISHOPS HOUSE EARLY YEARS CENTRE,CATERING MATERIALS & SUPPLIES,5902253663
07.06.2017,CHILDREN'S SERVICES,KENT COUNTY COUNCIL - LASER,799.56,BISHOPS HOUSE EARLY YEARS CENTRE,ELECTRICITY,5902253593
07.06.2017,CHILDREN'S SERVICES,ASSET INTERNATIONAL,880,CENTRAL SUPPORT,MEDICAL / HEALTH & SAFETY SERVICES,5902253686
07.06.2017,CHILDREN'S SERVICES,OFFICE DEPOT UK LTD,685.74,CENTRAL SUPPORT,STATIONERY,5902253690
07.06.2017,CHILDREN'S SERVICES,REDACTED PERSONAL DATA,"1,560.00",COMPLAINTS,OTHER PAYMENTS FOR CLIENTS,5902253634
07.06.2017,CHILDREN'S SERVICES,REDACTED PERSONAL DATA,254.39,DISABILITY & HIV,PAYMENTS TO CARERS,2102679202
07.06.2017,CHILDREN'S SERVICES,REDACTED PERSONAL DATA,300,DISABILITY & HIV,OTHER PAYMENTS FOR CLIENTS,2102679141
07.06.2017,CHILDREN'S SERVICES,REDACTED PERSONAL DATA,342.05,DISABILITY & HIV,PAYMENTS TO CARERS,2102679087
07.06.2017,CHILDREN'S SERVICES,REDACTED PERSONAL DATA,400,DISABILITY & HIV,ADDITIONAL PAYMENTS TO AGENCIES/CARERS,2102679023
07.06.2017,CHILDREN'S SERVICES,REDACTED PERSONAL DATA,518.19,DISABILITY & HIV,PAYMENTS TO CARERS,2102679200
07.06.2017,CHILDREN'S SERVICES,REDACTED PERSONAL DATA,635.34,DISABILITY & HIV,PAYMENTS TO CARERS,2102678999
07.06.2017,CHILDREN'S SERVICES,REDACTED PERSONAL DATA,635.34,DISABILITY & HIV,PAYMENTS TO CARERS,2102679001
07.06.2017,CHILDREN'S SERVICES,REDACTED PERSONAL DATA,635.34,DISABILITY & HIV,PAYMENTS TO CARERS,2102679052
07.06.2017,CHILDREN'S SERVICES,REDACTED PERSONAL DATA,635.34,DISABILITY & HIV,PAYMENTS TO CARERS,2102679091
07.06.2017,CHILDREN'S SERVICES,REDACTED PERSONAL DATA,635.34,DISABILITY & HIV,PAYMENTS TO CARERS,2102679131
07.06.2017,CHILDREN'S SERVICES,REDACTED PERSONAL DATA,635.34,DISABILITY & HIV,PAYMENTS TO CARERS,2102679133
07.06.2017,CHILDREN'S SERVICES,REDACTED PERSONAL DATA,635.34,DISABILITY & HIV,PAYMENTS TO CARERS,2102679145
07.06.2017,CHILDREN'S SERVICES,REDACTED PERSONAL DATA,635.34,DISABILITY & HIV,PAYMENTS TO CARERS,2102679179
07.06.2017,CHILDREN'S SERVICES,REDACTED PERSONAL DATA,635.34,DISABILITY & HIV,PAYMENTS TO CARERS,2102679189
07.06.2017,CHILDREN'S SERVICES,REDACTED PERSONAL DATA,635.34,DISABILITY & HIV,PAYMENTS TO CARERS,2102679209
07.06.2017,CHILDREN'S SERVICES,REDACTED PERSONAL DATA,640.9,DISABILITY & HIV,PAYMENTS TO CARERS,2102679220
07.06.2017,CHILDREN'S SERVICES,REDACTED PERSONAL DATA,665.34,DISABILITY & HIV,PAYMENTS TO CARERS,2102679004
07.06.2017,CHILDREN'S SERVICES,REDACTED PERSONAL DATA,665.34,DISABILITY & HIV,PAYMENTS TO CARERS,2102679016
07.06.2017,CHILDREN'S SERVICES,REDACTED PERSONAL DATA,665.34,DISABILITY & HIV,PAYMENTS TO CARERS,2102679020
07.06.2017,CHILDREN'S SERVICES,REDACTED PERSONAL DATA,665.34,DISABILITY & HIV,PAYMENTS TO CARERS,2102679022
07.06.2017,CHILDREN'S SERVICES,REDACTED PERSONAL DATA,665.34,DISABILITY & HIV,PAYMENTS TO CARERS,2102679029
07.06.2017,CHILDREN'S SERVICES,REDACTED PERSONAL DATA,665.34,DISABILITY & HIV,PAYMENTS TO CARERS,2102679077
07.06.2017,CHILDREN'S SERVICES,REDACTED PERSONAL DATA,665.34,DISABILITY & HIV,PAYMENTS TO CARERS,2102679122
07.06.2017,CHILDREN'S SERVICES,REDACTED PERSONAL DATA,665.34,DISABILITY & HIV,PAYMENTS TO CARERS,2102679123
07.06.2017,CHILDREN'S SERVICES,REDACTED PERSONAL DATA,665.34,DISABILITY & HIV,PAYMENTS TO CARERS,2102679163
07.06.2017,CHILDREN'S SERVICES,REDACTED PERSONAL DATA,665.34,DISABILITY & HIV,PAYMENTS TO CARERS,2102679166
07.06.2017,CHILDREN'S SERVICES,REDACTED PERSONAL DATA,665.34,DISABILITY & HIV,PAYMENTS TO CARERS,2102679184
07.06.2017,CHILDREN'S SERVICES,REDACTED PERSONAL DATA,665.34,DISABILITY & HIV,PAYMENTS TO CARERS,2102679193
07.06.2017,CHILDREN'S SERVICES,REDACTED PERSONAL DATA,665.34,DISABILITY & HIV,PAYMENTS TO CARERS,2102679206
07.06.2017,CHILDREN'S SERVICES,REDACTED PERSONAL DATA,665.34,DISABILITY & HIV,PAYMENTS TO CARERS,2102679217
07.06.2017,CHILDREN'S SERVICES,REDACTED PERSONAL DATA,682.3,DISABILITY & HIV,PAYMENTS TO CARERS,2102679005
07.06.2017,CHILDREN'S SERVICES,REDACTED PERSONAL DATA,682.3,DISABILITY & HIV,PAYMENTS TO CARERS,2102679019
07.06.2017,CHILDREN'S SERVICES,REDACTED PERSONAL DATA,682.3,DISABILITY & HIV,PAYMENTS TO CARERS,2102679065
07.06.2017,CHILDREN'S SERVICES,REDACTED PERSONAL DATA,682.3,DISABILITY & HIV,PAYMENTS TO CARERS,2102679101
07.06.2017,CHILDREN'S SERVICES,REDACTED PERSONAL DATA,682.3,DISABILITY & HIV,PAYMENTS TO CARERS,2102679109
07.06.2017,CHILDREN'S SERVICES,REDACTED PERSONAL DATA,682.3,DISABILITY & HIV,PAYMENTS TO CARERS,2102679125
07.06.2017,CHILDREN'S SERVICES,REDACTED PERSONAL DATA,682.3,DISABILITY & HIV,PAYMENTS TO CARERS,2102679134
07.06.2017,CHILDREN'S SERVICES,REDACTED PERSONAL DATA,682.3,DISABILITY & HIV,PAYMENTS TO CARERS,2102679142
07.06.2017,CHILDREN'S SERVICES,REDACTED PERSONAL DATA,682.3,DISABILITY & HIV,PAYMENTS TO CARERS,2102679150
07.06.2017,CHILDREN'S SERVICES,REDACTED PERSONAL DATA,682.3,DISABILITY & HIV,PAYMENTS TO CARERS,2102679173
07.06.2017,CHILDREN'S SERVICES,REDACTED PERSONAL DATA,682.3,DISABILITY & HIV,PAYMENTS TO CARERS,2102679194
07.06.2017,CHILDREN'S SERVICES,REDACTED PERSONAL DATA,682.3,DISABILITY & HIV,PAYMENTS TO CARERS,2102679201
07.06.2017,CHILDREN'S SERVICES,REDACTED PERSONAL DATA,682.3,DISABILITY & HIV,PAYMENTS TO CARERS,2102679203
07.06.2017,CHILDREN'S SERVICES,REDACTED PERSONAL DATA,682.3,DISABILITY & HIV,PAYMENTS TO CARERS,2102679207
07.06.2017,CHILDREN'S SERVICES,REDACTED PERSONAL DATA,682.3,DISABILITY & HIV,PAYMENTS TO CARERS,2102679210
07.06.2017,CHILDREN'S SERVICES,REDACTED PERSONAL DATA,682.3,DISABILITY & HIV,PAYMENTS TO CARERS,2102679218
07.06.2017,CHILDREN'S SERVICES,REDACTED PERSONAL DATA,682.3,DISABILITY & HIV,PAYMENTS TO CARERS,2102679219
07.06.2017,CHILDREN'S SERVICES,REDACTED PERSONAL DATA,712.3,DISABILITY & HIV,PAYMENTS TO CARERS,2102678998
07.06.2017,CHILDREN'S SERVICES,REDACTED PERSONAL DATA,712.3,DISABILITY & HIV,PAYMENTS TO CARERS,2102679002
07.06.2017,CHILDREN'S SERVICES,REDACTED PERSONAL DATA,712.3,DISABILITY & HIV,PAYMENTS TO CARERS,2102679012
07.06.2017,CHILDREN'S SERVICES,REDACTED PERSONAL DATA,712.3,DISABILITY & HIV,PAYMENTS TO CARERS,2102679033
07.06.2017,CHILDREN'S SERVICES,REDACTED PERSONAL DATA,712.3,DISABILITY & HIV,PAYMENTS TO CARERS,2102679042
07.06.2017,CHILDREN'S SERVICES,REDACTED PERSONAL DATA,712.3,DISABILITY & HIV,PAYMENTS TO CARERS,2102679050
07.06.2017,CHILDREN'S SERVICES,REDACTED PERSONAL DATA,712.3,DISABILITY & HIV,PAYMENTS TO CARERS,2102679068
07.06.2017,CHILDREN'S SERVICES,REDACTED PERSONAL DATA,712.3,DISABILITY & HIV,PAYMENTS TO CARERS,2102679082
07.06.2017,CHILDREN'S SERVICES,REDACTED PERSONAL DATA,712.3,DISABILITY & HIV,PAYMENTS TO CARERS,2102679088
07.06.2017,CHILDREN'S SERVICES,REDACTED PERSONAL DATA,712.3,DISABILITY & HIV,PAYMENTS TO CARERS,2102679089
07.06.2017,CHILDREN'S SERVICES,REDACTED PERSONAL DATA,712.3,DISABILITY & HIV,PAYMENTS TO CARERS,2102679092
07.06.2017,CHILDREN'S SERVICES,REDACTED PERSONAL DATA,712.3,DISABILITY & HIV,PAYMENTS TO CARERS,2102679113
07.06.2017,CHILDREN'S SERVICES,REDACTED PERSONAL DATA,712.3,DISABILITY & HIV,PAYMENTS TO CARERS,2102679127
07.06.2017,CHILDREN'S SERVICES,REDACTED PERSONAL DATA,712.3,DISABILITY & HIV,PAYMENTS TO CARERS,2102679128
07.06.2017,CHILDREN'S SERVICES,REDACTED PERSONAL DATA,712.3,DISABILITY & HIV,PAYMENTS TO CARERS,2102679132
07.06.2017,CHILDREN'S SERVICES,REDACTED PERSONAL DATA,712.3,DISABILITY & HIV,PAYMENTS TO CARERS,2102679159
07.06.2017,CHILDREN'S SERVICES,REDACTED PERSONAL DATA,712.3,DISABILITY & HIV,PAYMENTS TO CARERS,2102679167
07.06.2017,CHILDREN'S SERVICES,REDACTED PERSONAL DATA,712.3,DISABILITY & HIV,PAYMENTS TO CARERS,2102679170
07.06.2017,CHILDREN'S SERVICES,REDACTED PERSONAL DATA,712.3,DISABILITY & HIV,PAYMENTS TO CARERS,2102679177
07.06.2017,CHILDREN'S SERVICES,REDACTED PERSONAL DATA,712.3,DISABILITY & HIV,PAYMENTS TO CARERS,2102679178
07.06.2017,CHILDREN'S SERVICES,REDACTED PERSONAL DATA,712.3,DISABILITY & HIV,PAYMENTS TO CARERS,2102679187
07.06.2017,CHILDREN'S SERVICES,REDACTED PERSONAL DATA,712.3,DISABILITY & HIV,PAYMENTS TO CARERS,2102679188
07.06.2017,CHILDREN'S SERVICES,REDACTED PERSONAL DATA,712.3,DISABILITY & HIV,PAYMENTS TO CARERS,2102679197
07.06.2017,CHILDREN'S SERVICES,REDACTED PERSONAL DATA,765.88,DISABILITY & HIV,PAYMENTS TO CARERS,2102679130
07.06.2017,CHILDREN'S SERVICES,REDACTED PERSONAL DATA,768.12,DISABILITY & HIV,PAYMENTS TO CARERS,2102679046
07.06.2017,CHILDREN'S SERVICES,REDACTED PERSONAL DATA,768.12,DISABILITY & HIV,PAYMENTS TO CARERS,2102679097
07.06.2017,CHILDREN'S SERVICES,REDACTED PERSONAL DATA,768.12,DISABILITY & HIV,PAYMENTS TO CARERS,2102679168
07.06.2017,CHILDREN'S SERVICES,REDACTED PERSONAL DATA,768.12,DISABILITY & HIV,PAYMENTS TO CARERS,2102679227
07.06.2017,CHILDREN'S SERVICES,REDACTED PERSONAL DATA,776.08,DISABILITY & HIV,PAYMENTS TO CARERS,2102679024
07.06.2017,CHILDREN'S SERVICES,REDACTED PERSONAL DATA,776.08,DISABILITY & HIV,PAYMENTS TO CARERS,2102679031
07.06.2017,CHILDREN'S SERVICES,REDACTED PERSONAL DATA,776.08,DISABILITY & HIV,PAYMENTS TO CARERS,2102679048
07.06.2017,CHILDREN'S SERVICES,REDACTED PERSONAL DATA,776.08,DISABILITY & HIV,PAYMENTS TO CARERS,2102679051
07.06.2017,CHILDREN'S SERVICES,REDACTED PERSONAL DATA,776.08,DISABILITY & HIV,PAYMENTS TO CARERS,2102679063
07.06.2017,CHILDREN'S SERVICES,REDACTED PERSONAL DATA,776.08,DISABILITY & HIV,PAYMENTS TO CARERS,2102679099
07.06.2017,CHILDREN'S SERVICES,REDACTED PERSONAL DATA,776.08,DISABILITY & HIV,PAYMENTS TO CARERS,2102679138
07.06.2017,CHILDREN'S SERVICES,REDACTED PERSONAL DATA,776.08,DISABILITY & HIV,PAYMENTS TO CARERS,2102679158
07.06.2017,CHILDREN'S SERVICES,REDACTED PERSONAL DATA,776.08,DISABILITY & HIV,PAYMENTS TO CARERS,2102679171
07.06.2017,CHILDREN'S SERVICES,REDACTED PERSONAL DATA,776.08,DISABILITY & HIV,PAYMENTS TO CARERS,2102679172
07.06.2017,CHILDREN'S SERVICES,REDACTED PERSONAL DATA,776.08,DISABILITY & HIV,PAYMENTS TO CARERS,2102679226
07.06.2017,CHILDREN'S SERVICES,REDACTED PERSONAL DATA,777.36,DISABILITY & HIV,PAYMENTS TO CARERS,2102679036
07.06.2017,CHILDREN'S SERVICES,REDACTED PERSONAL DATA,798.12,DISABILITY & HIV,PAYMENTS TO CARERS,2102679032
07.06.2017,CHILDREN'S SERVICES,REDACTED PERSONAL DATA,798.12,DISABILITY & HIV,PAYMENTS TO CARERS,2102679066
07.06.2017,CHILDREN'S SERVICES,REDACTED PERSONAL DATA,798.12,DISABILITY & HIV,PAYMENTS TO CARERS,2102679073
07.06.2017,CHILDREN'S SERVICES,REDACTED PERSONAL DATA,798.12,DISABILITY & HIV,PAYMENTS TO CARERS,2102679074
07.06.2017,CHILDREN'S SERVICES,REDACTED PERSONAL DATA,798.12,DISABILITY & HIV,PAYMENTS TO CARERS,2102679076
07.06.2017,CHILDREN'S SERVICES,REDACTED PERSONAL DATA,798.12,DISABILITY & HIV,PAYMENTS TO CARERS,2102679079
07.06.2017,CHILDREN'S SERVICES,REDACTED PERSONAL DATA,798.12,DISABILITY & HIV,PAYMENTS TO CARERS,2102679094
07.06.2017,CHILDREN'S SERVICES,REDACTED PERSONAL DATA,798.12,DISABILITY & HIV,PAYMENTS TO CARERS,2102679096
07.06.2017,CHILDREN'S SERVICES,REDACTED PERSONAL DATA,798.12,DISABILITY & HIV,PAYMENTS TO CARERS,2102679108
07.06.2017,CHILDREN'S SERVICES,REDACTED PERSONAL DATA,798.12,DISABILITY & HIV,PAYMENTS TO CARERS,2102679120
07.06.2017,CHILDREN'S SERVICES,REDACTED PERSONAL DATA,798.12,DISABILITY & HIV,PAYMENTS TO CARERS,2102679135
07.06.2017,CHILDREN'S SERVICES,REDACTED PERSONAL DATA,798.12,DISABILITY & HIV,PAYMENTS TO CARERS,2102679140
07.06.2017,CHILDREN'S SERVICES,REDACTED PERSONAL DATA,798.12,DISABILITY & HIV,PAYMENTS TO CARERS,2102679153
07.06.2017,CHILDREN'S SERVICES,REDACTED PERSONAL DATA,798.12,DISABILITY & HIV,PAYMENTS TO CARERS,2102679162
07.06.2017,CHILDREN'S SERVICES,REDACTED PERSONAL DATA,798.12,DISABILITY & HIV,PAYMENTS TO CARERS,2102679174
07.06.2017,CHILDREN'S SERVICES,REDACTED PERSONAL DATA,798.12,DISABILITY & HIV,PAYMENTS TO CARERS,2102679191
07.06.2017,CHILDREN'S SERVICES,REDACTED PERSONAL DATA,798.12,DISABILITY & HIV,PAYMENTS TO CARERS,2102679192
07.06.2017,CHILDREN'S SERVICES,REDACTED PERSONAL DATA,798.12,DISABILITY & HIV,PAYMENTS TO CARERS,2102679196
07.06.2017,CHILDREN'S SERVICES,REDACTED PERSONAL DATA,798.12,DISABILITY & HIV,PAYMENTS TO CARERS,2102679224
07.06.2017,CHILDREN'S SERVICES,REDACTED PERSONAL DATA,801.68,DISABILITY & HIV,PAYMENTS TO CARERS,2102679090
07.06.2017,CHILDREN'S SERVICES,REDACTED PERSONAL DATA,806.08,DISABILITY & HIV,PAYMENTS TO CARERS,2102679000
07.06.2017,CHILDREN'S SERVICES,REDACTED PERSONAL DATA,806.08,DISABILITY & HIV,PAYMENTS TO CARERS,2102679006
07.06.2017,CHILDREN'S SERVICES,REDACTED PERSONAL DATA,806.08,DISABILITY & HIV,PAYMENTS TO CARERS,2102679007
07.06.2017,CHILDREN'S SERVICES,REDACTED PERSONAL DATA,806.08,DISABILITY & HIV,PAYMENTS TO CARERS,2102679011
07.06.2017,CHILDREN'S SERVICES,REDACTED PERSONAL DATA,806.08,DISABILITY & HIV,PAYMENTS TO CARERS,2102679018
07.06.2017,CHILDREN'S SERVICES,REDACTED PERSONAL DATA,806.08,DISABILITY & HIV,PAYMENTS TO CARERS,2102679034
07.06.2017,CHILDREN'S SERVICES,REDACTED PERSONAL DATA,806.08,DISABILITY & HIV,PAYMENTS TO CARERS,2102679037
07.06.2017,CHILDREN'S SERVICES,REDACTED PERSONAL DATA,806.08,DISABILITY & HIV,PAYMENTS TO CARERS,2102679038
07.06.2017,CHILDREN'S SERVICES,REDACTED PERSONAL DATA,806.08,DISABILITY & HIV,PAYMENTS TO CARERS,2102679039
07.06.2017,CHILDREN'S SERVICES,REDACTED PERSONAL DATA,806.08,DISABILITY & HIV,PAYMENTS TO CARERS,2102679041
07.06.2017,CHILDREN'S SERVICES,REDACTED PERSONAL DATA,806.08,DISABILITY & HIV,PAYMENTS TO CARERS,2102679047
07.06.2017,CHILDREN'S SERVICES,REDACTED PERSONAL DATA,806.08,DISABILITY & HIV,PAYMENTS TO CARERS,2102679054
07.06.2017,CHILDREN'S SERVICES,REDACTED PERSONAL DATA,806.08,DISABILITY & HIV,PAYMENTS TO CARERS,2102679056
07.06.2017,CHILDREN'S SERVICES,REDACTED PERSONAL DATA,806.08,DISABILITY & HIV,PAYMENTS TO CARERS,2102679061
07.06.2017,CHILDREN'S SERVICES,REDACTED PERSONAL DATA,806.08,DISABILITY & HIV,PAYMENTS TO CARERS,2102679062
07.06.2017,CHILDREN'S SERVICES,REDACTED PERSONAL DATA,806.08,DISABILITY & HIV,PAYMENTS TO CARERS,2102679084
07.06.2017,CHILDREN'S SERVICES,REDACTED PERSONAL DATA,806.08,DISABILITY & HIV,PAYMENTS TO CARERS,2102679095
07.06.2017,CHILDREN'S SERVICES,REDACTED PERSONAL DATA,806.08,DISABILITY & HIV,PAYMENTS TO CARERS,2102679102
07.06.2017,CHILDREN'S SERVICES,REDACTED PERSONAL DATA,806.08,DISABILITY & HIV,PAYMENTS TO CARERS,2102679106
07.06.2017,CHILDREN'S SERVICES,REDACTED PERSONAL DATA,806.08,DISABILITY & HIV,PAYMENTS TO CARERS,2102679107
07.06.2017,CHILDREN'S SERVICES,REDACTED PERSONAL DATA,806.08,DISABILITY & HIV,PAYMENTS TO CARERS,2102679110
07.06.2017,CHILDREN'S SERVICES,REDACTED PERSONAL DATA,806.08,DISABILITY & HIV,PAYMENTS TO CARERS,2102679111
07.06.2017,CHILDREN'S SERVICES,REDACTED PERSONAL DATA,806.08,DISABILITY & HIV,PAYMENTS TO CARERS,2102679118
07.06.2017,CHILDREN'S SERVICES,REDACTED PERSONAL DATA,806.08,DISABILITY & HIV,PAYMENTS TO CARERS,2102679119
07.06.2017,CHILDREN'S SERVICES,REDACTED PERSONAL DATA,806.08,DISABILITY & HIV,PAYMENTS TO CARERS,2102679124
07.06.2017,CHILDREN'S SERVICES,REDACTED PERSONAL DATA,806.08,DISABILITY & HIV,PAYMENTS TO CARERS,2102679126
07.06.2017,CHILDREN'S SERVICES,REDACTED PERSONAL DATA,806.08,DISABILITY & HIV,PAYMENTS TO CARERS,2102679139
07.06.2017,CHILDREN'S SERVICES,REDACTED PERSONAL DATA,806.08,DISABILITY & HIV,PAYMENTS TO CARERS,2102679144
07.06.2017,CHILDREN'S SERVICES,REDACTED PERSONAL DATA,806.08,DISABILITY & HIV,PAYMENTS TO CARERS,2102679146
07.06.2017,CHILDREN'S SERVICES,REDACTED PERSONAL DATA,806.08,DISABILITY & HIV,PAYMENTS TO CARERS,2102679149
07.06.2017,CHILDREN'S SERVICES,REDACTED PERSONAL DATA,806.08,DISABILITY & HIV,PAYMENTS TO CARERS,2102679157
07.06.2017,CHILDREN'S SERVICES,REDACTED PERSONAL DATA,806.08,DISABILITY & HIV,PAYMENTS TO CARERS,2102679160
07.06.2017,CHILDREN'S SERVICES,REDACTED PERSONAL DATA,806.08,DISABILITY & HIV,PAYMENTS TO CARERS,2102679161
07.06.2017,CHILDREN'S SERVICES,REDACTED PERSONAL DATA,806.08,DISABILITY & HIV,PAYMENTS TO CARERS,2102679169
07.06.2017,CHILDREN'S SERVICES,REDACTED PERSONAL DATA,806.08,DISABILITY & HIV,PAYMENTS TO CARERS,2102679181
07.06.2017,CHILDREN'S SERVICES,REDACTED PERSONAL DATA,806.08,DISABILITY & HIV,PAYMENTS TO CARERS,2102679182
07.06.2017,CHILDREN'S SERVICES,REDACTED PERSONAL DATA,806.08,DISABILITY & HIV,PAYMENTS TO CARERS,2102679183
07.06.2017,CHILDREN'S SERVICES,REDACTED PERSONAL DATA,806.08,DISABILITY & HIV,PAYMENTS TO CARERS,2102679190
07.06.2017,CHILDREN'S SERVICES,REDACTED PERSONAL DATA,806.08,DISABILITY & HIV,PAYMENTS TO CARERS,2102679205
07.06.2017,CHILDREN'S SERVICES,REDACTED PERSONAL DATA,806.08,DISABILITY & HIV,PAYMENTS TO CARERS,2102679208
07.06.2017,CHILDREN'S SERVICES,REDACTED PERSONAL DATA,806.08,DISABILITY & HIV,PAYMENTS TO CARERS,2102679212
07.06.2017,CHILDREN'S SERVICES,REDACTED PERSONAL DATA,806.08,DISABILITY & HIV,PAYMENTS TO CARERS,2102679213
07.06.2017,CHILDREN'S SERVICES,REDACTED PERSONAL DATA,806.08,DISABILITY & HIV,PAYMENTS TO CARERS,2102679214
07.06.2017,CHILDREN'S SERVICES,REDACTED PERSONAL DATA,806.08,DISABILITY & HIV,PAYMENTS TO CARERS,2102679223
07.06.2017,CHILDREN'S SERVICES,REDACTED PERSONAL DATA,817.8,DISABILITY & HIV,PAYMENTS TO CARERS,2102679117
07.06.2017,CHILDREN'S SERVICES,REDACTED PERSONAL DATA,841.24,DISABILITY & HIV,PAYMENTS TO CARERS,2102679030
07.06.2017,CHILDREN'S SERVICES,REDACTED PERSONAL DATA,854.28,DISABILITY & HIV,PAYMENTS TO CARERS,2102679043
07.06.2017,CHILDREN'S SERVICES,REDACTED PERSONAL DATA,854.28,DISABILITY & HIV,PAYMENTS TO CARERS,2102679078
07.06.2017,CHILDREN'S SERVICES,REDACTED PERSONAL DATA,855.2,DISABILITY & HIV,PAYMENTS TO CARERS,2102679225
07.06.2017,CHILDREN'S SERVICES,REDACTED PERSONAL DATA,858.12,DISABILITY & HIV,PAYMENTS TO CARERS,2102679027
07.06.2017,CHILDREN'S SERVICES,REDACTED PERSONAL DATA,858.12,DISABILITY & HIV,PAYMENTS TO CARERS,2102679053
07.06.2017,CHILDREN'S SERVICES,REDACTED PERSONAL DATA,858.12,DISABILITY & HIV,PAYMENTS TO CARERS,2102679069
07.06.2017,CHILDREN'S SERVICES,REDACTED PERSONAL DATA,858.12,DISABILITY & HIV,PAYMENTS TO CARERS,2102679070
07.06.2017,CHILDREN'S SERVICES,REDACTED PERSONAL DATA,858.12,DISABILITY & HIV,PAYMENTS TO CARERS,2102679148
07.06.2017,CHILDREN'S SERVICES,REDACTED PERSONAL DATA,858.12,DISABILITY & HIV,PAYMENTS TO CARERS,2102679154
07.06.2017,CHILDREN'S SERVICES,REDACTED PERSONAL DATA,858.12,DISABILITY & HIV,PAYMENTS TO CARERS,2102679155
07.06.2017,CHILDREN'S SERVICES,REDACTED PERSONAL DATA,858.12,DISABILITY & HIV,PAYMENTS TO CARERS,2102679180
07.06.2017,CHILDREN'S SERVICES,REDACTED PERSONAL DATA,858.12,DISABILITY & HIV,PAYMENTS TO CARERS,2102679221
07.06.2017,CHILDREN'S SERVICES,REDACTED PERSONAL DATA,888.12,DISABILITY & HIV,PAYMENTS TO CARERS,2102679003
07.06.2017,CHILDREN'S SERVICES,REDACTED PERSONAL DATA,888.12,DISABILITY & HIV,PAYMENTS TO CARERS,2102679008
07.06.2017,CHILDREN'S SERVICES,REDACTED PERSONAL DATA,888.12,DISABILITY & HIV,PAYMENTS TO CARERS,2102679009
07.06.2017,CHILDREN'S SERVICES,REDACTED PERSONAL DATA,888.12,DISABILITY & HIV,PAYMENTS TO CARERS,2102679010
07.06.2017,CHILDREN'S SERVICES,REDACTED PERSONAL DATA,888.12,DISABILITY & HIV,PAYMENTS TO CARERS,2102679015
07.06.2017,CHILDREN'S SERVICES,REDACTED PERSONAL DATA,888.12,DISABILITY & HIV,PAYMENTS TO CARERS,2102679017
07.06.2017,CHILDREN'S SERVICES,REDACTED PERSONAL DATA,888.12,DISABILITY & HIV,PAYMENTS TO CARERS,2102679021
07.06.2017,CHILDREN'S SERVICES,REDACTED PERSONAL DATA,888.12,DISABILITY & HIV,PAYMENTS TO CARERS,2102679040
07.06.2017,CHILDREN'S SERVICES,REDACTED PERSONAL DATA,888.12,DISABILITY & HIV,PAYMENTS TO CARERS,2102679055
07.06.2017,CHILDREN'S SERVICES,REDACTED PERSONAL DATA,888.12,DISABILITY & HIV,PAYMENTS TO CARERS,2102679057
07.06.2017,CHILDREN'S SERVICES,REDACTED PERSONAL DATA,888.12,DISABILITY & HIV,PAYMENTS TO CARERS,2102679081
07.06.2017,CHILDREN'S SERVICES,REDACTED PERSONAL DATA,888.12,DISABILITY & HIV,PAYMENTS TO CARERS,2102679083
07.06.2017,CHILDREN'S SERVICES,REDACTED PERSONAL DATA,888.12,DISABILITY & HIV,PAYMENTS TO CARERS,2102679085
07.06.2017,CHILDREN'S SERVICES,REDACTED PERSONAL DATA,888.12,DISABILITY & HIV,PAYMENTS TO CARERS,2102679086
07.06.2017,CHILDREN'S SERVICES,REDACTED PERSONAL DATA,888.12,DISABILITY & HIV,PAYMENTS TO CARERS,2102679100
07.06.2017,CHILDREN'S SERVICES,REDACTED PERSONAL DATA,888.12,DISABILITY & HIV,PAYMENTS TO CARERS,2102679103
07.06.2017,CHILDREN'S SERVICES,REDACTED PERSONAL DATA,888.12,DISABILITY & HIV,PAYMENTS TO CARERS,2102679137
07.06.2017,CHILDREN'S SERVICES,REDACTED PERSONAL DATA,888.12,DISABILITY & HIV,PAYMENTS TO CARERS,2102679143
07.06.2017,CHILDREN'S SERVICES,REDACTED PERSONAL DATA,888.12,DISABILITY & HIV,PAYMENTS TO CARERS,2102679152
07.06.2017,CHILDREN'S SERVICES,REDACTED PERSONAL DATA,888.12,DISABILITY & HIV,PAYMENTS TO CARERS,2102679156
07.06.2017,CHILDREN'S SERVICES,REDACTED PERSONAL DATA,888.12,DISABILITY & HIV,PAYMENTS TO CARERS,2102679175
07.06.2017,CHILDREN'S SERVICES,REDACTED PERSONAL DATA,888.12,DISABILITY & HIV,PAYMENTS TO CARERS,2102679222
07.06.2017,CHILDREN'S SERVICES,REDACTED PERSONAL DATA,888.16,DISABILITY & HIV,PAYMENTS TO CARERS,2102679104
07.06.2017,CHILDREN'S SERVICES,REDACTED PERSONAL DATA,924.2,DISABILITY & HIV,PAYMENTS TO CARERS,2102679121
07.06.2017,CHILDREN'S SERVICES,REDACTED PERSONAL DATA,949.76,DISABILITY & HIV,PAYMENTS TO CARERS,2102679060
07.06.2017,CHILDREN'S SERVICES,REDACTED PERSONAL DATA,991.42,DISABILITY & HIV,PAYMENTS TO CARERS,2102679044
07.06.2017,CHILDREN'S SERVICES,REDACTED PERSONAL DATA,991.42,DISABILITY & HIV,PAYMENTS TO CARERS,2102679098
07.06.2017,CHILDREN'S SERVICES,REDACTED PERSONAL DATA,991.42,DISABILITY & HIV,PAYMENTS TO CARERS,2102679147
07.06.2017,CHILDREN'S SERVICES,REDACTED PERSONAL DATA,991.48,DISABILITY & HIV,PAYMENTS TO CARERS,2102679114
07.06.2017,CHILDREN'S SERVICES,REDACTED PERSONAL DATA,"1,094.60",DISABILITY & HIV,PAYMENTS TO CARERS,2102679028
07.06.2017,CHILDREN'S SERVICES,REDACTED PERSONAL DATA,"1,094.60",DISABILITY & HIV,PAYMENTS TO CARERS,2102679151
07.06.2017,CHILDREN'S SERVICES,REDACTED PERSONAL DATA,"1,379.08",DISABILITY & HIV,PAYMENTS TO CARERS,2102679112
07.06.2017,CHILDREN'S SERVICES,REDACTED PERSONAL DATA,329.42,FRIENDS & FAMILY FOSTERING,PAYMENTS TO CARERS,2102678991
07.06.2017,CHILDREN'S SERVICES,REDACTED PERSONAL DATA,335.34,FRIENDS & FAMILY FOSTERING,PAYMENTS TO CARERS,2102678974
07.06.2017,CHILDREN'S SERVICES,REDACTED PERSONAL DATA,367.1,FRIENDS & FAMILY FOSTERING,PAYMENTS TO CARERS,2102678984
07.06.2017,CHILDREN'S SERVICES,REDACTED PERSONAL DATA,375.54,FRIENDS & FAMILY FOSTERING,PAYMENTS TO CARERS,2102678996
07.06.2017,CHILDREN'S SERVICES,REDACTED PERSONAL DATA,382.3,FRIENDS & FAMILY FOSTERING,PAYMENTS TO CARERS,2102678958
07.06.2017,CHILDREN'S SERVICES,REDACTED PERSONAL DATA,382.3,FRIENDS & FAMILY FOSTERING,PAYMENTS TO CARERS,2102678969
07.06.2017,CHILDREN'S SERVICES,REDACTED PERSONAL DATA,382.3,FRIENDS & FAMILY FOSTERING,PAYMENTS TO CARERS,2102678971
07.06.2017,CHILDREN'S SERVICES,REDACTED PERSONAL DATA,382.3,FRIENDS & FAMILY FOSTERING,PAYMENTS TO CARERS,2102678977
07.06.2017,CHILDREN'S SERVICES,REDACTED PERSONAL DATA,382.3,FRIENDS & FAMILY FOSTERING,PAYMENTS TO CARERS,2102678979
07.06.2017,CHILDREN'S SERVICES,REDACTED PERSONAL DATA,382.3,FRIENDS & FAMILY FOSTERING,PAYMENTS TO CARERS,2102678994
07.06.2017,CHILDREN'S SERVICES,REDACTED PERSONAL DATA,476.08,FRIENDS & FAMILY FOSTERING,PAYMENTS TO CARERS,2102678960
07.06.2017,CHILDREN'S SERVICES,REDACTED PERSONAL DATA,476.08,FRIENDS & FAMILY FOSTERING,PAYMENTS TO CARERS,2102678966
07.06.2017,CHILDREN'S SERVICES,REDACTED PERSONAL DATA,476.08,FRIENDS & FAMILY FOSTERING,PAYMENTS TO CARERS,2102678987
07.06.2017,CHILDREN'S SERVICES,REDACTED PERSONAL DATA,476.08,FRIENDS & FAMILY FOSTERING,PAYMENTS TO CARERS,2102678988
07.06.2017,CHILDREN'S SERVICES,REDACTED PERSONAL DATA,635.34,FRIENDS & FAMILY FOSTERING,PAYMENTS TO CARERS,2102678959
07.06.2017,CHILDREN'S SERVICES,REDACTED PERSONAL DATA,635.34,FRIENDS & FAMILY FOSTERING,PAYMENTS TO CARERS,2102678981
07.06.2017,CHILDREN'S SERVICES,REDACTED PERSONAL DATA,682.3,FRIENDS & FAMILY FOSTERING,PAYMENTS TO CARERS,2102678957
07.06.2017,CHILDREN'S SERVICES,REDACTED PERSONAL DATA,682.3,FRIENDS & FAMILY FOSTERING,PAYMENTS TO CARERS,2102678962
07.06.2017,CHILDREN'S SERVICES,REDACTED PERSONAL DATA,682.3,FRIENDS & FAMILY FOSTERING,PAYMENTS TO CARERS,2102678965
07.06.2017,CHILDREN'S SERVICES,REDACTED PERSONAL DATA,682.3,FRIENDS & FAMILY FOSTERING,PAYMENTS TO CARERS,2102678972
07.06.2017,CHILDREN'S SERVICES,REDACTED PERSONAL DATA,682.3,FRIENDS & FAMILY FOSTERING,PAYMENTS TO CARERS,2102678973
07.06.2017,CHILDREN'S SERVICES,REDACTED PERSONAL DATA,682.3,FRIENDS & FAMILY FOSTERING,PAYMENTS TO CARERS,2102678978
07.06.2017,CHILDREN'S SERVICES,REDACTED PERSONAL DATA,682.3,FRIENDS & FAMILY FOSTERING,PAYMENTS TO CARERS,2102678982
07.06.2017,CHILDREN'S SERVICES,REDACTED PERSONAL DATA,682.3,FRIENDS & FAMILY FOSTERING,PAYMENTS TO CARERS,2102678983
07.06.2017,CHILDREN'S SERVICES,REDACTED PERSONAL DATA,682.3,FRIENDS & FAMILY FOSTERING,PAYMENTS TO CARERS,2102678985
07.06.2017,CHILDREN'S SERVICES,REDACTED PERSONAL DATA,682.3,FRIENDS & FAMILY FOSTERING,PAYMENTS TO CARERS,2102678989
07.06.2017,CHILDREN'S SERVICES,REDACTED PERSONAL DATA,682.3,FRIENDS & FAMILY FOSTERING,PAYMENTS TO CARERS,2102678992
07.06.2017,CHILDREN'S SERVICES,REDACTED PERSONAL DATA,682.3,FRIENDS & FAMILY FOSTERING,PAYMENTS TO CARERS,2102678993
07.06.2017,CHILDREN'S SERVICES,REDACTED PERSONAL DATA,682.3,FRIENDS & FAMILY FOSTERING,PAYMENTS TO CARERS,2102678997
07.06.2017,CHILDREN'S SERVICES,REDACTED PERSONAL DATA,767.66,FRIENDS & FAMILY FOSTERING,PAYMENTS TO CARERS,2102678986
07.06.2017,CHILDREN'S SERVICES,REDACTED PERSONAL DATA,776.08,FRIENDS & FAMILY FOSTERING,PAYMENTS TO CARERS,2102678956
07.06.2017,CHILDREN'S SERVICES,REDACTED PERSONAL DATA,776.08,FRIENDS & FAMILY FOSTERING,PAYMENTS TO CARERS,2102678961
07.06.2017,CHILDREN'S SERVICES,REDACTED PERSONAL DATA,776.08,FRIENDS & FAMILY FOSTERING,PAYMENTS TO CARERS,2102678963
07.06.2017,CHILDREN'S SERVICES,REDACTED PERSONAL DATA,776.08,FRIENDS & FAMILY FOSTERING,PAYMENTS TO CARERS,2102678970
07.06.2017,CHILDREN'S SERVICES,REDACTED PERSONAL DATA,776.08,FRIENDS & FAMILY FOSTERING,PAYMENTS TO CARERS,2102678975
07.06.2017,CHILDREN'S SERVICES,REDACTED PERSONAL DATA,776.08,FRIENDS & FAMILY FOSTERING,PAYMENTS TO CARERS,2102678990
07.06.2017,CHILDREN'S SERVICES,REDACTED PERSONAL DATA,858.12,FRIENDS & FAMILY FOSTERING,PAYMENTS TO CARERS,2102678967
07.06.2017,CHILDREN'S SERVICES,REDACTED PERSONAL DATA,"1,392.66",FRIENDS & FAMILY FOSTERING,PAYMENTS TO CARERS,2102678976
07.06.2017,CHILDREN'S SERVICES,REDACTED PERSONAL DATA,285.06,LEAVING CARE GRANT,OTHER PAYMENTS FOR CLIENTS,2102678911
07.06.2017,CHILDREN'S SERVICES,REDACTED PERSONAL DATA,264.16,RESIDENCE ORDERS,PAYMENTS TO CARERS,2102678701
07.06.2017,CHILDREN'S SERVICES,REDACTED PERSONAL DATA,269.08,RESIDENCE ORDERS,PAYMENTS TO CARERS,2102678536
07.06.2017,CHILDREN'S SERVICES,PULSE HEALTHCARE LTD,897,SEN TRANSPORT,STATEMENTED FEES,5902253649
07.06.2017,CHILDREN'S SERVICES,PULSE HEALTHCARE LTD,897,SEN TRANSPORT,STATEMENTED FEES,5902253651
07.06.2017,CHILDREN'S SERVICES,REDACTED PERSONAL DATA,263.71,SPECIAL GUARDIANSHIP,PAYMENTS TO CARERS,2102678469
07.06.2017,CHILDREN'S SERVICES,REDACTED PERSONAL DATA,268.36,SPECIAL GUARDIANSHIP,PAYMENTS TO CARERS,2102678644
07.06.2017,CHILDREN'S SERVICES,REDACTED PERSONAL DATA,269.08,SPECIAL GUARDIANSHIP,PAYMENTS TO CARERS,2102678641
07.06.2017,CHILDREN'S SERVICES,REDACTED PERSONAL DATA,269.08,SPECIAL GUARDIANSHIP,PAYMENTS TO CARERS,2102678714
07.06.2017,CHILDREN'S SERVICES,REDACTED PERSONAL DATA,276.1,SPECIAL GUARDIANSHIP,PAYMENTS TO CARERS,2102678514
07.06.2017,CHILDREN'S SERVICES,REDACTED PERSONAL DATA,276.1,SPECIAL GUARDIANSHIP,PAYMENTS TO CARERS,2102678604
07.06.2017,CHILDREN'S SERVICES,REDACTED PERSONAL DATA,303.97,SPECIAL GUARDIANSHIP,PAYMENTS TO CARERS,2102678726
07.06.2017,CHILDREN'S SERVICES,REDACTED PERSONAL DATA,350,SPECIAL GUARDIANSHIP,PAYMENTS TO CARERS,2102678545
07.06.2017,CHILDREN'S SERVICES,REDACTED PERSONAL DATA,354.59,SPECIAL GUARDIANSHIP,PAYMENTS TO CARERS,2102678720
07.06.2017,CHILDREN'S SERVICES,REDACTED PERSONAL DATA,525,SPECIAL GUARDIANSHIP,PAYMENTS TO CARERS,2102678560
07.06.2017,CHILDREN'S SERVICES,REDACTED PERSONAL DATA,525,SPECIAL GUARDIANSHIP,PAYMENTS TO CARERS,2102678643
07.06.2017,CHILDREN'S SERVICES,REDACTED PERSONAL DATA,525,SPECIAL GUARDIANSHIP,PAYMENTS TO CARERS,2102678660
07.06.2017,CHILDREN'S SERVICES,REDACTED PERSONAL DATA,500,STAYING PUT,EXTERNAL AGENCIES AND BODIES,2102678968
07.06.2017,CHILDREN'S SERVICES,REDACTED PERSONAL DATA,500,STAYING PUT,PAYMENTS TO CARERS,2102678980
07.06.2017,CHILDREN'S SERVICES,REDACTED PERSONAL DATA,500,STAYING PUT,PAYMENTS TO CARERS,2102679013
07.06.2017,CHILDREN'S SERVICES,REDACTED PERSONAL DATA,500,STAYING PUT,PAYMENTS TO CARERS,2102679025
07.06.2017,CHILDREN'S SERVICES,REDACTED PERSONAL DATA,500,STAYING PUT,PAYMENTS TO CARERS,2102679026
07.06.2017,CHILDREN'S SERVICES,REDACTED PERSONAL DATA,500,STAYING PUT,PAYMENTS TO CARERS,2102679035
07.06.2017,CHILDREN'S SERVICES,REDACTED PERSONAL DATA,500,STAYING PUT,PAYMENTS TO CARERS,2102679058
07.06.2017,CHILDREN'S SERVICES,REDACTED PERSONAL DATA,500,STAYING PUT,PAYMENTS TO CARERS,2102679059
07.06.2017,CHILDREN'S SERVICES,REDACTED PERSONAL DATA,500,STAYING PUT,PAYMENTS TO CARERS,2102679071
07.06.2017,CHILDREN'S SERVICES,REDACTED PERSONAL DATA,500,STAYING PUT,PAYMENTS TO CARERS,2102679072
07.06.2017,CHILDREN'S SERVICES,REDACTED PERSONAL DATA,500,STAYING PUT,PAYMENTS TO CARERS,2102679075
07.06.2017,CHILDREN'S SERVICES,REDACTED PERSONAL DATA,500,STAYING PUT,PAYMENTS TO CARERS,2102679080
07.06.2017,CHILDREN'S SERVICES,REDACTED PERSONAL DATA,500,STAYING PUT,PAYMENTS TO CARERS,2102679093
07.06.2017,CHILDREN'S SERVICES,REDACTED PERSONAL DATA,500,STAYING PUT,PAYMENTS TO CARERS,2102679115
07.06.2017,CHILDREN'S SERVICES,REDACTED PERSONAL DATA,500,STAYING PUT,PAYMENTS TO CARERS,2102679116
07.06.2017,CHILDREN'S SERVICES,REDACTED PERSONAL DATA,500,STAYING PUT,PAYMENTS TO CARERS,2102679129
07.06.2017,CHILDREN'S SERVICES,REDACTED PERSONAL DATA,500,STAYING PUT,PAYMENTS TO CARERS,2102679165
07.06.2017,CHILDREN'S SERVICES,REDACTED PERSONAL DATA,500,STAYING PUT,PAYMENTS TO CARERS,2102679176
07.06.2017,CHILDREN'S SERVICES,REDACTED PERSONAL DATA,500,STAYING PUT,PAYMENTS TO CARERS,2102679185
07.06.2017,CHILDREN'S SERVICES,REDACTED PERSONAL DATA,500,STAYING PUT,PAYMENTS TO CARERS,2102679204
07.06.2017,CHILDREN'S SERVICES,REDACTED PERSONAL DATA,500,STAYING PUT,PAYMENTS TO CARERS,2102679211
07.06.2017,CHILDREN'S SERVICES,REDACTED PERSONAL DATA,500,STAYING PUT,PAYMENTS TO CARERS,2102679216
07.06.2017,CHILDREN'S SERVICES,REDACTED PERSONAL DATA,798.12,STAYING PUT,PAYMENTS TO CARERS,2102679014
07.06.2017,CHILDREN'S SERVICES,INVESTEC ASSET FINANCE PLC,459.44,THOMAS CALTON CENTRE,OP LEASE/HIRE CHARGES:PLANT/EQUIP/FURNIT,5902253589
07.06.2017,CHILDREN'S SERVICES,REDACTED PERSONAL DATA,"1,750.00",UNIVERSITY SUPPORT,OTHER PAYMENTS FOR CLIENTS,2102678908
07.06.2017,CHILDREN'S SERVICES,THAMES REACH EMPOLYMENT ACADEMY,340,YOS SUPPORT,HIRE OF ROOMS/HALLS,5902253692
07.06.2017,COMMISSIONING & CENTRAL,CAPITA BUSINESS SERVICES LTD,"162,379.01",ICT APPLICATIONS,SOFTWARE,5902253577
07.06.2017,COMMUNITIES,COSSALL ESTATES T&RA,"4,000.00",JOINT SECURITY INITIATIVES,GRANTS,5902253655
07.06.2017,COMMUNITIES,COSSALL ESTATES T&RA,"4,000.00",JOINT SECURITY INITIATIVES,GRANTS,5902253655
07.06.2017,COMMUNITIES,DRAPER T&RA,"4,136.50",JOINT SECURITY INITIATIVES,GRANTS,5902253659
07.06.2017,COMMUNITIES,GLOUCESTER GROVE ESTATE TMO,"1,615.00",JOINT SECURITY INITIATIVES,GRANTS,5902253630
07.06.2017,COMMUNITIES,GLOUCESTER GROVE ESTATE TMO,"2,500.00",JOINT SECURITY INITIATIVES,GRANTS,5902253628
07.06.2017,COMMUNITIES,LEDBURY T&RA,"4,500.00",JOINT SECURITY INITIATIVES,GRANTS,5902253635
07.06.2017,COMMUNITIES,SCEAUX GARDENS T&R ASSOCIATION,"4,000.00",JOINT SECURITY INITIATIVES,GRANTS,5902253641
07.06.2017,COMMUNITIES,ARUNDEL COURT RESIDENTS ASSOCIATION,"1,000.00",TENANTS FUND,GRANTS,5902253579
07.06.2017,CUSTOMER EXPERIENCE HGF,AVOCET SOCIAL CARE LTD,500,COMPLAINTS,CONSULTANTS SERVICES,5902253543
07.06.2017,CUSTOMER EXPERIENCE HGF,AVOCET SOCIAL CARE LTD,960,COMPLAINTS,CONSULTANTS SERVICES,5902253543
07.06.2017,CUSTOMER EXPERIENCE HGF,POSTURITE (UK) LTD,887.5,CUSTOMER SUPPORT,FURNITURE PURCHASE & REPAIR,5902253650
07.06.2017,CUSTOMER EXPERIENCE HGF,GROVE HOTEL LTD,555,NIGHTLY TA (NSC),EXTERNAL AGENCIES AND BODIES,5902253567
07.06.2017,CUSTOMER EXPERIENCE HGF,TLK PROPERTY & INVESTMENT LTD,"11,289.00",NIGHTLY TA (NSC),EXTERNAL AGENCIES AND BODIES,5902253564
07.06.2017,CUSTOMER EXPERIENCE HGF,TUNSTALL HEALTHCARE (UK) LTD,"4,950.00",SMART MOBILE RESPONSE TEAM,EQUIPMENT PURCHASE & REPAIR,5902253531
07.06.2017,ENVIRONMENT AND LEISURE,BOURNE AMENITY LTD,"12,359.00",CAPITAL PS (LEISURE),CONSTRUCTION FEES  - EXTERNAL,5902253568
07.06.2017,ENVIRONMENT AND LEISURE,BRADY CORPORATION LTD,598,CAPITAL PS (LEISURE),CONSTRUCTION FEES  - EXTERNAL,5902253527
07.06.2017,ENVIRONMENT DIRECTORATE,PERFORMANCE CHEMICALS LTD,480,ESTATE CLEANING-GENERAL,MATERIALS,5902253534
07.06.2017,ENVIRONMENT DIRECTORATE,THE T.P. PARTNERSHIP,445,ESTATE CLEANING-GENERAL,OTHER CONTRACTORS,5902253532
07.06.2017,ENVIRONMENT DIRECTORATE,IMPERIAL POLYTHENE PRODUCTS LTD,728,MANAGEMENT TEAM,MATERIALS,5902253660
07.06.2017,ENVIRONMENT DIRECTORATE,CONWAY AECOM LTD,659.89,PARKING ATTENDANTS PCN'S,HIGHWAYS R&M,2102678451
07.06.2017,ENVIRONMENT DIRECTORATE,CONWAY AECOM LTD,753.75,PARKING ATTENDANTS PCN'S,HIGHWAYS R&M,2102678452
07.06.2017,ENVIRONMENT DIRECTORATE,CONWAY AECOM LTD,"3,814.55",PARKING ATTENDANTS PCN'S,HIGHWAYS R&M,2102678448
07.06.2017,ENVIRONMENT DIRECTORATE,APCOA PARKING (UK) LTD,"274,925.22",PARKING OVERHEADS,OTHER CONTRACTORS,5902253573
07.06.2017,ENVIRONMENT DIRECTORATE,NAOMI HAWKES,600,SASBU,LEGAL FEES & COURT COSTS,5902253587
07.06.2017,ENVIRONMENT DIRECTORATE,THE WORLDS FAIR LTD,400,STREET TRADING A/C,RECRUITMENT ADVERTISING,5902253632
07.06.2017,ENVIRONMENT DIRECTORATE,VEOLIA ES SOUTHWARK LTD,"1,862,178.96",WASTE PFI,PFI/PPP PAYMENTS,5902253544
07.06.2017,F & C S EXCLUDING CORPORATE BUDGETS,NORTHGATE PUBLIC SERVICES (UK) LTD,"548,144.00",ADMINISTRATIVE SUPPORT,SOFTWARE,5902253623
07.06.2017,HOUSING GENERAL FUND,RSM BUILDING CONTRACTORS,"1,459.00",CAPITAL PS (HOUSING GF),CAPITAL GRANTS,5902253545
07.06.2017,HOUSING GENERAL FUND,CAPITA BUSINESS SERVICES LTD,"1,016.75",CAPITAL PS (STRAT SERV),ICT ACQUISITION,5902253570
07.06.2017,HOUSING HRA,BRITISH TELECOMMUNICATIONS PLC,"1,105.40",CAPITAL PS (HRA),CONSTRUCTION FEES  - EXTERNAL,5902253561
07.06.2017,HOUSING HRA,CALFORD SEADEN LLP,"7,105.89",CAPITAL PS (HRA),CONSTRUCTION FEES  - EXTERNAL,5902253638
07.06.2017,HOUSING HRA,OPEN COMMUNITIES LTD,"1,286.25",CAPITAL PS (HRA),CONSTRUCTION FEES  - EXTERNAL,5902253556
07.06.2017,HOUSING HRA,SCCI ALPHATRACK LTD,"35,031.40",SCCI ALPHATRACK,MANUAL CREDITORS,5902253565
07.06.2017,LEISURE DIRECTORATE,EDF ENERGY PLC,516.64,BRANDON LIBRARY,ELECTRICITY,5902253539
07.06.2017,LEISURE DIRECTORATE,CARNIVAL DEL PUEBLO ASSOCIATION,"5,000.00",CENTRAL FESTIVAL FUND,OP LEASE/HIRE CHARGES:PLANT/EQUIP/FURNIT,5902253582
07.06.2017,LEISURE DIRECTORATE,CARNIVAL DEL PUEBLO ASSOCIATION,"5,000.00",CENTRAL FESTIVAL FUND,OP LEASE/HIRE CHARGES:PLANT/EQUIP/FURNIT,5902253582
07.06.2017,LEISURE DIRECTORATE,CONWAY AECOM LTD,"7,417.38",CHUMLEIGH GDNS TEAM,OTHER R&M,2102678453
07.06.2017,LEISURE DIRECTORATE,LEE SNASHFOLD CREMETORIA MANAGEMENT,810,CREMATORIUM,PROFESSIONAL FEES,5902253600
07.06.2017,LEISURE DIRECTORATE,THE SPORTS CONSULTANCY,"1,500.00",HOMERSTALL ROAD SPORTS GROUND,PROFESSIONAL FEES,5902253672
07.06.2017,LEISURE DIRECTORATE,BRITISH GAS BUSINESS,"3,487.62",KINGSWOOD HOUSE,GAS,5902253680
07.06.2017,LEISURE DIRECTORATE,G4S CASH SERVICES (UK) LTD,500,LIBARIES DEVELOPMENT,SECURITY SERVICES,5902253535
07.06.2017,LEISURE DIRECTORATE,EDF ENERGY PLC,762.01,SOUTHWARK AREA TEAM,ELECTRICITY,5902253608
07.06.2017,LEISURE DIRECTORATE,EDF ENERGY PLC,"1,142.56",TEMPORARY NEWINGTON,ELECTRICITY,5902253637
07.06.2017,MODERNISATION HGF,WESTCO TRADING LTD,400,160 TOOLEY ST.,PRINTING,5902253581
07.06.2017,MODERNISATION HGF,CASTLE WATER LTD,289.42,BOURNEMOUTH GROVE,WATER,5902253662
07.06.2017,MODERNISATION HGF,CASTLE WATER LTD,908.39,BOURNEMOUTH GROVE,WATER,5902253646
07.06.2017,MODERNISATION HGF,KENT COUNTY COUNCIL - LASER,"1,269.34",BOURNEMOUTH GROVE,ELECTRICITY,5902253578
07.06.2017,MODERNISATION HGF,KENT COUNTY COUNCIL - LASER,"1,272.69",BOURNEMOUTH GROVE,ELECTRICITY,5902253572
07.06.2017,MODERNISATION HGF,KENT COUNTY COUNCIL - LASER,"1,368.99",BOURNEMOUTH GROVE,ELECTRICITY,5902253576
07.06.2017,MODERNISATION HGF,KENT COUNTY COUNCIL - LASER,"1,462.41",BOURNEMOUTH GROVE,ELECTRICITY,5902253580
07.06.2017,MODERNISATION HGF,TIM WHITWORTH,"1,050.00",MEMBER DEVELOPMENT,TRAINING,5902253586
07.06.2017,MODERNISATION HGF,KIER FACILITIES SERVICES LTD,"1,619.18",PLANNED FM SERVICES BY KIER,BUILDING R&M,5902253289
07.06.2017,MODERNISATION HGF,KIER FACILITIES SERVICES LTD,"4,725.54",PLANNED FM SERVICES BY KIER,BUILDING R&M,5902253295
07.06.2017,MODERNISATION HGF,KIER FACILITIES SERVICES LTD,"54,679.96",PLANNED FM SERVICES BY KIER,BUILDING R&M,5902253298
07.06.2017,PLANNING AND TRANSPORT,HAYMARKET BUSINESS PUBLICATIONS LTD,"1,548.00",DEVELOPMENT CONTROL ADMINSTRATION,SOFTWARE,5902253569
07.06.2017,PLANNING AND TRANSPORT,RTPI CONFERENCES,349,S106 & CIL ADMINISTRATION,TRAINING,5902253656
07.06.2017,PUBLIC HEALTH,WORKING TRANSITIONS,400,HEALTH CHECKS,TRAINING,5902253648
07.06.2017,PUBLIC HEALTH,WORKING TRANSITIONS,600,HEALTH CHECKS,TRAINING,5902253648
07.06.2017,PUBLIC HEALTH,OXFORD UNIVERSITY HOSPITAL NHS TRUST,-301.4,SEXUAL HEALTH - STI,EXTERNAL AGENCIES AND BODIES,5902253633
07.06.2017,PUBLIC HEALTH,OXFORD UNIVERSITY HOSPITAL NHS TRUST,301.4,SEXUAL HEALTH - STI,EXTERNAL AGENCIES AND BODIES,5902253631
07.06.2017,REGENERATION,E.ON,423.54,LBS SOJOURNER TRUTH COMMUNITY CENTRE,ELECTRICITY,5902253614
07.06.2017,RESIDENT SERVICES,CARLISLE SECURITY SERVICES LTD,"11,624.06",CAMBERWELL,SECURITY SERVICES,5902253571
07.06.2017,RESIDENT SERVICES,EDF ENERGY PLC,304.23,OPERATIONS/OFFICES ACCOMMODATION,ELECTRICITY,5902253553
07.06.2017,RESIDENT SERVICES,EDF ENERGY PLC,308.3,OPERATIONS/OFFICES ACCOMMODATION,ELECTRICITY,5902253674
07.06.2017,RESIDENT SERVICES,CASTLE WATER LTD,"1,180.08",SPECIAL NEEDS HOSTELS,WATER,5902253682
07.06.2017,RESIDENT SERVICES,S A PROPERTY MANAGEMENT LTD,"2,507.20",TA PLACEMENTS,EXTERNAL AGENCIES AND BODIES,5902253575
08.06.2017,ADULT SOCIAL CARE,TOWER BRIDGE NURSING CENTRE,"-12,053.84", OP CARE PACKAGES,"MAND STATUTORY CHARGES, NURSING",2102372980
08.06.2017,ADULT SOCIAL CARE,TOWER BRIDGE NURSING CENTRE,"1,699.09", OP CARE PACKAGES,"MAND STATUTORY CHARGES, RESIDENTIAL",2102372981
08.06.2017,ADULT SOCIAL CARE,REDACTED PERSONAL DATA,"-1,290.16",LD LTS 18-64,DISCRETIONARY FLEXIBLE FEES & INCOME,2102681849
08.06.2017,ADULT SOCIAL CARE,REDACTED PERSONAL DATA,-718,LD LTS 18-64,DISCRETIONARY FLEXIBLE FEES & INCOME,2102682305
08.06.2017,ADULT SOCIAL CARE,REDACTED PERSONAL DATA,-624,LD LTS 18-64,DISCRETIONARY FLEXIBLE FEES & INCOME,2102682384
08.06.2017,ADULT SOCIAL CARE,REDACTED PERSONAL DATA,624,LD LTS 18-64,PAYMENTS TO CLIENTS (DIRECT PAYMENTS),2102682383
08.06.2017,ADULT SOCIAL CARE,REDACTED PERSONAL DATA,718,LD LTS 18-64,PAYMENTS TO CLIENTS (DIRECT PAYMENTS),2102682304
08.06.2017,ADULT SOCIAL CARE,REDACTED PERSONAL DATA,"1,290.16",LD LTS 18-64,PAYMENTS TO CLIENTS (DIRECT PAYMENTS),2102681848
08.06.2017,ADULT SOCIAL CARE,CARE O LINE,440,LD LTS 18-64,HOMECARE - SPOT,2102679529
08.06.2017,ADULT SOCIAL CARE,CARE O LINE,618.75,LD LTS 18-64,HOMECARE - SPOT,2102679534
08.06.2017,ADULT SOCIAL CARE,CARE O LINE,990,LD LTS 18-64,HOMECARE - SPOT,2102679525
08.06.2017,ADULT SOCIAL CARE,CARE O LINE,990,LD LTS 18-64,HOMECARE - SPOT,2102679526
08.06.2017,ADULT SOCIAL CARE,CARE O LINE,990,LD LTS 18-64,HOMECARE - SPOT,2102679527
08.06.2017,ADULT SOCIAL CARE,CARE O LINE,990,LD LTS 18-64,HOMECARE - SPOT,2102679528
08.06.2017,ADULT SOCIAL CARE,CARE O LINE,990,LD LTS 18-64,HOMECARE - SPOT,2102679530
08.06.2017,ADULT SOCIAL CARE,CARE O LINE,990,LD LTS 18-64,HOMECARE - SPOT,2102679531
08.06.2017,ADULT SOCIAL CARE,CARE O LINE,990,LD LTS 18-64,HOMECARE - SPOT,2102679532
08.06.2017,ADULT SOCIAL CARE,CARE O LINE,990,LD LTS 18-64,HOMECARE - SPOT,2102679533
08.06.2017,ADULT SOCIAL CARE,CARE O LINE,990,LD LTS 18-64,HOMECARE - SPOT,2102679535
08.06.2017,ADULT SOCIAL CARE,ELIZABETH PETERS CARE HOME,"1,122.58",MH LTS 65+,RESIDENTIAL CARE,2102659211
08.06.2017,ADULT SOCIAL CARE,ELIZABETH PETERS CARE HOME,"1,122.58",MH LTS 65+,RESIDENTIAL CARE,2102662261
08.06.2017,ADULT SOCIAL CARE,ELIZABETH PETERS CARE HOME,"2,245.16",MH LTS 65+,RESIDENTIAL CARE,2102597889
08.06.2017,ADULT SOCIAL CARE,ELIZABETH PETERS CARE HOME,"2,245.16",MH LTS 65+,RESIDENTIAL CARE,2102611964
08.06.2017,ADULT SOCIAL CARE,ELIZABETH PETERS CARE HOME,"2,245.16",MH LTS 65+,RESIDENTIAL CARE,2102620989
08.06.2017,ADULT SOCIAL CARE,ELIZABETH PETERS CARE HOME,"2,245.16",MH LTS 65+,RESIDENTIAL CARE,2102632761
08.06.2017,ADULT SOCIAL CARE,ELIZABETH PETERS CARE HOME,"2,245.16",MH LTS 65+,RESIDENTIAL CARE,2102644847
08.06.2017,ADULT SOCIAL CARE,ELIZABETH PETERS CARE HOME,"2,245.16",MH LTS 65+,RESIDENTIAL CARE,2102670922
08.06.2017,ADULT SOCIAL CARE,ELIZABETH PETERS CARE HOME,"2,245.16",MH LTS 65+,RESIDENTIAL CARE,2102680969
08.06.2017,ADULT SOCIAL CARE,ELIZABETH PETERS CARE HOME,"-17,961.28",MH S.75 AGREEMENT,RESIDENTIAL CARE,2102593801
08.06.2017,ADULT SOCIAL CARE,TOWER BRIDGE NURSING CENTRE,"6,475.40",OLDER NORTH NUR PLACE CC,"MAND STATUTORY CHARGES, NURSING",2102182463
08.06.2017,ADULT SOCIAL CARE,REDACTED PERSONAL DATA,"-1,018.40",PHY LTS 18-64,DISCRETIONARY FLEXIBLE FEES & INCOME,2102682433
08.06.2017,ADULT SOCIAL CARE,REDACTED PERSONAL DATA,"1,018.40",PHY LTS 18-64,PAYMENTS TO CLIENTS (DIRECT PAYMENTS),2102682434
08.06.2017,ADULT SOCIAL CARE,LIFECARE CONSULTING LTD,323.76,PHY LTS 65+,HOMECARE - SPOT,2102679455
08.06.2017,ADULT SOCIAL CARE,LIFECARE CONSULTING LTD,323.76,PHY LTS 65+,HOMECARE - SPOT,2102679467
08.06.2017,ADULT SOCIAL CARE,LIFECARE CONSULTING LTD,323.76,PHY LTS 65+,HOMECARE - SPOT,2102679477
08.06.2017,ADULT SOCIAL CARE,LIFECARE CONSULTING LTD,397.96,PHY LTS 65+,HOMECARE - SPOT,2102679505
08.06.2017,ADULT SOCIAL CARE,TOWER BRIDGE NURSING CENTRE,"-3,771.63",PHY LTS 65+,"MAND STATUTORY CHARGES, NURSING",2102620916
08.06.2017,ADULT SOCIAL CARE,TOWER BRIDGE NURSING CENTRE,"-1,307.00",PHY LTS 65+,"MAND STATUTORY CHARGES, NURSING",2102620519
08.06.2017,ADULT SOCIAL CARE,TOWER BRIDGE NURSING CENTRE,-522.8,PHY LTS 65+,"MAND STATUTORY CHARGES, NURSING",2102632256
08.06.2017,ADULT SOCIAL CARE,TOWER BRIDGE NURSING CENTRE,-522.8,PHY LTS 65+,"MAND STATUTORY CHARGES, NURSING",2102633023
08.06.2017,ADULT SOCIAL CARE,TOWER BRIDGE NURSING CENTRE,-522.8,PHY LTS 65+,"MAND STATUTORY CHARGES, NURSING",2102644587
08.06.2017,ADULT SOCIAL CARE,TOWER BRIDGE NURSING CENTRE,-522.8,PHY LTS 65+,"MAND STATUTORY CHARGES, NURSING",2102644725
08.06.2017,ADULT SOCIAL CARE,TOWER BRIDGE NURSING CENTRE,-522.8,PHY LTS 65+,"MAND STATUTORY CHARGES, NURSING",2102671132
08.06.2017,ADULT SOCIAL CARE,TOWER BRIDGE NURSING CENTRE,-522.8,PHY LTS 65+,"MAND STATUTORY CHARGES, NURSING",2102671345
08.06.2017,ADULT SOCIAL CARE,TOWER BRIDGE NURSING CENTRE,-261.4,PHY LTS 65+,"MAND STATUTORY CHARGES, NURSING",2102658765
08.06.2017,ADULT SOCIAL CARE,TOWER BRIDGE NURSING CENTRE,-261.4,PHY LTS 65+,"MAND STATUTORY CHARGES, NURSING",2102659804
08.06.2017,ADULT SOCIAL CARE,TOWER BRIDGE NURSING CENTRE,-261.4,PHY LTS 65+,"MAND STATUTORY CHARGES, NURSING",2102662103
08.06.2017,ADULT SOCIAL CARE,TOWER BRIDGE NURSING CENTRE,-261.4,PHY LTS 65+,"MAND STATUTORY CHARGES, NURSING",2102663081
08.06.2017,ADULT SOCIAL CARE,TOWER BRIDGE NURSING CENTRE,985.32,PHY LTS 65+,NURSING PLACEMENTS FEES,2102658766
08.06.2017,ADULT SOCIAL CARE,TOWER BRIDGE NURSING CENTRE,985.32,PHY LTS 65+,NURSING PLACEMENTS FEES,2102662104
08.06.2017,ADULT SOCIAL CARE,TOWER BRIDGE NURSING CENTRE,"1,297.82",PHY LTS 65+,NURSING PLACEMENTS FEES,2102659805
08.06.2017,ADULT SOCIAL CARE,TOWER BRIDGE NURSING CENTRE,"1,297.82",PHY LTS 65+,NURSING PLACEMENTS FEES,2102663082
08.06.2017,ADULT SOCIAL CARE,TOWER BRIDGE NURSING CENTRE,"1,970.64",PHY LTS 65+,NURSING PLACEMENTS FEES,2102598170
08.06.2017,ADULT SOCIAL CARE,TOWER BRIDGE NURSING CENTRE,"1,970.64",PHY LTS 65+,NURSING PLACEMENTS FEES,2102633024
08.06.2017,ADULT SOCIAL CARE,TOWER BRIDGE NURSING CENTRE,"1,970.64",PHY LTS 65+,NURSING PLACEMENTS FEES,2102644727
08.06.2017,ADULT SOCIAL CARE,TOWER BRIDGE NURSING CENTRE,"1,970.64",PHY LTS 65+,NURSING PLACEMENTS FEES,2102671346
08.06.2017,ADULT SOCIAL CARE,TOWER BRIDGE NURSING CENTRE,"2,595.64",PHY LTS 65+,NURSING PLACEMENTS FEES,2102632257
08.06.2017,ADULT SOCIAL CARE,TOWER BRIDGE NURSING CENTRE,"2,595.64",PHY LTS 65+,NURSING PLACEMENTS FEES,2102644589
08.06.2017,ADULT SOCIAL CARE,TOWER BRIDGE NURSING CENTRE,"2,595.64",PHY LTS 65+,NURSING PLACEMENTS FEES,2102671133
08.06.2017,ADULT SOCIAL CARE,TOWER BRIDGE NURSING CENTRE,"3,941.28",PHY LTS 65+,NURSING PLACEMENTS FEES,2102620917
08.06.2017,ADULT SOCIAL CARE,TOWER BRIDGE NURSING CENTRE,"6,489.10",PHY LTS 65+,NURSING PLACEMENTS FEES,2102620520
08.06.2017,ADULT SOCIAL CARE,TOWER BRIDGE NURSING CENTRE,"6,681.28",PHY LTS 65+,NURSING PLACEMENTS FEES,2102633336
08.06.2017,ADULT SOCIAL CARE,JACQUELINE FEARON LTD,"1,843.99",SAFEGUARDING TEAM,OTHER CONTRACTORS,5902253768
08.06.2017,ADULT SOCIAL CARE,ROMEDICAL LTD,546.43,SAFEGUARDING TEAM,OTHER CONTRACTORS,5902253755
08.06.2017,ASSET MANAGEMENT,FRAIGNEUX SOLUTIONS LTD,"15,697.50",HEALTH AND SAFETY,HARDWARE,5902253846
08.06.2017,ASSET MANAGEMENT,BRIDGEWATER LTD,"2,880.00",MAJOR REPAIRS,BUILDING R&M,5902253817
08.06.2017,ASSET MANAGEMENT,BRIDGEWATER LTD,"5,280.00",MAJOR REPAIRS,BUILDING R&M,5902253814
08.06.2017,ASSET MANAGEMENT,MOTT MACDONALD LTD,"8,636.88",PROGRAMMING,PROFESSIONAL FEES,5902253816
08.06.2017,ASSET MANAGEMENT,A & E ELKINS LTD,"66,995.64",VISIBLE DIFFERENCE (SOUTH),BUILDING R&M,2102679553
08.06.2017,BERMONDSEY AND ROTHERHITHE COMMUNITY COUNCIL,RAINBOW ARTS AND CRAFTS GROUP,662.5,ENHANCING OUR LOCAL ART GROUP,GRANT,CHEQUE PAYMENT
08.06.2017,CENTRAL FUNCTIONS,BIFFA WASTE SERVICES LTD,740.09,COMMERCIAL PROPERTIES,REFUSE COLLECTION CONTRACT,5902253813
08.06.2017,CHIEF EXECUTIVE,DRAIN SCAN,280,CAPITAL PS (REGEN),CONSTR'N SUB CONTRACT - NON CERTIFICATED,5902253763
08.06.2017,CHIEF EXECUTIVE,DRAIN SCAN,280,CAPITAL PS (REGEN),CONSTR'N SUB CONTRACT - NON CERTIFICATED,5902253764
08.06.2017,CHIEF EXECUTIVE,DRAIN SCAN,280,CAPITAL PS (REGEN),CONSTR'N SUB CONTRACT - NON CERTIFICATED,5902253765
08.06.2017,CHIEF EXECUTIVE,M LEE MEDIAMIXER.CO.UK,387.5,CAPITAL PS (REGEN),CONSTRUCTION FEES  - EXTERNAL,5902253881
08.06.2017,CHIEF EXECUTIVE,MARK LUTYENS ASSOCIATES,"12,660.00",CAPITAL PS (REGEN),CONSTRUCTION FEES  - EXTERNAL,5902253810
08.06.2017,CHILDREN AND ADULT,REDACTED PERSONAL DATA,"14,400.00",CAPITAL PS (EDUCATION),FIT-OUT,5902253701
08.06.2017,CHILDREN AND ADULT,ECRIS SOLUTIONS LTD,"7,200.00",CAPITAL PS (STRAT SERV),ICT ACQUISITION,5902253751
08.06.2017,CHILDREN'S SERVICES,REVIVAL,660,ADMIN CURLEW,OTHER PAYMENTS FOR CLIENTS,5902253857
08.06.2017,CHILDREN'S SERVICES,SIMON HOWES,528,ADOPTION REFORM GRANT (PART B),PROFESSIONAL FEES,5902253850
08.06.2017,CHILDREN'S SERVICES,SIMON HOWES,981,ADOPTION REFORM GRANT (PART B),PROFESSIONAL FEES,5902253851
08.06.2017,CHILDREN'S SERVICES,SIMON HOWES,"1,418.00",ADOPTION REFORM GRANT (PART B),PROFESSIONAL FEES,5902253848
08.06.2017,CHILDREN'S SERVICES,INTEGRATED SERVICES PROGRAMME,"-3,775.93",AGENCY FOSTERING,EXTERNAL AGENCIES AND BODIES,5902253888
08.06.2017,CHILDREN'S SERVICES,INTEGRATED SERVICES PROGRAMME,"6,443.35",AGENCY FOSTERING,EXTERNAL AGENCIES AND BODIES,5902253887
08.06.2017,CHILDREN'S SERVICES,CROWN HOUSING LTD,"1,085.00",AIS - IHT,SECTION 17 PAYMENTS TO AGENCIES/CARERS,5902253877
08.06.2017,CHILDREN'S SERVICES,LONDON SOUTHWARK HOTEL LTD,"2,100.00",AIS - IHT,SECTION 17 PAYMENTS TO AGENCIES/CARERS,5902253878
08.06.2017,CHILDREN'S SERVICES,FLEET TUTORS,"59,978.00",ALTERNATIVE PROVISION,EXTERNAL AGENCIES AND BODIES,5902253882
08.06.2017,CHILDREN'S SERVICES,BRAKE BROS,528.32,AYLESBURY EARLY YEARS CENTRE,CATERING MATERIALS & SUPPLIES,5902253721
08.06.2017,CHILDREN'S SERVICES,SITA UK LTD (SUEZ),346.88,CENTRAL SUPPORT,OFFICE EXPENSES,5902253869
08.06.2017,CHILDREN'S SERVICES,KINTORE WAY CHILDRENS CENTRE,"32,000.00",EARLY YEARS IMPROVEMENT,HIGH NEEDS - TOP UP FUNDING,2102679324
08.06.2017,CHILDREN'S SERVICES,PHILLIPS & GUPTA LTD,"1,254.00",FAMILY ASSESSMENTS,RESIDENTIAL CARE,5902253884
08.06.2017,CHILDREN'S SERVICES,PRIME PRODUCTION LTD,558.75,FINANCE,TRANSLATION SERVICES,5902253863
08.06.2017,CHILDREN'S SERVICES,PRIME PRODUCTION LTD,831,FINANCE,TRANSLATION SERVICES,5902253864
08.06.2017,CHILDREN'S SERVICES,HEBER PRIMARY SCHOOL,"2,000.00",INTERVENTION FUND,MISCELLANEOUS RECHARGES,2102679325
08.06.2017,CHILDREN'S SERVICES,INTEGRATED SERVICES PROGRAMME,450,LAC EDUCATION,EXTERNAL AGENCIES AND BODIES,5902253818
08.06.2017,CHILDREN'S SERVICES,SUSAN PATERSON,"1,220.70",NURSURERY EDUCATION GRANT-3 Y.O.,GRANTS,2102678208
08.06.2017,CHILDREN'S SERVICES,ZFA LTD,"1,860.00",S & FAM SUPP - PRAC GRP B SET 17-19,SECTION 17 PAYMENTS TO AGENCIES/CARERS,5902253875
08.06.2017,CHILDREN'S SERVICES,REDACTED PERSONAL DATA,300,SEMI INDEPENDENT,OTHER PAYMENTS FOR CLIENTS,2102678909
08.06.2017,CHILDREN'S SERVICES,REDACTED PERSONAL DATA,329.29,SEMI INDEPENDENT,OTHER PAYMENTS FOR CLIENTS,2102679524
08.06.2017,CHILDREN'S SERVICES,TAAKSVALE HOUSING LTD,"1,530.00",TEMPORARY ACCOMMODATION,SECTION 17 PAYMENTS TO AGENCIES/CARERS,5902253883
08.06.2017,CHILDREN'S SERVICES,LONDON BOROUGH OF BARNET,340,YOS SUPPORT,TRAINING,5902253868
08.06.2017,CHILDREN'S SERVICES,LONDON BOROUGH OF BARNET,800,YOS SUPPORT,TRAINING,5902253862
08.06.2017,CHILDREN'S SERVICES,OFFICE DEPOT UK LTD,406.8,YOS SUPPORT,STATIONERY,5902253694
08.06.2017,CHILDREN'S SERVICES,OFFICE DEPOT UK LTD,588.3,YOS SUPPORT,STATIONERY,5902253694
08.06.2017,CHILDREN'S SERVICES,REVIVAL,330,YOS SUPPORT,MEDICAL / HEALTH & SAFETY SERVICES,5902253871
08.06.2017,CHILDREN'S SERVICES,REVIVAL,330,YOS SUPPORT,MEDICAL / HEALTH & SAFETY SERVICES,5902253872
08.06.2017,COMMUNITIES,GLOUCESTER GROVE ESTATE TMO,"5,166.92",GLOUCESTER GROVE ESTATE,M&M ALLOWANCE CO-OPS,5902253698
08.06.2017,COMMUNITIES,CANADA ESTATE T&RA,"3,310.00",JOINT SECURITY INITIATIVES,GRANTS,5902253757
08.06.2017,COMMUNITIES,CAROLINE GARDENS RESIDENTS ASSOCIATION,"4,500.00",JOINT SECURITY INITIATIVES,GRANTS,5902253695
08.06.2017,COMMUNITIES,EAST DULWICH EST T&RA,"3,750.00",JOINT SECURITY INITIATIVES,GRANTS,5902253731
08.06.2017,COMMUNITIES,ELMINGTON ESTATE T&RA,"4,000.00",JOINT SECURITY INITIATIVES,GRANTS,5902253760
08.06.2017,COMMUNITIES,FAIR COMMUNITY HSG SERVICES LTD,"2,000.00",JOINT SECURITY INITIATIVES,GRANTS,5902253734
08.06.2017,COMMUNITIES,KINGSWOOD ESTATE T&RA,"4,350.00",JOINT SECURITY INITIATIVES,GRANTS,5902253821
08.06.2017,COMMUNITIES,SOUTHAMPTON WAY T&RA,"2,950.00",JOINT SECURITY INITIATIVES,GRANTS,5902253827
08.06.2017,COMMUNITIES,UNWIN AND FRIARY T&RA,"4,875.00",JOINT SECURITY INITIATIVES,GRANTS,5902253831
08.06.2017,COMMUNITIES,ALLPAY LTD,"70,000.00",NO RECOURSE TO PUBLIC FUNDS,OTHER PAYMENTS FOR CLIENTS,5902253700
08.06.2017,CUSTOMER EXPERIENCE HGF,IC CONSULTANTS LTD,312,CORONER'S,PROFESSIONAL FEES,5902253886
08.06.2017,CUSTOMER EXPERIENCE HGF,IC CONSULTANTS LTD,324,CORONER'S,PROFESSIONAL FEES,5902253893
08.06.2017,CUSTOMER EXPERIENCE HGF,IC CONSULTANTS LTD,344,CORONER'S,PROFESSIONAL FEES,5902253889
08.06.2017,CUSTOMER EXPERIENCE HGF,IC CONSULTANTS LTD,672,CORONER'S,PROFESSIONAL FEES,5902253892
08.06.2017,CUSTOMER EXPERIENCE HGF,REDACTED PERSONAL DATA,"1,250.00",HOMELESS PROJECTS,GRANTS,5902253896
08.06.2017,CUSTOMER EXPERIENCE HGF,EDEN ESTATES LONDON LTD,"22,878.50",NIGHTLY TA (NSC),EXTERNAL AGENCIES AND BODIES,5902253799
08.06.2017,CUSTOMER EXPERIENCE HGF,NATIONWIDE ACCOMMODATION,"1,881.50",NIGHTLY TA (NSC),EXTERNAL AGENCIES AND BODIES,5902253717
08.06.2017,CUSTOMER EXPERIENCE HGF,NATIONWIDE ACCOMMODATION,"37,400.50",NIGHTLY TA (NSC),EXTERNAL AGENCIES AND BODIES,5902253727
08.06.2017,CUSTOMER EXPERIENCE HGF,NORBURY PROPERTY SERVICES,"8,312.00",NIGHTLY TA (NSC),EXTERNAL AGENCIES AND BODIES,5902253838
08.06.2017,CUSTOMER EXPERIENCE HGF,SK HOUSING LTD,"11,552.15",NIGHTLY TA (NSC),EXTERNAL AGENCIES AND BODIES,5902253842
08.06.2017,CUSTOMER EXPERIENCE HGF,SOUTH OF THE RIVER INVESTMENTS LTD,"94,981.02",NIGHTLY TA (NSC),EXTERNAL AGENCIES AND BODIES,5902253715
08.06.2017,CUSTOMER EXPERIENCE HGF,SABIO NETWORK SERVICES LTD,"7,804.53",SYSTEMS,TELEPHONES (LAND LINES),5902253849
08.06.2017,ENVIRONMENT AND LEISURE,ARTHUR DEMOWBRAY,800,CAPITAL PS (LEISURE),CONST'N MAIN CONTRACT - NON CERTIFICATED,5902253716
08.06.2017,ENVIRONMENT AND LEISURE,STONEGROVE LIMITED,"45,808.00",CAPITAL PS (LEISURE),CONSTRUCTION FEES  - EXTERNAL,2102679577
08.06.2017,ENVIRONMENT DIRECTORATE,SPALDINGS (UK) LTD,422,GROUNDS MAINTENANCE - GENERAL,MATERIALS,5902253728
08.06.2017,ENVIRONMENT DIRECTORATE,FRANKLYN SHAW ASSOCIATES LTD,905,METER MAINTENANCE CONTRACTS,OTHER CONTRACTORS,2102679558
08.06.2017,ENVIRONMENT DIRECTORATE,CONWAY AECOM LTD,256.45,PARKING OVERHEADS,OTHER CONTRACTORS,2102679542
08.06.2017,ENVIRONMENT DIRECTORATE,CONWAY AECOM LTD,312.36,PARKING OVERHEADS,OTHER CONTRACTORS,2102679543
08.06.2017,ENVIRONMENT DIRECTORATE,CONWAY AECOM LTD,320.17,PARKING OVERHEADS,OTHER CONTRACTORS,2102679550
08.06.2017,ENVIRONMENT DIRECTORATE,CONWAY AECOM LTD,326.39,PARKING OVERHEADS,OTHER CONTRACTORS,2102679546
08.06.2017,ENVIRONMENT DIRECTORATE,CONWAY AECOM LTD,415.7,PARKING OVERHEADS,OTHER CONTRACTORS,2102679548
08.06.2017,ENVIRONMENT DIRECTORATE,CONWAY AECOM LTD,548.95,PARKING OVERHEADS,OTHER CONTRACTORS,2102679545
08.06.2017,ENVIRONMENT DIRECTORATE,CONWAY AECOM LTD,787.11,PARKING OVERHEADS,OTHER CONTRACTORS,2102679540
08.06.2017,ENVIRONMENT DIRECTORATE,CONWAY AECOM LTD,"1,500.96",PARKING OVERHEADS,OTHER CONTRACTORS,2102679541
08.06.2017,ENVIRONMENT DIRECTORATE,CONWAY AECOM LTD,"1,526.31",PARKING OVERHEADS,OTHER CONTRACTORS,2102679539
08.06.2017,ENVIRONMENT DIRECTORATE,CONWAY AECOM LTD,"1,550.03",PARKING OVERHEADS,OTHER CONTRACTORS,2102679552
08.06.2017,ENVIRONMENT DIRECTORATE,CONWAY AECOM LTD,"1,643.56",PARKING OVERHEADS,OTHER CONTRACTORS,2102679549
08.06.2017,ENVIRONMENT DIRECTORATE,CONWAY AECOM LTD,"1,750.98",PARKING OVERHEADS,OTHER CONTRACTORS,2102679538
08.06.2017,ENVIRONMENT DIRECTORATE,CONWAY AECOM LTD,"1,949.82",PARKING OVERHEADS,OTHER CONTRACTORS,2102679544
08.06.2017,ENVIRONMENT DIRECTORATE,CONWAY AECOM LTD,"2,770.05",PARKING OVERHEADS,OTHER CONTRACTORS,2102679537
08.06.2017,ENVIRONMENT DIRECTORATE,FENLAND LEISURE PRODUCTS LTD,"2,663.22",PARKS TECH UNIT (PREMISES),OTHER R&M,2102679561
08.06.2017,ENVIRONMENT DIRECTORATE,CONWAY AECOM LTD,"2,354.86",SUS. TRAVEL OVERHEADS,OTHER CONTRACTORS,5902253702
08.06.2017,F & C S EXCLUDING CORPORATE BUDGETS,SOUTH BANK BID LTD,"12,800.46",SOUTH BANK,EXTERNAL AGENCIES AND BODIES,5902253143
08.06.2017,HOUSING,SPOKEMEAD MAINTENANCE LTD,"136,386.45",PAYMENTS CONTROL ACCOUNT - SPOKEMEAD,MANUAL CREDITORS,5902253841
08.06.2017,HOUSING,LONDON TOOLS LIMITED,282,STORES,CREDITORS -GR/IR CLEARING ACCOUNT,5902253761
08.06.2017,HOUSING,MARTIN VITERA LTD,"1,020.00",STORES,CREDITORS -GR/IR CLEARING ACCOUNT,5902253801
08.06.2017,HOUSING HRA,BCS (ELECTRICAL & BUILDING) LTD,"2,730.90",BCS,MANUAL CREDITORS,5902253779
08.06.2017,HOUSING HRA,A & E ELKINS LTD,"92,567.75",CAPITAL PS (HRA),CONSTRUCTION MAIN CONTRACT -CERTIFICATED,2102679566
08.06.2017,HOUSING HRA,JOHN BURKE ASSOCIATES,736,CAPITAL PS (HRA),CONSTRUCTION FEES - INTERNAL,5902253837
08.06.2017,HOUSING HRA,JOHN BURKE ASSOCIATES,"1,856.00",CAPITAL PS (HRA),CONSTRUCTION FEES - INTERNAL,5902253830
08.06.2017,HOUSING HRA,JOMAS ASSOCIATES LTD,705,CAPITAL PS (HRA),CONSTRUCTION FEES  - EXTERNAL,5902253758
08.06.2017,HOUSING HRA,KEEPMOAT REGENERATION (APOLLO) LTD,"367,283.26",CAPITAL PS (HRA),CONSTRUCTION MAIN CONTRACT -CERTIFICATED,2102679555
08.06.2017,HOUSING HRA,MLM CONSULTING ENGINEERS LTD,"1,100.00",CAPITAL PS (HRA),CONSTRUCTION MAIN CONTRACT,5902253828
08.06.2017,HOUSING HRA,MOTT MACDONALD LTD,"2,896.00",CAPITAL PS (HRA),CONSTRUCTION FEES - EMPLOYERS AGENT,5902253876
08.06.2017,HOUSING HRA,PANKHURST CONTRACTING,320,CAPITAL PS (HRA),CONSTRUCTION FEES  - EXTERNAL,5902253791
08.06.2017,HOUSING HRA,PROFILE CONSTRUCTION CONSULTANTS LTD,"1,677.50",CAPITAL PS (HRA),CONSTRUCTION FEES  - EXTERNAL,5902253860
08.06.2017,HOUSING HRA,SALTASH ENTERPRISES LTD,"39,681.52",CAPITAL PS (HRA),CONSTRUCTION MAIN CONTRACT -CERTIFICATED,2102679576
08.06.2017,HOUSING HRA,SALTASH ENTERPRISES LTD,"46,830.22",CAPITAL PS (HRA),CONSTRUCTION MAIN CONTRACT -CERTIFICATED,2102679575
08.06.2017,HOUSING HRA,GEOFFREY OSBORNE LIMITED,"10,952.67",CAPITAL PS (REGEN),CONSTRUCTION MAIN CONTRACT -CERTIFICATED,2102679565
08.06.2017,HOUSING HRA,GEOFFREY OSBORNE LIMITED,"14,280.30",CAPITAL PS (REGEN),CONSTRUCTION MAIN CONTRACT -CERTIFICATED,2102679564
08.06.2017,HOUSING HRA,GEOFFREY OSBORNE LIMITED,"102,002.47",CAPITAL PS (REGEN),CONSTRUCTION MAIN CONTRACT -CERTIFICATED,2102679563
08.06.2017,HOUSING HRA,JNP ENGINEERS LLP,"2,750.00",CAPITAL PS (REGEN),CONSTRUCTION FEES,5902253736
08.06.2017,HOUSING HRA,DUCTCLEAN (UK) LTD,"31,254.68",DUCTCLEAN,MANUAL CREDITORS,2102679574
08.06.2017,HOUSING HRA,DUCTCLEAN (UK) LTD,"82,310.26",DUCTCLEAN,MANUAL CREDITORS,2102679573
08.06.2017,HOUSING HRA,SMITH & BYFORD LTD,"262,524.12",SMITH AND BYFORD,MANUAL CREDITORS,2102679556
08.06.2017,LEISURE DIRECTORATE,CONWAY AECOM LTD,"1,222.00",BURGESS AREA TEAM,OTHER R&M,2102679569
08.06.2017,LEISURE DIRECTORATE,CONWAY AECOM LTD,"1,850.40",BURGESS AREA TEAM,OTHER R&M,2102679570
08.06.2017,LEISURE DIRECTORATE,CONWAY AECOM LTD,"2,010.42",BURGESS AREA TEAM,OTHER R&M,2102679571
08.06.2017,LEISURE DIRECTORATE,CONWAY AECOM LTD,"2,510.60",BURGESS AREA TEAM,OTHER R&M,2102679572
08.06.2017,LEISURE DIRECTORATE,R HERRIDGE & PARTNERS,465,DULWICH AREA TEAM,OTHER R&M,2102679562
08.06.2017,LEISURE DIRECTORATE,ANGEL SPRINGS LTD,311.85,EAST STREET LIBRARY,OP LEASE/HIRE CHARGES:PLANT/EQUIP/FURNIT,5902253705
08.06.2017,LEISURE DIRECTORATE,RESPONSE TECHNICAL SERVICES LTD,381.2,LOCAL HISTORY LIBRARY,EQUIPMENT PURCHASE & REPAIR,5902253747
08.06.2017,LEISURE DIRECTORATE,ENVIRONMENT AGENCY,"1,089.45",SDM BUDGET,EXTERNAL AGENCIES AND BODIES,5902253894
08.06.2017,LEISURE DIRECTORATE,METER MACS LTD,330,SDM BUDGET,MATERIALS,5902253703
08.06.2017,LEISURE DIRECTORATE,REGENT CLEANING,"2,346.08",SDM BUDGET,PREMISES CLEANING,5902253712
08.06.2017,LEISURE DIRECTORATE,ASKEWS & HOLTS LIBRARY SERVICES LTD,278.51,STOCK SERVICES,BOOKS & PUBLICATIONS,5902253517
08.06.2017,MODERNISATION HGF,NEOPOST FINANCE LTD,"1,832.00",160 TOOLEY ST.,OP LEASE/HIRE CHARGES:PLANT/EQUIP/FURNIT,5902253777
08.06.2017,MODERNISATION HGF,NEOPOST FINANCE LTD,"2,230.08",160 TOOLEY ST.,OP LEASE/HIRE CHARGES:PLANT/EQUIP/FURNIT,5902253796
08.06.2017,MODERNISATION HGF,ROYAL MAIL GROUP LTD,"1,413.60",160 TOOLEY ST.,POSTAGES,5902253781
08.06.2017,MODERNISATION HGF,CASTLE WATER LTD,"1,355.49",CURLEW HOUSE,WATER,5902253711
08.06.2017,MODERNISATION HGF,COMENSURA LTD,"3,254.98",MONTHLY ADMIN FEE,AGENCY STAFF,5902253808
08.06.2017,MODERNISATION HGF,KIER FACILITIES SERVICES LTD,"4,179.15",PLANNED FM SERVICES BY KIER,BUILDING R&M,5902253713
08.06.2017,MODERNISATION HGF,ARMSTRONG YORK,510,PLANNED MAINTENANCE,BUILDING R&M,5902253719
08.06.2017,MODERNISATION HGF,COMENSURA LTD,"449,546.20",WEEKLY PAYMENTS,AGENCY STAFF,5902253808
08.06.2017,PECKHAM AND NUNHEAD COMMUNITY COUNCIL,BELLS GARDENS TENANTS ASSOCIATION,"2,000.00",STEP UP & STEP IN,GRANT,CHEQUE PAYMENT
08.06.2017,PECKHAM AND NUNHEAD COMMUNITY COUNCIL,PECAN,"3,000.00",,GRANT,CHEQUE PAYMENT
08.06.2017,PLANNING AND TRANSPORT,GVA GRIMLEY LLP,"17,000.00",MAJOR APPLICATIONS,PROFESSIONAL FEES,5902253784
08.06.2017,PLANNING AND TRANSPORT,STUART RUSSELL,"1,150.00",PECKHAM TOWNSCAPE HERITAGE INITIATIVE,MISCELLANEOUS EXPENSES,5902253836
08.06.2017,PLANNING AND TRANSPORT,PROJECT CENTRE LTD,"6,750.00",TRANSPORT POLICY AND PROGRAMS,CONSULTANTS SERVICES,5902253805
08.06.2017,REGENERATION,AXIS SECURITY SERVICES LTD,365,KENNINGTON WORKSHOPS,SECURITY SERVICES,5902253833
08.06.2017,RESIDENT SERVICES,EDF ENERGY PLC,255.81,OPERATIONS/OFFICES ACCOMMODATION,ELECTRICITY,5902253815
08.06.2017,RESIDENT SERVICES,EDF ENERGY PLC,275.37,OPERATIONS/OFFICES ACCOMMODATION,ELECTRICITY,5902253743
08.06.2017,RESIDENT SERVICES,EDF ENERGY PLC,323.9,OPERATIONS/OFFICES ACCOMMODATION,ELECTRICITY,5902253732
08.06.2017,RESIDENT SERVICES,EDF ENERGY PLC,380.82,OPERATIONS/OFFICES ACCOMMODATION,ELECTRICITY,5902253811
08.06.2017,RESIDENT SERVICES,OFFICE DEPOT UK LTD,637.77,OPERATIONS/OFFICES ACCOMMODATION,STATIONERY,5902253793
08.06.2017,RESIDENT SERVICES,A & H PEST CONTROL LTD,490,PECKHAM,PEST CONTROL,5902253704
08.06.2017,RESIDENT SERVICES,THAMES WATER UTILITIES LTD,"16,274.74",TA HOSTELS,WATER,5902253826
08.06.2017,RESIDENT SERVICES,S A PROPERTY MANAGEMENT LTD,"2,693.90",TA PLACEMENTS,EXTERNAL AGENCIES AND BODIES,5902253740
08.06.2017,SOUTHWARK SCHOOL FOR FUTURE,ROBERT WEST CONSULTING LTD,486.6,CAPITAL PS (REGEN),CONST'N MAIN CONTRACT - NON CERTIFICATED,5902253855
08.06.2017,SOUTHWARK SCHOOL FOR FUTURE,ROBERT WEST CONSULTING LTD,"1,860.00",CAPITAL PS (REGEN),CONST'N MAIN CONTRACT - NON CERTIFICATED,5902253852
09.06.2017,ADULT SOCIAL CARE,REDACTED PERSONAL DATA,264.8,APPOINTEESHIPS,OTHER PAYMENTS FOR CLIENTS,5902253960
09.06.2017,ADULT SOCIAL CARE,REDACTED PERSONAL DATA,480,APPOINTEESHIPS,OTHER PAYMENTS FOR CLIENTS,5902253962
09.06.2017,ADULT SOCIAL CARE,REDACTED PERSONAL DATA,"2,360.80",CONTINUING CARE PERSONAL BUDGETS DR,RECOVERABLE COSTS INCL. HEALTH,2102682287
09.06.2017,ADULT SOCIAL CARE,REDACTED PERSONAL DATA,"5,335.96",CONTINUING CARE PERSONAL BUDGETS DR,RECOVERABLE COSTS INCL. HEALTH,2102682454
09.06.2017,ADULT SOCIAL CARE,ASHMEAD HEALTHCARE LTD,"1,911.00",CONTINUING CARE PERSONAL BUDGETS DR,RECOVERABLE COSTS INCL. HEALTH,2102681236
09.06.2017,ADULT SOCIAL CARE,PEOPLE PLUS,"3,518.32",CONTINUING CARE PERSONAL BUDGETS DR,RECOVERABLE COSTS INCL. HEALTH,2102682137
09.06.2017,ADULT SOCIAL CARE,PEOPLE PLUS,"3,613.68",CONTINUING CARE PERSONAL BUDGETS DR,RECOVERABLE COSTS INCL. HEALTH,2102682063
09.06.2017,ADULT SOCIAL CARE,PEOPLE PLUS,"7,703.32",CONTINUING CARE PERSONAL BUDGETS DR,RECOVERABLE COSTS INCL. HEALTH,2102681407
09.06.2017,ADULT SOCIAL CARE,ROSENMANOR LTD,"3,800.00",CONTINUING CARE PERSONAL BUDGETS DR,RECOVERABLE COSTS INCL. HEALTH,2102680145
09.06.2017,ADULT SOCIAL CARE,ROSENMANOR LTD,"5,248.00",CONTINUING CARE PERSONAL BUDGETS DR,RECOVERABLE COSTS INCL. HEALTH,2102681139
09.06.2017,ADULT SOCIAL CARE,VOYAGE CARE (MOUNTEARL),"4,968.16",CONTINUING CARE PERSONAL BUDGETS DR,RECOVERABLE COSTS INCL. HEALTH,2102680767
09.06.2017,ADULT SOCIAL CARE,MEDEQUIP ASSISTIVE TECHNOLOGY LTD,327.47,ICES CONTRACT,EQUIPMENT PURCHASE & REPAIR,5902253926
09.06.2017,ADULT SOCIAL CARE,MEDEQUIP ASSISTIVE TECHNOLOGY LTD,643.8,ICES CONTRACT,EQUIPMENT PURCHASE & REPAIR,5902253931
09.06.2017,ADULT SOCIAL CARE,MEDEQUIP ASSISTIVE TECHNOLOGY LTD,643.8,ICES CONTRACT,EQUIPMENT PURCHASE & REPAIR,5902253985
09.06.2017,ADULT SOCIAL CARE,MEDEQUIP ASSISTIVE TECHNOLOGY LTD,"113,528.50",ICES CONTRACT,EQUIPMENT PURCHASE & REPAIR,5902253913
09.06.2017,ADULT SOCIAL CARE,MEDEQUIP ASSISTIVE TECHNOLOGY LTD,"146,853.00",ICES CONTRACT,EQUIPMENT PURCHASE & REPAIR,5902253922
09.06.2017,ADULT SOCIAL CARE,ARGOS,285.53,LD HOME CARE,OTHER R&M,5902253967
09.06.2017,ADULT SOCIAL CARE,ARGOS,329.57,LD HOME CARE,OTHER R&M,5902253970
09.06.2017,ADULT SOCIAL CARE,REDACTED PERSONAL DATA,"-3,567.88",LD LTS 18-64,DISCRETIONARY FLEXIBLE FEES & INCOME,2102682382
09.06.2017,ADULT SOCIAL CARE,REDACTED PERSONAL DATA,-321.56,LD LTS 18-64,"MAND STATUTORY CHARGES, RESIDENTIAL",2102681063
09.06.2017,ADULT SOCIAL CARE,REDACTED PERSONAL DATA,269.6,LD LTS 18-64,PAYMENTS TO CLIENTS (DIRECT PAYMENTS),2102682358
09.06.2017,ADULT SOCIAL CARE,REDACTED PERSONAL DATA,280,LD LTS 18-64,PAYMENTS TO CLIENTS (DIRECT PAYMENTS),2102682514
09.06.2017,ADULT SOCIAL CARE,REDACTED PERSONAL DATA,288.8,LD LTS 18-64,PAYMENTS TO CLIENTS (DIRECT PAYMENTS),2102681916
09.06.2017,ADULT SOCIAL CARE,REDACTED PERSONAL DATA,300,LD LTS 18-64,PAYMENTS TO CLIENTS (DIRECT PAYMENTS),2102681815
09.06.2017,ADULT SOCIAL CARE,REDACTED PERSONAL DATA,300,LD LTS 18-64,PAYMENTS TO CLIENTS (DIRECT PAYMENTS),2102682387
09.06.2017,ADULT SOCIAL CARE,REDACTED PERSONAL DATA,314.96,LD LTS 18-64,PAYMENTS TO CLIENTS (DIRECT PAYMENTS),2102681522
09.06.2017,ADULT SOCIAL CARE,REDACTED PERSONAL DATA,331.08,LD LTS 18-64,PAYMENTS TO CLIENTS (DIRECT PAYMENTS),2102682444
09.06.2017,ADULT SOCIAL CARE,REDACTED PERSONAL DATA,409.08,LD LTS 18-64,PAYMENTS TO CLIENTS (DIRECT PAYMENTS),2102682523
09.06.2017,ADULT SOCIAL CARE,REDACTED PERSONAL DATA,420,LD LTS 18-64,PAYMENTS TO CLIENTS (DIRECT PAYMENTS),2102682440
09.06.2017,ADULT SOCIAL CARE,REDACTED PERSONAL DATA,480,LD LTS 18-64,PAYMENTS TO CLIENTS (DIRECT PAYMENTS),2102682490
09.06.2017,ADULT SOCIAL CARE,REDACTED PERSONAL DATA,484.32,LD LTS 18-64,PAYMENTS TO CLIENTS (DIRECT PAYMENTS),2102681457
09.06.2017,ADULT SOCIAL CARE,REDACTED PERSONAL DATA,522.6,LD LTS 18-64,PAYMENTS TO CLIENTS (DIRECT PAYMENTS),2102682395
09.06.2017,ADULT SOCIAL CARE,REDACTED PERSONAL DATA,616,LD LTS 18-64,PAYMENTS TO CLIENTS (DIRECT PAYMENTS),2102682375
09.06.2017,ADULT SOCIAL CARE,REDACTED PERSONAL DATA,738,LD LTS 18-64,PAYMENTS TO CLIENTS (DIRECT PAYMENTS),2102682089
09.06.2017,ADULT SOCIAL CARE,REDACTED PERSONAL DATA,875,LD LTS 18-64,PAYMENTS TO CLIENTS (DIRECT PAYMENTS),2102682461
09.06.2017,ADULT SOCIAL CARE,REDACTED PERSONAL DATA,"1,019.44",LD LTS 18-64,PAYMENTS TO CLIENTS (DIRECT PAYMENTS),2102682390
09.06.2017,ADULT SOCIAL CARE,REDACTED PERSONAL DATA,"1,025.20",LD LTS 18-64,PAYMENTS TO CLIENTS (DIRECT PAYMENTS),2102682535
09.06.2017,ADULT SOCIAL CARE,REDACTED PERSONAL DATA,"1,032.16",LD LTS 18-64,SUPPORTED LIVING,2102682421
09.06.2017,ADULT SOCIAL CARE,REDACTED PERSONAL DATA,"1,036.24",LD LTS 18-64,PAYMENTS TO CLIENTS (DIRECT PAYMENTS),2102682368
09.06.2017,ADULT SOCIAL CARE,REDACTED PERSONAL DATA,"1,051.40",LD LTS 18-64,PAYMENTS TO CLIENTS (DIRECT PAYMENTS),2102681358
09.06.2017,ADULT SOCIAL CARE,REDACTED PERSONAL DATA,"1,112.40",LD LTS 18-64,PAYMENTS TO CLIENTS (DIRECT PAYMENTS),2102682365
09.06.2017,ADULT SOCIAL CARE,REDACTED PERSONAL DATA,"1,122.64",LD LTS 18-64,PAYMENTS TO CLIENTS (DIRECT PAYMENTS),2102681348
09.06.2017,ADULT SOCIAL CARE,REDACTED PERSONAL DATA,"1,136.44",LD LTS 18-64,SUPPORTED LIVING,2102681524
09.06.2017,ADULT SOCIAL CARE,REDACTED PERSONAL DATA,"1,197.96",LD LTS 18-64,PAYMENTS TO CLIENTS (DIRECT PAYMENTS),2102682481
09.06.2017,ADULT SOCIAL CARE,REDACTED PERSONAL DATA,"1,200.00",LD LTS 18-64,PAYMENTS TO CLIENTS (DIRECT PAYMENTS),2102682141
09.06.2017,ADULT SOCIAL CARE,REDACTED PERSONAL DATA,"1,293.44",LD LTS 18-64,PAYMENTS TO CLIENTS (DIRECT PAYMENTS),2102682485
09.06.2017,ADULT SOCIAL CARE,REDACTED PERSONAL DATA,"1,338.04",LD LTS 18-64,PAYMENTS TO CLIENTS (DIRECT PAYMENTS),2102682299
09.06.2017,ADULT SOCIAL CARE,REDACTED PERSONAL DATA,"1,356.44",LD LTS 18-64,SUPPORTED LIVING,2102682459
09.06.2017,ADULT SOCIAL CARE,REDACTED PERSONAL DATA,"1,443.00",LD LTS 18-64,PAYMENTS TO CLIENTS (DIRECT PAYMENTS),2102681451
09.06.2017,ADULT SOCIAL CARE,REDACTED PERSONAL DATA,"1,454.08",LD LTS 18-64,PAYMENTS TO CLIENTS (DIRECT PAYMENTS),2102681998
09.06.2017,ADULT SOCIAL CARE,REDACTED PERSONAL DATA,"1,456.00",LD LTS 18-64,PAYMENTS TO CLIENTS (DIRECT PAYMENTS),2102682533
09.06.2017,ADULT SOCIAL CARE,REDACTED PERSONAL DATA,"1,483.00",LD LTS 18-64,PAYMENTS TO CLIENTS (DIRECT PAYMENTS),2102682355
09.06.2017,ADULT SOCIAL CARE,REDACTED PERSONAL DATA,"1,532.68",LD LTS 18-64,PAYMENTS TO CLIENTS (DIRECT PAYMENTS),2102682015
09.06.2017,ADULT SOCIAL CARE,REDACTED PERSONAL DATA,"1,532.92",LD LTS 18-64,PAYMENTS TO CLIENTS (DIRECT PAYMENTS),2102682447
09.06.2017,ADULT SOCIAL CARE,REDACTED PERSONAL DATA,"1,545.48",LD LTS 18-64,PAYMENTS TO CLIENTS (DIRECT PAYMENTS),2102682416
09.06.2017,ADULT SOCIAL CARE,REDACTED PERSONAL DATA,"1,570.00",LD LTS 18-64,SUPPORTED LIVING,2102682228
09.06.2017,ADULT SOCIAL CARE,REDACTED PERSONAL DATA,"1,640.00",LD LTS 18-64,SUPPORTED LIVING,2102682363
09.06.2017,ADULT SOCIAL CARE,REDACTED PERSONAL DATA,"1,672.00",LD LTS 18-64,PAYMENTS TO CLIENTS (DIRECT PAYMENTS),2102681553
09.06.2017,ADULT SOCIAL CARE,REDACTED PERSONAL DATA,"1,790.40",LD LTS 18-64,PAYMENTS TO CLIENTS (DIRECT PAYMENTS),2102681620
09.06.2017,ADULT SOCIAL CARE,REDACTED PERSONAL DATA,"1,800.00",LD LTS 18-64,PAYMENTS TO CLIENTS (DIRECT PAYMENTS),2102681826
09.06.2017,ADULT SOCIAL CARE,REDACTED PERSONAL DATA,"1,811.76",LD LTS 18-64,PAYMENTS TO CLIENTS (DIRECT PAYMENTS),2102682018
09.06.2017,ADULT SOCIAL CARE,REDACTED PERSONAL DATA,"2,116.00",LD LTS 18-64,PAYMENTS TO CLIENTS (DIRECT PAYMENTS),2102682498
09.06.2017,ADULT SOCIAL CARE,REDACTED PERSONAL DATA,"2,317.60",LD LTS 18-64,PAYMENTS TO CLIENTS (DIRECT PAYMENTS),2102682396
09.06.2017,ADULT SOCIAL CARE,REDACTED PERSONAL DATA,"2,344.00",LD LTS 18-64,PAYMENTS TO CLIENTS (DIRECT PAYMENTS),2102682386
09.06.2017,ADULT SOCIAL CARE,REDACTED PERSONAL DATA,"2,412.00",LD LTS 18-64,PAYMENTS TO CLIENTS (DIRECT PAYMENTS),2102682352
09.06.2017,ADULT SOCIAL CARE,REDACTED PERSONAL DATA,"2,470.64",LD LTS 18-64,RESIDENTIAL CARE,2102681062
09.06.2017,ADULT SOCIAL CARE,REDACTED PERSONAL DATA,"2,660.20",LD LTS 18-64,PAYMENTS TO CLIENTS (DIRECT PAYMENTS),2102681734
09.06.2017,ADULT SOCIAL CARE,REDACTED PERSONAL DATA,"2,736.00",LD LTS 18-64,PAYMENTS TO CLIENTS (DIRECT PAYMENTS),2102681906
09.06.2017,ADULT SOCIAL CARE,REDACTED PERSONAL DATA,"3,066.48",LD LTS 18-64,PAYMENTS TO CLIENTS (DIRECT PAYMENTS),2102682464
09.06.2017,ADULT SOCIAL CARE,REDACTED PERSONAL DATA,"3,096.96",LD LTS 18-64,PAYMENTS TO CLIENTS (DIRECT PAYMENTS),2102682306
09.06.2017,ADULT SOCIAL CARE,REDACTED PERSONAL DATA,"3,118.08",LD LTS 18-64,PAYMENTS TO CLIENTS (DIRECT PAYMENTS),2102682420
09.06.2017,ADULT SOCIAL CARE,REDACTED PERSONAL DATA,"3,162.12",LD LTS 18-64,PAYMENTS TO CLIENTS (DIRECT PAYMENTS),2102682159
09.06.2017,ADULT SOCIAL CARE,REDACTED PERSONAL DATA,"3,864.64",LD LTS 18-64,PAYMENTS TO CLIENTS (DIRECT PAYMENTS),2102682456
09.06.2017,ADULT SOCIAL CARE,REDACTED PERSONAL DATA,"3,923.12",LD LTS 18-64,PAYMENTS TO CLIENTS (DIRECT PAYMENTS),2102682285
09.06.2017,ADULT SOCIAL CARE,REDACTED PERSONAL DATA,"4,348.00",LD LTS 18-64,PAYMENTS TO CLIENTS (DIRECT PAYMENTS),2102682509
09.06.2017,ADULT SOCIAL CARE,REDACTED PERSONAL DATA,"5,280.88",LD LTS 18-64,PAYMENTS TO CLIENTS (DIRECT PAYMENTS),2102682500
09.06.2017,ADULT SOCIAL CARE,REDACTED PERSONAL DATA,"5,362.72",LD LTS 18-64,PAYMENTS TO CLIENTS (DIRECT PAYMENTS),2102681618
09.06.2017,ADULT SOCIAL CARE,REDACTED PERSONAL DATA,"8,484.60",LD LTS 18-64,PAYMENTS TO CLIENTS (DIRECT PAYMENTS),2102681842
09.06.2017,ADULT SOCIAL CARE,REDACTED PERSONAL DATA,"12,580.00",LD LTS 18-64,PAYMENTS TO CLIENTS (DIRECT PAYMENTS),2102682381
09.06.2017,ADULT SOCIAL CARE,REDACTED PERSONAL DATA,"13,198.16",LD LTS 18-64,PAYMENTS TO CLIENTS (DIRECT PAYMENTS),2102681840
09.06.2017,ADULT SOCIAL CARE,31 WOODBOURNE (FRANCES TAYLOR FOUNDATION),-322.7,LD LTS 18-64,"MAND STATUTORY CHARGES, RESIDENTIAL",2102680357
